DepartmentFamily,Entity,Date,ExpenseType,ExpenseArea,Supplier,TransactionNumber,Amount,VAT Registration Number
BEIS,The Insolvency Service,02/01/2019,Legal Costs,Investigations & Enforcement Services,DWF Solicitors,30000042,-6914.08,
BEIS,The Insolvency Service,02/01/2019,Legal Costs,Strategy & Change,Agilisys Ltd,300005244,100380.00,791711713
BEIS,The Insolvency Service,02/01/2019,Agency Costs,Finance & Commercial,ALEXANDER MANN SOLUTIONS,300005344,90150.46,7444926120
BEIS,The Insolvency Service,02/01/2019,Other Costs,Strategy & Change,Calder World Of Travel,30000043,-250.00,
BEIS,The Insolvency Service,02/01/2019,Other Costs,Strategy & Change,Calder World Of Travel,30000043,-20.00,
BEIS,The Insolvency Service,02/01/2019,Other Costs,People & Capability,Calder World Of Travel,30000043,-314.88,
BEIS,The Insolvency Service,02/01/2019,Other Costs,People & Capability,Calder World Of Travel,30000043,-50.40,
BEIS,The Insolvency Service,02/01/2019,Other Costs,Strategy & Change,Calder World Of Travel,30000043,-210.00,
BEIS,The Insolvency Service,02/01/2019,Other Costs,Strategy & Change,Calder World Of Travel,30000043,-46.80,
BEIS,The Insolvency Service,02/01/2019,Other Costs,Strategy & Change,Calder World Of Travel,30000043,-35.70,
BEIS,The Insolvency Service,02/01/2019,Other Costs,People & Capability,Calder World Of Travel,30000043,-1900.00,
BEIS,The Insolvency Service,02/01/2019,Other Costs,Information & Technology,Calder World Of Travel,30000043,-2442.00,
BEIS,The Insolvency Service,02/01/2019,Other Costs,Chief Executive Office,Calder World Of Travel,30000043,-3229.17,
BEIS,The Insolvency Service,02/01/2019,Other Costs,Chief Executive Office,Calder World Of Travel,30000043,-112.50,
BEIS,The Insolvency Service,02/01/2019,Other Costs,Chief Executive Office,Calder World Of Travel,30000043,-50.00,
BEIS,The Insolvency Service,02/01/2019,Other Costs,Chief Executive Office,Calder World Of Travel,30000043,-50.00,
BEIS,The Insolvency Service,02/01/2019,Other Costs,Chief Executive Office,Calder World Of Travel,30000043,-150.00,
BEIS,The Insolvency Service,02/01/2019,Other Costs,Chief Executive Office,Calder World Of Travel,30000043,-83.33,
BEIS,The Insolvency Service,02/01/2019,Other Costs,Chief Executive Office,Calder World Of Travel,30000043,-972.00,
BEIS,The Insolvency Service,02/01/2019,Other Costs,Investigations & Enforcement Services,Calder World Of Travel,30000043,-417.60,
BEIS,The Insolvency Service,02/01/2019,Other Costs,Investigations & Enforcement Services,Calder World Of Travel,30000043,-273.60,
BEIS,The Insolvency Service,02/01/2019,Other Costs,Investigations & Enforcement Services,Calder World Of Travel,30000043,-576.00,
BEIS,The Insolvency Service,02/01/2019,Other Costs,Investigations & Enforcement Services,Calder World Of Travel,30000043,-19.80,
BEIS,The Insolvency Service,02/01/2019,Other Costs,Strategy & Change,Calder World Of Travel,30000043,-430.00,
BEIS,The Insolvency Service,02/01/2019,Other Costs,Strategy & Change,Calder World Of Travel,30000043,-163.80,
BEIS,The Insolvency Service,02/01/2019,Other Costs,Strategy & Change,Calder World Of Travel,30000043,-378.00,
BEIS,The Insolvency Service,02/01/2019,Other Costs,Strategy & Change,Calder World Of Travel,30000043,-30.00,
BEIS,The Insolvency Service,02/01/2019,Other Costs,Strategy & Change,Calder World Of Travel,30000043,-30.00,
BEIS,The Insolvency Service,02/01/2019,Other Costs,Strategy & Change,Calder World Of Travel,30000043,-16.00,
BEIS,The Insolvency Service,02/01/2019,Other Costs,Strategy & Change,Calder World Of Travel,30000043,-20.00,
BEIS,The Insolvency Service,02/01/2019,Other Costs,Strategy & Change,Calder World Of Travel,30000043,-250.00,
BEIS,The Insolvency Service,02/01/2019,Other Costs,Strategy & Change,Calder World Of Travel,30000043,-51.35,
BEIS,The Insolvency Service,02/01/2019,Other Costs,Strategy & Change,Calder World Of Travel,30000043,-157.50,
BEIS,The Insolvency Service,02/01/2019,Other Costs,Strategy & Change,Calder World Of Travel,90000091148,30.00,
BEIS,The Insolvency Service,02/01/2019,Other Costs,Strategy & Change,Calder World Of Travel,90000091148,157.50,
BEIS,The Insolvency Service,02/01/2019,Other Costs,Strategy & Change,Calder World Of Travel,90000091148,16.00,
BEIS,The Insolvency Service,02/01/2019,Other Costs,Strategy & Change,Calder World Of Travel,90000091148,20.00,
BEIS,The Insolvency Service,02/01/2019,Other Costs,Strategy & Change,Calder World Of Travel,90000091148,250.00,
BEIS,The Insolvency Service,02/01/2019,Other Costs,Strategy & Change,Calder World Of Travel,90000091148,51.35,
BEIS,The Insolvency Service,02/01/2019,Other Costs,Chief Executive Office,Calder World Of Travel,90000091148,50.00,
BEIS,The Insolvency Service,02/01/2019,Other Costs,Investigations & Enforcement Services,Calder World Of Travel,90000091148,576.00,
BEIS,The Insolvency Service,02/01/2019,Other Costs,Investigations & Enforcement Services,Calder World Of Travel,90000091148,19.80,
BEIS,The Insolvency Service,02/01/2019,Other Costs,Strategy & Change,Calder World Of Travel,90000091148,430.00,
BEIS,The Insolvency Service,02/01/2019,Other Costs,Strategy & Change,Calder World Of Travel,90000091148,163.80,
BEIS,The Insolvency Service,02/01/2019,Other Costs,Chief Executive Office,Calder World Of Travel,90000091148,150.00,
BEIS,The Insolvency Service,02/01/2019,Other Costs,Strategy & Change,Calder World Of Travel,90000091148,250.00,
BEIS,The Insolvency Service,02/01/2019,Other Costs,Strategy & Change,Calder World Of Travel,90000091148,20.00,
BEIS,The Insolvency Service,02/01/2019,Other Costs,Strategy & Change,Calder World Of Travel,90000091148,35.70,
BEIS,The Insolvency Service,02/01/2019,Other Costs,Strategy & Change,Calder World Of Travel,90000091148,378.00,
BEIS,The Insolvency Service,02/01/2019,Other Costs,Strategy & Change,Calder World Of Travel,90000091148,30.00,
BEIS,The Insolvency Service,02/01/2019,Other Costs,Chief Executive Office,Calder World Of Travel,90000091148,83.33,
BEIS,The Insolvency Service,02/01/2019,Other Costs,People & Capability,Calder World Of Travel,90000091148,1900.00,
BEIS,The Insolvency Service,02/01/2019,Other Costs,Information & Technology,Calder World Of Travel,90000091148,2442.00,
BEIS,The Insolvency Service,02/01/2019,Other Costs,Chief Executive Office,Calder World Of Travel,90000091148,3229.17,
BEIS,The Insolvency Service,02/01/2019,Other Costs,Chief Executive Office,Calder World Of Travel,90000091148,112.50,
BEIS,The Insolvency Service,02/01/2019,Other Costs,Chief Executive Office,Calder World Of Travel,90000091148,50.00,
BEIS,The Insolvency Service,02/01/2019,Other Costs,People & Capability,Calder World Of Travel,90000091148,314.88,
BEIS,The Insolvency Service,02/01/2019,Other Costs,Chief Executive Office,Calder World Of Travel,90000091148,972.00,
BEIS,The Insolvency Service,02/01/2019,Other Costs,Investigations & Enforcement Services,Calder World Of Travel,90000091148,417.60,
BEIS,The Insolvency Service,02/01/2019,Other Costs,Investigations & Enforcement Services,Calder World Of Travel,90000091148,273.60,
BEIS,The Insolvency Service,02/01/2019,Other Costs,People & Capability,Calder World Of Travel,90000091148,50.40,
BEIS,The Insolvency Service,02/01/2019,Other Costs,Strategy & Change,Calder World Of Travel,90000091148,210.00,
BEIS,The Insolvency Service,02/01/2019,Other Costs,Strategy & Change,Calder World Of Travel,90000091148,46.80,
BEIS,The Insolvency Service,02/01/2019,Training,Official Receiver Services,Calder World Of Travel,30000043,-240.00,
BEIS,The Insolvency Service,02/01/2019,Training,Official Receiver Services,Calder World Of Travel,30000043,-60.00,
BEIS,The Insolvency Service,02/01/2019,Training,People & Capability,Calder World Of Travel,30000043,-200.00,
BEIS,The Insolvency Service,02/01/2019,Training,People & Capability,Calder World Of Travel,30000043,-458.33,
BEIS,The Insolvency Service,02/01/2019,Training,People & Capability,Calder World Of Travel,30000043,-330.00,
BEIS,The Insolvency Service,02/01/2019,Training,People & Capability,Calder World Of Travel,30000043,-60.00,
BEIS,The Insolvency Service,02/01/2019,Training,People & Capability,Calder World Of Travel,30000043,-43.20,
BEIS,The Insolvency Service,02/01/2019,Training,People & Capability,Calder World Of Travel,30000043,-215.25,
BEIS,The Insolvency Service,02/01/2019,Training,People & Capability,Calder World Of Travel,30000043,-40.00,
BEIS,The Insolvency Service,02/01/2019,Training,People & Capability,Calder World Of Travel,90000091148,330.00,
BEIS,The Insolvency Service,02/01/2019,Training,People & Capability,Calder World Of Travel,90000091148,215.25,
BEIS,The Insolvency Service,02/01/2019,Training,People & Capability,Calder World Of Travel,90000091148,40.00,
BEIS,The Insolvency Service,02/01/2019,Training,People & Capability,Calder World Of Travel,90000091148,458.33,
BEIS,The Insolvency Service,02/01/2019,Training,People & Capability,Calder World Of Travel,90000091148,60.00,
BEIS,The Insolvency Service,02/01/2019,Training,People & Capability,Calder World Of Travel,90000091148,43.20,
BEIS,The Insolvency Service,02/01/2019,Training,People & Capability,Calder World Of Travel,90000091148,200.00,
BEIS,The Insolvency Service,02/01/2019,Training,Official Receiver Services,Calder World Of Travel,90000091148,240.00,
BEIS,The Insolvency Service,02/01/2019,Training,Official Receiver Services,Calder World Of Travel,90000091148,60.00,
BEIS,The Insolvency Service,02/01/2019,Accomodation,Finance & Commercial,"Department For Business, Energy And Industrial Strategy (Be)",30000041,-57600.48,
BEIS,The Insolvency Service,02/01/2019,Investigation & Enforcement Costs,Official Receiver Services,Howes Percival,300005129,30909.18,119523573
BEIS,The Insolvency Service,02/01/2019,Investigation & Enforcement Costs,Official Receiver Services,Howes Percival,300005134,198.64,119523573
BEIS,The Insolvency Service,02/01/2019,Travel & Subsistence,Investigations & Enforcement Services,Staff Payment,900005595,15.60,
BEIS,The Insolvency Service,02/01/2019,Travel & Subsistence,Investigations & Enforcement Services,Staff Payment,900005595,55.80,
BEIS,The Insolvency Service,02/01/2019,Travel & Subsistence,Investigations & Enforcement Services,Staff Payment,900005595,55.80,
BEIS,The Insolvency Service,02/01/2019,Travel & Subsistence,Investigations & Enforcement Services,Staff Payment,900005595,5.00,
BEIS,The Insolvency Service,02/01/2019,Travel & Subsistence,Investigations & Enforcement Services,Staff Payment,900005595,8.00,
BEIS,The Insolvency Service,02/01/2019,Travel & Subsistence,Investigations & Enforcement Services,Staff Payment,900005595,5.00,
BEIS,The Insolvency Service,02/01/2019,Travel & Subsistence,Investigations & Enforcement Services,Staff Payment,900005595,3.95,
BEIS,The Insolvency Service,02/01/2019,Travel & Subsistence,Investigations & Enforcement Services,Staff Payment,900005644,7.00,
BEIS,The Insolvency Service,02/01/2019,Travel & Subsistence,Investigations & Enforcement Services,Staff Payment,900005644,7.00,
BEIS,The Insolvency Service,02/01/2019,Travel & Subsistence,Investigations & Enforcement Services,Staff Payment,900005644,7.00,
BEIS,The Insolvency Service,02/01/2019,Travel & Subsistence,Investigations & Enforcement Services,Staff Payment,900005645,7.80,
BEIS,The Insolvency Service,02/01/2019,Travel & Subsistence,Investigations & Enforcement Services,Staff Payment,900005648,5.00,
BEIS,The Insolvency Service,02/01/2019,Travel & Subsistence,Investigations & Enforcement Services,Staff Payment,900005767,7.60,
BEIS,The Insolvency Service,02/01/2019,Travel & Subsistence,Official Receiver Services,Staff Payment,900005732,30.00,
BEIS,The Insolvency Service,02/01/2019,Travel & Subsistence,Official Receiver Services,Staff Payment,900005732,5.20,
BEIS,The Insolvency Service,02/01/2019,Travel & Subsistence,Official Receiver Services,Staff Payment,900005732,7.50,
BEIS,The Insolvency Service,02/01/2019,Travel & Subsistence,Official Receiver Services,Staff Payment,900005732,4.95,
BEIS,The Insolvency Service,02/01/2019,Travel & Subsistence,Official Receiver Services,Staff Payment,900005732,15.00,
BEIS,The Insolvency Service,02/01/2019,Travel & Subsistence,Official Receiver Services,Staff Payment,900005735,10.00,
BEIS,The Insolvency Service,02/01/2019,Travel & Subsistence,Official Receiver Services,Staff Payment,900005735,1.98,
BEIS,The Insolvency Service,02/01/2019,Travel & Subsistence,Official Receiver Services,Staff Payment,900005735,0.59,
BEIS,The Insolvency Service,02/01/2019,Travel & Subsistence,Official Receiver Services,Staff Payment,900005735,2.60,
BEIS,The Insolvency Service,02/01/2019,Travel & Subsistence,Official Receiver Services,Staff Payment,900005735,6.99,
BEIS,The Insolvency Service,02/01/2019,Travel & Subsistence,Official Receiver Services,Staff Payment,900005735,0.50,
BEIS,The Insolvency Service,02/01/2019,Travel & Subsistence,Official Receiver Services,Staff Payment,900005735,0.50,
BEIS,The Insolvency Service,02/01/2019,Travel & Subsistence,Official Receiver Services,Staff Payment,900005735,4.49,
BEIS,The Insolvency Service,02/01/2019,Travel & Subsistence,Business Service Division,Staff Payment,900005727,5.00,
BEIS,The Insolvency Service,02/01/2019,Travel & Subsistence,Business Service Division,Staff Payment,900005727,7.25,
BEIS,The Insolvency Service,02/01/2019,Travel & Subsistence,Business Service Division,Staff Payment,900005727,6.62,
BEIS,The Insolvency Service,02/01/2019,Travel & Subsistence,Business Service Division,Staff Payment,900005770,35.55,
BEIS,The Insolvency Service,02/01/2019,Travel & Subsistence,Business Service Division,Staff Payment,900005770,52.20,
BEIS,The Insolvency Service,02/01/2019,Travel & Subsistence,Business Service Division,Staff Payment,900005770,76.05,
BEIS,The Insolvency Service,02/01/2019,Travel & Subsistence,Business Service Division,Staff Payment,900005770,9.40,
BEIS,The Insolvency Service,02/01/2019,Travel & Subsistence,Business Service Division,Staff Payment,900005770,7.80,
BEIS,The Insolvency Service,02/01/2019,Travel & Subsistence,Business Service Division,Staff Payment,900005770,7.80,
BEIS,The Insolvency Service,02/01/2019,Travel & Subsistence,Business Service Division,Staff Payment,900005770,3.00,
BEIS,The Insolvency Service,02/01/2019,Travel & Subsistence,Business Service Division,Staff Payment,900005770,20.00,
BEIS,The Insolvency Service,02/01/2019,Travel & Subsistence,Business Service Division,Staff Payment,900005770,18.65,
BEIS,The Insolvency Service,02/01/2019,Travel & Subsistence,Business Service Division,Staff Payment,900005770,4.90,
BEIS,The Insolvency Service,02/01/2019,Travel & Subsistence,Business Service Division,Staff Payment,900005770,2.80,
BEIS,The Insolvency Service,02/01/2019,Travel & Subsistence,Business Service Division,Staff Payment,900005770,3.00,
BEIS,The Insolvency Service,02/01/2019,Travel & Subsistence,Investigations & Enforcement Services,Staff Payment,900005629,7.00,
BEIS,The Insolvency Service,02/01/2019,Travel & Subsistence,Official Receiver Services,Staff Payment,900005465,36.90,
BEIS,The Insolvency Service,02/01/2019,Travel & Subsistence,Official Receiver Services,Staff Payment,900005737,9.45,
BEIS,The Insolvency Service,02/01/2019,Travel & Subsistence,Official Receiver Services,Staff Payment,900005737,4.60,
BEIS,The Insolvency Service,02/01/2019,Travel & Subsistence,Official Receiver Services,Staff Payment,900005737,36.90,
BEIS,The Insolvency Service,02/01/2019,Travel & Subsistence,Official Receiver Services,Staff Payment,900005737,1.70,
BEIS,The Insolvency Service,02/01/2019,Travel & Subsistence,Investigations & Enforcement Services,Staff Payment,900005528,5.00,
BEIS,The Insolvency Service,02/01/2019,Travel & Subsistence,Investigations & Enforcement Services,Staff Payment,900005528,4.00,
BEIS,The Insolvency Service,02/01/2019,Travel & Subsistence,Investigations & Enforcement Services,Staff Payment,900005528,5.00,
BEIS,The Insolvency Service,02/01/2019,Travel & Subsistence,Investigations & Enforcement Services,Staff Payment,900005528,4.00,
BEIS,The Insolvency Service,02/01/2019,Travel & Subsistence,Investigations & Enforcement Services,Staff Payment,900005528,97.20,
BEIS,The Insolvency Service,02/01/2019,Travel & Subsistence,Investigations & Enforcement Services,Staff Payment,900005528,12.20,
BEIS,The Insolvency Service,02/01/2019,Travel & Subsistence,Investigations & Enforcement Services,Staff Payment,900005528,98.10,
BEIS,The Insolvency Service,02/01/2019,Travel & Subsistence,Investigations & Enforcement Services,Staff Payment,900005761,25.20,
BEIS,The Insolvency Service,02/01/2019,Travel & Subsistence,Investigations & Enforcement Services,Staff Payment,900005761,21.60,
BEIS,The Insolvency Service,02/01/2019,Travel & Subsistence,Investigations & Enforcement Services,Staff Payment,900005761,14.00,
BEIS,The Insolvency Service,02/01/2019,Travel & Subsistence,Investigations & Enforcement Services,Staff Payment,900005761,3.60,
BEIS,The Insolvency Service,02/01/2019,Travel & Subsistence,Investigations & Enforcement Services,Staff Payment,900005761,13.50,
BEIS,The Insolvency Service,02/01/2019,Travel & Subsistence,Investigations & Enforcement Services,Staff Payment,900005761,21.60,
BEIS,The Insolvency Service,02/01/2019,Travel & Subsistence,Investigations & Enforcement Services,Staff Payment,900005761,2.60,
BEIS,The Insolvency Service,02/01/2019,Travel & Subsistence,Investigations & Enforcement Services,Staff Payment,900005761,7.20,
BEIS,The Insolvency Service,02/01/2019,Travel & Subsistence,Investigations & Enforcement Services,Staff Payment,900005761,21.60,
BEIS,The Insolvency Service,02/01/2019,Travel & Subsistence,Investigations & Enforcement Services,Staff Payment,900005761,24.45,
BEIS,The Insolvency Service,02/01/2019,Travel & Subsistence,Investigations & Enforcement Services,Staff Payment,900005761,3.99,
BEIS,The Insolvency Service,02/01/2019,Travel & Subsistence,Investigations & Enforcement Services,Staff Payment,900005761,9.80,
BEIS,The Insolvency Service,02/01/2019,Travel & Subsistence,Investigations & Enforcement Services,Staff Payment,900005761,2.00,
BEIS,The Insolvency Service,02/01/2019,Travel & Subsistence,Investigations & Enforcement Services,Staff Payment,900005761,25.20,
BEIS,The Insolvency Service,02/01/2019,Travel & Subsistence,Investigations & Enforcement Services,Staff Payment,900005769,1.40,
BEIS,The Insolvency Service,02/01/2019,Travel & Subsistence,Investigations & Enforcement Services,Staff Payment,900005769,5.00,
BEIS,The Insolvency Service,02/01/2019,Travel & Subsistence,Investigations & Enforcement Services,Staff Payment,900005769,2.70,
BEIS,The Insolvency Service,02/01/2019,Travel & Subsistence,Investigations & Enforcement Services,Staff Payment,900005769,19.80,
BEIS,The Insolvency Service,02/01/2019,Travel & Subsistence,Investigations & Enforcement Services,Staff Payment,900005769,6.10,
BEIS,The Insolvency Service,02/01/2019,Travel & Subsistence,Investigations & Enforcement Services,Staff Payment,900005206,17.00,
BEIS,The Insolvency Service,02/01/2019,Travel & Subsistence,Investigations & Enforcement Services,Staff Payment,900005206,14.40,
BEIS,The Insolvency Service,02/01/2019,Travel & Subsistence,Investigations & Enforcement Services,Staff Payment,900005206,17.00,
BEIS,The Insolvency Service,02/01/2019,Travel & Subsistence,Investigations & Enforcement Services,Staff Payment,900005206,19.60,
BEIS,The Insolvency Service,02/01/2019,Travel & Subsistence,Investigations & Enforcement Services,Staff Payment,900005206,5.00,
BEIS,The Insolvency Service,02/01/2019,Travel & Subsistence,Investigations & Enforcement Services,Staff Payment,900005206,5.00,
BEIS,The Insolvency Service,02/01/2019,Travel & Subsistence,Investigations & Enforcement Services,Staff Payment,900005206,19.35,
BEIS,The Insolvency Service,02/01/2019,Travel & Subsistence,Investigations & Enforcement Services,Staff Payment,900005206,19.35,
BEIS,The Insolvency Service,02/01/2019,Travel & Subsistence,Investigations & Enforcement Services,Staff Payment,900005206,46.80,
BEIS,The Insolvency Service,02/01/2019,Travel & Subsistence,Investigations & Enforcement Services,Staff Payment,900005206,46.80,
BEIS,The Insolvency Service,02/01/2019,Travel & Subsistence,Official Receiver Services,Staff Payment,900005612,11.70,
BEIS,The Insolvency Service,02/01/2019,Travel & Subsistence,Official Receiver Services,Staff Payment,900005612,1.80,
BEIS,The Insolvency Service,02/01/2019,Travel & Subsistence,Investigations & Enforcement Services,Staff Payment,900005679,2.99,
BEIS,The Insolvency Service,02/01/2019,Travel & Subsistence,Investigations & Enforcement Services,Staff Payment,900005679,3.20,
BEIS,The Insolvency Service,02/01/2019,Investigation & Enforcement Costs,Official Receiver Services,Womble Bond Dickinson,300005127,28893.76,123392627
BEIS,The Insolvency Service,03/01/2019,Legal Costs,Legal Services Division,Government Legal Department,300005466,161.28,766793665
BEIS,The Insolvency Service,03/01/2019,Legal Costs,People & Capability,Government Legal Department,300005345,3476.50,766793665
BEIS,The Insolvency Service,03/01/2019,Legal Costs,People & Capability,Government Legal Department,300005346,267.70,766793665
BEIS,The Insolvency Service,03/01/2019,Agency Costs,Finance & Commercial,ALEXANDER MANN SOLUTIONS,300005442,38602.08,7444926120
BEIS,The Insolvency Service,03/01/2019,Investigation & Enforcement Costs,Official Receiver Services,Burness Paull & Williamsons Solicitors,300005261,31282.94,216218532
BEIS,The Insolvency Service,03/01/2019,Investigation & Enforcement Costs,Investigations & Enforcement Services,Burness Paull & Williamsons Solicitors,300005261,2035.23,216218532
BEIS,The Insolvency Service,03/01/2019,Investigation & Enforcement Costs,Investigations & Enforcement Services,Burness Paull & Williamsons Solicitors,300005261,463.00,216218532
BEIS,The Insolvency Service,03/01/2019,Legal Costs,Investigations & Enforcement Services,Burness Paull & Williamsons Solicitors,300005261,10192.79,216218532
BEIS,The Insolvency Service,03/01/2019,Legal Costs,Investigations & Enforcement Services,Burness Paull & Williamsons Solicitors,300005261,686.00,216218532
BEIS,The Insolvency Service,03/01/2019,Legal Costs,Investigations & Enforcement Services,Burness Paull & Williamsons Solicitors,300005261,6397.76,216218532
BEIS,The Insolvency Service,03/01/2019,Employee Related Costs,People & Capability,Duradiamond Healthcare Limited,300005377,961.51,806426440
BEIS,The Insolvency Service,03/01/2019,Employee Related Costs,People & Capability,Duradiamond Healthcare Limited,300005378,1738.09,806426440
BEIS,The Insolvency Service,03/01/2019,Training,Legal Services Division,Government Legal Department,300005469,458.90,888823066
BEIS,The Insolvency Service,03/01/2019,Training,People & Capability,KPMG LLP,300005293,110.00,791788859
BEIS,The Insolvency Service,03/01/2019,Training,People & Capability,KPMG LLP,300005432,4615.00,791788859
BEIS,The Insolvency Service,03/01/2019,Travel & Subsistence,Strategy & Change,Staff Payment,900005429,12.00,
BEIS,The Insolvency Service,03/01/2019,Travel & Subsistence,Business Service Division,Staff Payment,900005695,7.50,
BEIS,The Insolvency Service,03/01/2019,Travel & Subsistence,Business Service Division,Staff Payment,900005695,6.59,
BEIS,The Insolvency Service,03/01/2019,Travel & Subsistence,Business Service Division,Staff Payment,900005695,13.80,
BEIS,The Insolvency Service,03/01/2019,Travel & Subsistence,Business Service Division,Staff Payment,900005695,16.90,
BEIS,The Insolvency Service,03/01/2019,Travel & Subsistence,Business Service Division,Staff Payment,900005695,4.99,
BEIS,The Insolvency Service,03/01/2019,Travel & Subsistence,Business Service Division,Staff Payment,900005696,3.70,
BEIS,The Insolvency Service,03/01/2019,Travel & Subsistence,Strategy & Change,Staff Payment,900005251,5.00,
BEIS,The Insolvency Service,03/01/2019,Travel & Subsistence,Strategy & Change,Staff Payment,900005251,26.98,
BEIS,The Insolvency Service,03/01/2019,Travel & Subsistence,Strategy & Change,Staff Payment,900005251,10.00,
BEIS,The Insolvency Service,03/01/2019,Travel & Subsistence,Strategy & Change,Staff Payment,900005251,5.00,
BEIS,The Insolvency Service,03/01/2019,Travel & Subsistence,Strategy & Change,Staff Payment,900005615,5.00,
BEIS,The Insolvency Service,03/01/2019,Travel & Subsistence,Strategy & Change,Staff Payment,900005615,14.00,
BEIS,The Insolvency Service,03/01/2019,Travel & Subsistence,Strategy & Change,Staff Payment,900005615,21.10,
BEIS,The Insolvency Service,03/01/2019,Travel & Subsistence,Strategy & Change,Staff Payment,900005615,4.80,
BEIS,The Insolvency Service,03/01/2019,Travel & Subsistence,Strategy & Change,Staff Payment,900005616,9.60,
BEIS,The Insolvency Service,03/01/2019,Travel & Subsistence,Strategy & Change,Staff Payment,900005616,5.00,
BEIS,The Insolvency Service,03/01/2019,Travel & Subsistence,Strategy & Change,Staff Payment,900005616,10.75,
BEIS,The Insolvency Service,03/01/2019,Travel & Subsistence,Strategy & Change,Staff Payment,900005616,4.00,
BEIS,The Insolvency Service,03/01/2019,Travel & Subsistence,Strategy & Change,Staff Payment,900005616,10.00,
BEIS,The Insolvency Service,03/01/2019,Travel & Subsistence,Strategy & Change,Staff Payment,900005469,15.00,
BEIS,The Insolvency Service,03/01/2019,Travel & Subsistence,Strategy & Change,Staff Payment,900005469,4.80,
BEIS,The Insolvency Service,03/01/2019,Travel & Subsistence,Strategy & Change,Staff Payment,900005469,4.80,
BEIS,The Insolvency Service,03/01/2019,Travel & Subsistence,Strategy & Change,Staff Payment,900005469,6.28,
BEIS,The Insolvency Service,03/01/2019,Travel & Subsistence,Strategy & Change,Staff Payment,900005469,3.14,
BEIS,The Insolvency Service,03/01/2019,Travel & Subsistence,Strategy & Change,Staff Payment,900005469,10.00,
BEIS,The Insolvency Service,03/01/2019,Travel & Subsistence,Strategy & Change,Staff Payment,900005469,3.14,
BEIS,The Insolvency Service,03/01/2019,Travel & Subsistence,Strategy & Change,Staff Payment,900005469,3.14,
BEIS,The Insolvency Service,03/01/2019,Travel & Subsistence,Strategy & Change,Staff Payment,900005469,5.00,
BEIS,The Insolvency Service,03/01/2019,Travel & Subsistence,Strategy & Change,Staff Payment,900005469,15.00,
BEIS,The Insolvency Service,03/01/2019,Travel & Subsistence,Strategy & Change,Staff Payment,900005469,5.00,
BEIS,The Insolvency Service,03/01/2019,Travel & Subsistence,Strategy & Change,Staff Payment,900005469,3.14,
BEIS,The Insolvency Service,03/01/2019,Travel & Subsistence,Strategy & Change,Staff Payment,900005469,12.00,
BEIS,The Insolvency Service,03/01/2019,Travel & Subsistence,Strategy & Change,Staff Payment,900005469,24.00,
BEIS,The Insolvency Service,03/01/2019,Travel & Subsistence,Strategy & Change,Staff Payment,900005469,24.00,
BEIS,The Insolvency Service,03/01/2019,Travel & Subsistence,Strategy & Change,Staff Payment,900005469,12.00,
BEIS,The Insolvency Service,03/01/2019,Travel & Subsistence,Strategy & Change,Staff Payment,900005469,12.00,
BEIS,The Insolvency Service,03/01/2019,Travel & Subsistence,Strategy & Change,Staff Payment,900005469,14.40,
BEIS,The Insolvency Service,03/01/2019,Travel & Subsistence,Strategy & Change,Staff Payment,900005469,14.40,
BEIS,The Insolvency Service,03/01/2019,Travel & Subsistence,Strategy & Change,Staff Payment,900005469,28.80,
BEIS,The Insolvency Service,03/01/2019,Travel & Subsistence,Strategy & Change,Staff Payment,900005469,14.40,
BEIS,The Insolvency Service,03/01/2019,Travel & Subsistence,Strategy & Change,Staff Payment,900005469,7.20,
BEIS,The Insolvency Service,03/01/2019,Travel & Subsistence,Strategy & Change,Staff Payment,900005469,7.20,
BEIS,The Insolvency Service,03/01/2019,Travel & Subsistence,Strategy & Change,Staff Payment,900005601,24.00,
BEIS,The Insolvency Service,03/01/2019,Travel & Subsistence,Strategy & Change,Staff Payment,900005601,7.20,
BEIS,The Insolvency Service,03/01/2019,Travel & Subsistence,Strategy & Change,Staff Payment,900005601,7.20,
BEIS,The Insolvency Service,03/01/2019,Travel & Subsistence,Strategy & Change,Staff Payment,900005601,2.40,
BEIS,The Insolvency Service,03/01/2019,Travel & Subsistence,Strategy & Change,Staff Payment,900005601,15.00,
BEIS,The Insolvency Service,03/01/2019,Travel & Subsistence,Strategy & Change,Staff Payment,900005601,5.00,
BEIS,The Insolvency Service,03/01/2019,Travel & Subsistence,Strategy & Change,Staff Payment,900005601,10.00,
BEIS,The Insolvency Service,03/01/2019,Travel & Subsistence,Strategy & Change,Staff Payment,900005601,3.14,
BEIS,The Insolvency Service,03/01/2019,Travel & Subsistence,Investigations & Enforcement Services,Staff Payment,900005753,7.00,
BEIS,The Insolvency Service,03/01/2019,Travel & Subsistence,Business Service Division,Staff Payment,900005547,9.40,
BEIS,The Insolvency Service,03/01/2019,Travel & Subsistence,Business Service Division,Staff Payment,900005547,5.00,
BEIS,The Insolvency Service,03/01/2019,Travel & Subsistence,Business Service Division,Staff Payment,900005549,9.40,
BEIS,The Insolvency Service,03/01/2019,Travel & Subsistence,Business Service Division,Staff Payment,900005549,3.89,
BEIS,The Insolvency Service,03/01/2019,Travel & Subsistence,Business Service Division,Staff Payment,900005549,4.97,
BEIS,The Insolvency Service,03/01/2019,Travel & Subsistence,Business Service Division,Staff Payment,900005549,4.30,
BEIS,The Insolvency Service,03/01/2019,Travel & Subsistence,Official Receiver Services,Staff Payment,900005757,9.00,
BEIS,The Insolvency Service,03/01/2019,Travel & Subsistence,Official Receiver Services,Staff Payment,900005757,2.50,
BEIS,The Insolvency Service,03/01/2019,Travel & Subsistence,Official Receiver Services,Staff Payment,900005757,5.00,
BEIS,The Insolvency Service,03/01/2019,Travel & Subsistence,Investigations & Enforcement Services,Staff Payment,900005779,4.80,
BEIS,The Insolvency Service,03/01/2019,Travel & Subsistence,Investigations & Enforcement Services,Staff Payment,900005779,2.60,
BEIS,The Insolvency Service,03/01/2019,Travel & Subsistence,Investigations & Enforcement Services,Staff Payment,900005779,16.20,
BEIS,The Insolvency Service,03/01/2019,Travel & Subsistence,Investigations & Enforcement Services,Staff Payment,900005779,42.75,
BEIS,The Insolvency Service,03/01/2019,Travel & Subsistence,Investigations & Enforcement Services,Staff Payment,900005779,109.00,
BEIS,The Insolvency Service,03/01/2019,Travel & Subsistence,Investigations & Enforcement Services,Staff Payment,900005779,16.65,
BEIS,The Insolvency Service,03/01/2019,Travel & Subsistence,Investigations & Enforcement Services,Staff Payment,900005779,12.50,
BEIS,The Insolvency Service,03/01/2019,Travel & Subsistence,Investigations & Enforcement Services,Staff Payment,900005779,9.90,
BEIS,The Insolvency Service,03/01/2019,Travel & Subsistence,Investigations & Enforcement Services,Staff Payment,900005779,28.35,
BEIS,The Insolvency Service,03/01/2019,Travel & Subsistence,Investigations & Enforcement Services,Staff Payment,900005779,1.16,
BEIS,The Insolvency Service,03/01/2019,Travel & Subsistence,Investigations & Enforcement Services,Staff Payment,900005779,5.00,
BEIS,The Insolvency Service,03/01/2019,Travel & Subsistence,Investigations & Enforcement Services,Staff Payment,900005779,15.00,
BEIS,The Insolvency Service,03/01/2019,Travel & Subsistence,Investigations & Enforcement Services,Staff Payment,900005779,5.00,
BEIS,The Insolvency Service,03/01/2019,Travel & Subsistence,Investigations & Enforcement Services,Staff Payment,900005779,1.16,
BEIS,The Insolvency Service,03/01/2019,Travel & Subsistence,Investigations & Enforcement Services,Staff Payment,900005565,3.00,
BEIS,The Insolvency Service,03/01/2019,Travel & Subsistence,Investigations & Enforcement Services,Staff Payment,900005565,63.00,
BEIS,The Insolvency Service,03/01/2019,Travel & Subsistence,Investigations & Enforcement Services,Staff Payment,900005565,3.99,
BEIS,The Insolvency Service,03/01/2019,Travel & Subsistence,Investigations & Enforcement Services,Staff Payment,900005778,9.60,
BEIS,The Insolvency Service,03/01/2019,Travel & Subsistence,Investigations & Enforcement Services,Staff Payment,900005778,27.45,
BEIS,The Insolvency Service,03/01/2019,Travel & Subsistence,Investigations & Enforcement Services,Staff Payment,900005778,111.15,
BEIS,The Insolvency Service,03/01/2019,Travel & Subsistence,Investigations & Enforcement Services,Staff Payment,900005778,130.50,
BEIS,The Insolvency Service,03/01/2019,Travel & Subsistence,Investigations & Enforcement Services,Staff Payment,900005778,126.90,
BEIS,The Insolvency Service,03/01/2019,Travel & Subsistence,Investigations & Enforcement Services,Staff Payment,900005778,63.45,
BEIS,The Insolvency Service,03/01/2019,Insolvency Case Related Costs,Business Service Division,SUNDRY SUPPLIER,300005231,80.00,
BEIS,The Insolvency Service,03/01/2019,Insolvency Case Related Costs,Business Service Division,SUNDRY SUPPLIER,300005335,100.00,
BEIS,The Insolvency Service,04/01/2019,Legal Costs,Investigations & Enforcement Services,D.D. Passi Interpreters,300005489,177.20,
BEIS,The Insolvency Service,04/01/2019,Legal Costs,Investigations & Enforcement Services,Dains Forensic Llp,300005464,2415.00,
BEIS,The Insolvency Service,04/01/2019,Accomodation,Business Service Division,Exeter Locksmiths,300002890,72.00,7042704680
BEIS,The Insolvency Service,04/01/2019,Agency Costs,Finance & Commercial,Hays Specialist Recruitment Ltd,300005443,311.33,773695871
BEIS,The Insolvency Service,04/01/2019,Investigation & Enforcement Costs,Investigations & Enforcement Services,Howes Percival,300005472,7108.92,119523573
BEIS,The Insolvency Service,04/01/2019,Investigation & Enforcement Costs,Investigations & Enforcement Services,Howes Percival,300005472,322.00,119523573
BEIS,The Insolvency Service,04/01/2019,Legal Costs,Official Receiver Services,K International Plc,300005269,3085.60,600413800
BEIS,The Insolvency Service,04/01/2019,Legal Costs,Investigations & Enforcement Services,Mendip Media Group Ltd,300005483,934.56,609546425
BEIS,The Insolvency Service,04/01/2019,Legal Costs,Investigations & Enforcement Services,Mendip Media Group Ltd,300005484,128.30,609546425
BEIS,The Insolvency Service,04/01/2019,Legal Costs,Investigations & Enforcement Services,Mendip Media Group Ltd,300005485,437.39,609546425
BEIS,The Insolvency Service,04/01/2019,Legal Costs,Investigations & Enforcement Services,National Crime Agency,300005470,99.00,888849824
BEIS,The Insolvency Service,04/01/2019,Legal Costs,Investigations & Enforcement Services,Pitney Bowes - Purchasepower,300005457,7.58,
BEIS,The Insolvency Service,04/01/2019,Legal Costs,Investigations & Enforcement Services,Pitney Bowes Finance Limited,300005458,245.20,
BEIS,The Insolvency Service,04/01/2019,Legal Costs,Official Receiver Services,Pricewaterhouse Coopers LLP,300005374,437639.00,243823957
BEIS,The Insolvency Service,04/01/2019,Travel & Subsistence,Official Receiver Services,Staff Payment,900005454,1.80,
BEIS,The Insolvency Service,04/01/2019,Travel & Subsistence,Official Receiver Services,Staff Payment,900005454,23.40,
BEIS,The Insolvency Service,04/01/2019,Travel & Subsistence,Investigations & Enforcement Services,Staff Payment,900005384,5.00,
BEIS,The Insolvency Service,04/01/2019,Travel & Subsistence,Investigations & Enforcement Services,Staff Payment,900005384,6.20,
BEIS,The Insolvency Service,04/01/2019,Travel & Subsistence,Investigations & Enforcement Services,Staff Payment,900005384,54.00,
BEIS,The Insolvency Service,04/01/2019,Travel & Subsistence,Investigations & Enforcement Services,Staff Payment,900005384,36.90,
BEIS,The Insolvency Service,04/01/2019,Travel & Subsistence,Investigations & Enforcement Services,Staff Payment,900005811,5.00,
BEIS,The Insolvency Service,04/01/2019,Travel & Subsistence,Chief Executive Office,Staff Payment,900005589,5.00,
BEIS,The Insolvency Service,04/01/2019,Travel & Subsistence,Chief Executive Office,Staff Payment,900005589,15.00,
BEIS,The Insolvency Service,04/01/2019,Travel & Subsistence,Chief Executive Office,Staff Payment,900005589,5.00,
BEIS,The Insolvency Service,04/01/2019,Travel & Subsistence,Chief Executive Office,Staff Payment,900005589,14.00,
BEIS,The Insolvency Service,04/01/2019,Travel & Subsistence,Chief Executive Office,Staff Payment,900005594,8.20,
BEIS,The Insolvency Service,04/01/2019,Travel & Subsistence,Chief Executive Office,Staff Payment,900005594,5.00,
BEIS,The Insolvency Service,04/01/2019,Travel & Subsistence,Chief Executive Office,Staff Payment,900005594,15.00,
BEIS,The Insolvency Service,04/01/2019,Travel & Subsistence,Chief Executive Office,Staff Payment,900005594,2.95,
BEIS,The Insolvency Service,04/01/2019,Travel & Subsistence,Chief Executive Office,Staff Payment,900005663,4.45,
BEIS,The Insolvency Service,04/01/2019,Travel & Subsistence,People & Capability,Staff Payment,900005841,26.00,
BEIS,The Insolvency Service,04/01/2019,Travel & Subsistence,People & Capability,Staff Payment,900005841,26.00,
BEIS,The Insolvency Service,04/01/2019,Travel & Subsistence,People & Capability,Staff Payment,900005841,21.00,
BEIS,The Insolvency Service,04/01/2019,Travel & Subsistence,People & Capability,Staff Payment,900005841,15.00,
BEIS,The Insolvency Service,04/01/2019,Travel & Subsistence,People & Capability,Staff Payment,900005841,15.00,
BEIS,The Insolvency Service,04/01/2019,Travel & Subsistence,People & Capability,Staff Payment,900005841,15.00,
BEIS,The Insolvency Service,04/01/2019,Travel & Subsistence,Official Receiver Services,Staff Payment,900005781,73.17,
BEIS,The Insolvency Service,04/01/2019,Travel & Subsistence,Official Receiver Services,Staff Payment,900005781,71.46,
BEIS,The Insolvency Service,04/01/2019,Travel & Subsistence,Official Receiver Services,Staff Payment,900005782,5.00,
BEIS,The Insolvency Service,04/01/2019,Travel & Subsistence,Official Receiver Services,Staff Payment,900005786,15.00,
BEIS,The Insolvency Service,04/01/2019,Travel & Subsistence,Official Receiver Services,Staff Payment,900005786,5.00,
BEIS,The Insolvency Service,04/01/2019,Travel & Subsistence,Official Receiver Services,Staff Payment,900005787,5.00,
BEIS,The Insolvency Service,04/01/2019,Travel & Subsistence,Official Receiver Services,Staff Payment,900005788,15.00,
BEIS,The Insolvency Service,04/01/2019,Travel & Subsistence,Official Receiver Services,Staff Payment,900005788,5.00,
BEIS,The Insolvency Service,04/01/2019,Travel & Subsistence,Official Receiver Services,Staff Payment,900005789,5.00,
BEIS,The Insolvency Service,04/01/2019,Travel & Subsistence,Official Receiver Services,Staff Payment,900005790,15.00,
BEIS,The Insolvency Service,04/01/2019,Travel & Subsistence,Official Receiver Services,Staff Payment,900005790,5.00,
BEIS,The Insolvency Service,04/01/2019,Travel & Subsistence,Official Receiver Services,Staff Payment,900005791,5.00,
BEIS,The Insolvency Service,04/01/2019,Travel & Subsistence,Official Receiver Services,Staff Payment,900005793,80.91,
BEIS,The Insolvency Service,04/01/2019,Travel & Subsistence,Official Receiver Services,Staff Payment,900005793,80.91,
BEIS,The Insolvency Service,04/01/2019,Travel & Subsistence,Official Receiver Services,Staff Payment,900005793,12.03,
BEIS,The Insolvency Service,04/01/2019,Travel & Subsistence,Official Receiver Services,Staff Payment,900005793,12.03,
BEIS,The Insolvency Service,04/01/2019,Travel & Subsistence,Official Receiver Services,Staff Payment,900005793,79.97,
BEIS,The Insolvency Service,04/01/2019,Travel & Subsistence,Official Receiver Services,Staff Payment,900005793,79.97,
BEIS,The Insolvency Service,04/01/2019,Travel & Subsistence,Official Receiver Services,Staff Payment,900005794,32.40,
BEIS,The Insolvency Service,04/01/2019,Travel & Subsistence,Official Receiver Services,Staff Payment,900005795,3.85,
BEIS,The Insolvency Service,04/01/2019,Travel & Subsistence,Official Receiver Services,Staff Payment,900005796,5.00,
BEIS,The Insolvency Service,04/01/2019,Travel & Subsistence,Official Receiver Services,Staff Payment,900005797,15.00,
BEIS,The Insolvency Service,04/01/2019,Travel & Subsistence,Official Receiver Services,Staff Payment,900005797,5.00,
BEIS,The Insolvency Service,04/01/2019,Travel & Subsistence,Official Receiver Services,Staff Payment,900005798,5.00,
BEIS,The Insolvency Service,04/01/2019,Travel & Subsistence,Official Receiver Services,Staff Payment,900005799,15.00,
BEIS,The Insolvency Service,04/01/2019,Travel & Subsistence,Official Receiver Services,Staff Payment,900005799,5.00,
BEIS,The Insolvency Service,04/01/2019,Travel & Subsistence,Official Receiver Services,Staff Payment,900005800,4.25,
BEIS,The Insolvency Service,04/01/2019,Travel & Subsistence,Official Receiver Services,Staff Payment,900005801,15.00,
BEIS,The Insolvency Service,04/01/2019,Travel & Subsistence,Official Receiver Services,Staff Payment,900005801,5.00,
BEIS,The Insolvency Service,04/01/2019,Travel & Subsistence,Official Receiver Services,Staff Payment,900005802,4.50,
BEIS,The Insolvency Service,04/01/2019,Travel & Subsistence,Official Receiver Services,Staff Payment,900005803,15.00,
BEIS,The Insolvency Service,04/01/2019,Travel & Subsistence,Official Receiver Services,Staff Payment,900005803,5.00,
BEIS,The Insolvency Service,04/01/2019,Travel & Subsistence,Official Receiver Services,Staff Payment,900005804,3.60,
BEIS,The Insolvency Service,04/01/2019,Travel & Subsistence,Official Receiver Services,Staff Payment,900005805,5.00,
BEIS,The Insolvency Service,04/01/2019,Travel & Subsistence,Official Receiver Services,Staff Payment,900005806,3.61,
BEIS,The Insolvency Service,04/01/2019,Travel & Subsistence,Official Receiver Services,Staff Payment,900005807,3.61,
BEIS,The Insolvency Service,04/01/2019,Travel & Subsistence,Official Receiver Services,Staff Payment,900005808,2.31,
BEIS,The Insolvency Service,04/01/2019,Travel & Subsistence,Official Receiver Services,Staff Payment,900005809,3.31,
BEIS,The Insolvency Service,04/01/2019,Legal Costs,Business Service Division,SUNDRY SUPPLIER,300005191,1200.00,
BEIS,The Insolvency Service,04/01/2019,Computer & IT Systems,Information & Technology,Trustmarque Solutions Ltd,300005438,3325.30,727348615
BEIS,The Insolvency Service,04/01/2019,Computer & IT Systems,Information & Technology,Trustmarque Solutions Ltd,300005439,573.83,727348615
BEIS,The Insolvency Service,07/01/2019,Employee Related Costs,People & Capability,St John Ambulance,300005540,162.00,564883916
BEIS,The Insolvency Service,07/01/2019,Legal Costs,Legal Services Division,7 Harrington Street Chambers,300005468,4803.77,733067446
BEIS,The Insolvency Service,07/01/2019,Printing & Stationary,People & Capability,Allied Publicity Services (Manchester) Ltd T/A Aps Group,300005317,3168.53,146494152
BEIS,The Insolvency Service,07/01/2019,Accomodation,Finance & Commercial,Avison Young,300005506,5025.60,657719590
BEIS,The Insolvency Service,07/01/2019,Accomodation,Finance & Commercial,Avison Young,300005507,218721.90,657719590
BEIS,The Insolvency Service,07/01/2019,Computer & IT Systems,Finance & Commercial,BiP Solutions Ltd,300004845,9024.00,
BEIS,The Insolvency Service,07/01/2019,Agency Costs,Finance & Commercial,Insight Executive Group Limited,300005492,4347.00,204262647
BEIS,The Insolvency Service,07/01/2019,Legal Costs,Investigations & Enforcement Services,Mendip Media Group Ltd,300005428,191.66,609546425
BEIS,The Insolvency Service,07/01/2019,Legal Costs,Investigations & Enforcement Services,Mendip Media Group Ltd,300005429,200.30,609546425
BEIS,The Insolvency Service,07/01/2019,Travel & Subsistence,Investigations & Enforcement Services,Staff Payment,900005521,4.50,
BEIS,The Insolvency Service,07/01/2019,Travel & Subsistence,Investigations & Enforcement Services,Staff Payment,900005521,5.00,
BEIS,The Insolvency Service,07/01/2019,Travel & Subsistence,Investigations & Enforcement Services,Staff Payment,900005521,7.50,
BEIS,The Insolvency Service,07/01/2019,Travel & Subsistence,Official Receiver Services,Staff Payment,900005773,246.00,
BEIS,The Insolvency Service,07/01/2019,Travel & Subsistence,Official Receiver Services,Staff Payment,900005774,4.80,
BEIS,The Insolvency Service,07/01/2019,Travel & Subsistence,Official Receiver Services,Staff Payment,900005765,15.30,
BEIS,The Insolvency Service,07/01/2019,Travel & Subsistence,Official Receiver Services,Staff Payment,900005766,15.30,
BEIS,The Insolvency Service,07/01/2019,Travel & Subsistence,Investigations & Enforcement Services,Staff Payment,900005834,246.00,
BEIS,The Insolvency Service,07/01/2019,Travel & Subsistence,Official Receiver Services,Staff Payment,900005853,5.00,
BEIS,The Insolvency Service,07/01/2019,Travel & Subsistence,Official Receiver Services,Staff Payment,900005854,5.00,
BEIS,The Insolvency Service,07/01/2019,Travel & Subsistence,Strategy & Change,Staff Payment,900005683,12.70,
BEIS,The Insolvency Service,07/01/2019,Travel & Subsistence,Strategy & Change,Staff Payment,900005683,4.30,
BEIS,The Insolvency Service,07/01/2019,Travel & Subsistence,Strategy & Change,Staff Payment,900005683,1.90,
BEIS,The Insolvency Service,07/01/2019,Travel & Subsistence,Strategy & Change,Staff Payment,900005683,5.00,
BEIS,The Insolvency Service,07/01/2019,Travel & Subsistence,Strategy & Change,Staff Payment,900005763,3.60,
BEIS,The Insolvency Service,07/01/2019,Travel & Subsistence,Finance & Commercial,Staff Payment,900005847,40.00,
BEIS,The Insolvency Service,07/01/2019,Travel & Subsistence,Finance & Commercial,Staff Payment,900005847,191.80,
BEIS,The Insolvency Service,07/01/2019,Travel & Subsistence,Finance & Commercial,Staff Payment,900005847,18.00,
BEIS,The Insolvency Service,07/01/2019,Travel & Subsistence,Finance & Commercial,Staff Payment,900005848,32.00,
BEIS,The Insolvency Service,07/01/2019,Travel & Subsistence,Finance & Commercial,Staff Payment,900005848,153.50,
BEIS,The Insolvency Service,07/01/2019,Travel & Subsistence,Finance & Commercial,Staff Payment,900005848,6.10,
BEIS,The Insolvency Service,07/01/2019,Travel & Subsistence,Finance & Commercial,Staff Payment,900005848,18.00,
BEIS,The Insolvency Service,07/01/2019,Travel & Subsistence,Investigations & Enforcement Services,Staff Payment,900005829,22.80,
BEIS,The Insolvency Service,07/01/2019,Travel & Subsistence,Investigations & Enforcement Services,Staff Payment,900005829,22.80,
BEIS,The Insolvency Service,07/01/2019,Travel & Subsistence,Investigations & Enforcement Services,Staff Payment,900005829,1.77,
BEIS,The Insolvency Service,07/01/2019,Travel & Subsistence,Investigations & Enforcement Services,Staff Payment,900005829,3.25,
BEIS,The Insolvency Service,07/01/2019,Travel & Subsistence,Investigations & Enforcement Services,Staff Payment,900005829,10.72,
BEIS,The Insolvency Service,07/01/2019,Travel & Subsistence,Investigations & Enforcement Services,Staff Payment,900005829,8.00,
BEIS,The Insolvency Service,07/01/2019,Travel & Subsistence,Investigations & Enforcement Services,Staff Payment,900005829,5.00,
BEIS,The Insolvency Service,07/01/2019,Travel & Subsistence,Investigations & Enforcement Services,Staff Payment,900005829,1.77,
BEIS,The Insolvency Service,07/01/2019,Travel & Subsistence,Investigations & Enforcement Services,Staff Payment,900005829,3.15,
BEIS,The Insolvency Service,07/01/2019,Travel & Subsistence,Investigations & Enforcement Services,Staff Payment,900005855,89.10,
BEIS,The Insolvency Service,07/01/2019,Travel & Subsistence,Investigations & Enforcement Services,Staff Payment,900005855,89.10,
BEIS,The Insolvency Service,07/01/2019,Travel & Subsistence,Investigations & Enforcement Services,Staff Payment,900005855,15.00,
BEIS,The Insolvency Service,07/01/2019,Travel & Subsistence,Investigations & Enforcement Services,Staff Payment,900005855,5.00,
BEIS,The Insolvency Service,07/01/2019,Travel & Subsistence,Investigations & Enforcement Services,Staff Payment,900005855,5.00,
BEIS,The Insolvency Service,07/01/2019,Travel & Subsistence,Investigations & Enforcement Services,Staff Payment,900005855,14.10,
BEIS,The Insolvency Service,07/01/2019,Travel & Subsistence,Investigations & Enforcement Services,Staff Payment,900005855,14.40,
BEIS,The Insolvency Service,07/01/2019,Travel & Subsistence,Official Receiver Services,Staff Payment,900005604,3.00,
BEIS,The Insolvency Service,07/01/2019,Travel & Subsistence,Official Receiver Services,Staff Payment,900005604,25.00,
BEIS,The Insolvency Service,07/01/2019,Travel & Subsistence,Official Receiver Services,Staff Payment,900005604,5.00,
BEIS,The Insolvency Service,07/01/2019,Travel & Subsistence,Official Receiver Services,Staff Payment,900005604,10.40,
BEIS,The Insolvency Service,07/01/2019,Travel & Subsistence,Official Receiver Services,Staff Payment,900005604,11.98,
BEIS,The Insolvency Service,07/01/2019,Travel & Subsistence,Official Receiver Services,Staff Payment,900005604,4.80,
BEIS,The Insolvency Service,07/01/2019,Travel & Subsistence,Official Receiver Services,Staff Payment,900005604,12.55,
BEIS,The Insolvency Service,07/01/2019,Travel & Subsistence,Official Receiver Services,Staff Payment,900005604,7.40,
BEIS,The Insolvency Service,07/01/2019,Travel & Subsistence,Official Receiver Services,Staff Payment,900005604,6.00,
BEIS,The Insolvency Service,07/01/2019,Travel & Subsistence,Official Receiver Services,Staff Payment,900005604,8.00,
BEIS,The Insolvency Service,07/01/2019,Insolvency Case Related Costs,Official Receiver Services,The Stationery Office Ltd,300005347,74.58,662774703
BEIS,The Insolvency Service,07/01/2019,Insolvency Case Related Costs,Official Receiver Services,The Stationery Office Ltd,300005348,74.58,662774703
BEIS,The Insolvency Service,07/01/2019,Insolvency Case Related Costs,Official Receiver Services,The Stationery Office Ltd,300005349,223.74,662774703
BEIS,The Insolvency Service,07/01/2019,Insolvency Case Related Costs,Official Receiver Services,The Stationery Office Ltd,300005350,149.16,662774703
BEIS,The Insolvency Service,07/01/2019,Insolvency Case Related Costs,Official Receiver Services,The Stationery Office Ltd,300005351,74.58,662774703
BEIS,The Insolvency Service,07/01/2019,Insolvency Case Related Costs,Official Receiver Services,The Stationery Office Ltd,300005352,149.16,662774703
BEIS,The Insolvency Service,07/01/2019,Insolvency Case Related Costs,Official Receiver Services,The Stationery Office Ltd,300005353,74.58,662774703
BEIS,The Insolvency Service,07/01/2019,Insolvency Case Related Costs,Official Receiver Services,The Stationery Office Ltd,300005354,149.16,662774703
BEIS,The Insolvency Service,07/01/2019,Legal Costs,Investigations & Enforcement Services,The Stationery Office Ltd,300005554,57.80,662774703
BEIS,The Insolvency Service,07/01/2019,Computer & IT Systems,Information & Technology,Trustmarque Solutions Ltd,300005441,1267.28,727348615
BEIS,The Insolvency Service,08/01/2019,Training,People & Capability,Capita Business Services Limited,300005486,941.16,618184140
BEIS,The Insolvency Service,08/01/2019,Training,People & Capability,Capita Business Services Limited,300005487,4802.06,618184140
BEIS,The Insolvency Service,08/01/2019,Agency Costs,Information & Technology,Concept Information Technology Ltd,300005545,2550.00,776147892
BEIS,The Insolvency Service,08/01/2019,Insolvency Case Related Costs,Finance & Commercial,Hmrc,300005556,160.29,
BEIS,The Insolvency Service,08/01/2019,Training,Business Service Division,KPMG LLP,300005539,299.00,791788859
BEIS,The Insolvency Service,08/01/2019,Accomodation,Investigations & Enforcement Services,Posturite (Uk) Ltd.,300005535,30.49,583565114
BEIS,The Insolvency Service,08/01/2019,Accomodation,Finance & Commercial,Prydis Support Ltd,300005538,13985.02,974841283
BEIS,The Insolvency Service,08/01/2019,Agency Costs,Finance & Commercial,SF RECRUITMENT LTD,300005461,846.76,141965992
BEIS,The Insolvency Service,08/01/2019,Travel & Subsistence,Investigations & Enforcement Services,Staff Payment,900005539,5.00,
BEIS,The Insolvency Service,08/01/2019,Travel & Subsistence,Investigations & Enforcement Services,Staff Payment,900005539,5.00,
BEIS,The Insolvency Service,08/01/2019,Travel & Subsistence,Investigations & Enforcement Services,Staff Payment,900005539,10.00,
BEIS,The Insolvency Service,08/01/2019,Travel & Subsistence,Investigations & Enforcement Services,Staff Payment,900005539,5.00,
BEIS,The Insolvency Service,08/01/2019,Travel & Subsistence,Official Receiver Services,Staff Payment,900005439,5.00,
BEIS,The Insolvency Service,08/01/2019,Travel & Subsistence,Official Receiver Services,Staff Payment,900005440,12.60,
BEIS,The Insolvency Service,08/01/2019,Travel & Subsistence,Official Receiver Services,Staff Payment,900005440,2.20,
BEIS,The Insolvency Service,08/01/2019,Travel & Subsistence,Official Receiver Services,Staff Payment,900005440,1.80,
BEIS,The Insolvency Service,08/01/2019,Travel & Subsistence,Investigations & Enforcement Services,Staff Payment,900005308,4.80,
BEIS,The Insolvency Service,08/01/2019,Travel & Subsistence,Investigations & Enforcement Services,Staff Payment,900005308,5.00,
BEIS,The Insolvency Service,08/01/2019,Travel & Subsistence,Investigations & Enforcement Services,Staff Payment,900005308,5.00,
BEIS,The Insolvency Service,08/01/2019,Travel & Subsistence,Investigations & Enforcement Services,Staff Payment,900005308,5.00,
BEIS,The Insolvency Service,08/01/2019,Travel & Subsistence,Investigations & Enforcement Services,Staff Payment,900005308,5.00,
BEIS,The Insolvency Service,08/01/2019,Travel & Subsistence,Investigations & Enforcement Services,Staff Payment,900005308,12.00,
BEIS,The Insolvency Service,08/01/2019,Travel & Subsistence,Investigations & Enforcement Services,Staff Payment,900005450,7.00,
BEIS,The Insolvency Service,08/01/2019,Travel & Subsistence,Investigations & Enforcement Services,Staff Payment,900005891,77.00,
BEIS,The Insolvency Service,08/01/2019,Travel & Subsistence,Investigations & Enforcement Services,Staff Payment,900005894,246.00,
BEIS,The Insolvency Service,08/01/2019,Travel & Subsistence,Investigations & Enforcement Services,Staff Payment,900005728,10.00,
BEIS,The Insolvency Service,08/01/2019,Travel & Subsistence,Investigations & Enforcement Services,Staff Payment,900005728,44.00,
BEIS,The Insolvency Service,08/01/2019,Travel & Subsistence,Investigations & Enforcement Services,Staff Payment,900005133,10.00,
BEIS,The Insolvency Service,08/01/2019,Travel & Subsistence,Strategy & Change,Staff Payment,900005133,40.00,
BEIS,The Insolvency Service,08/01/2019,Travel & Subsistence,Investigations & Enforcement Services,Staff Payment,900005133,10.00,
BEIS,The Insolvency Service,08/01/2019,Travel & Subsistence,Strategy & Change,Staff Payment,900005827,23.60,
BEIS,The Insolvency Service,08/01/2019,Travel & Subsistence,Strategy & Change,Staff Payment,900005827,49.89,
BEIS,The Insolvency Service,08/01/2019,Travel & Subsistence,Strategy & Change,Staff Payment,900005827,30.00,
BEIS,The Insolvency Service,08/01/2019,Travel & Subsistence,Strategy & Change,Staff Payment,900005827,15.00,
BEIS,The Insolvency Service,08/01/2019,Travel & Subsistence,Strategy & Change,Staff Payment,900005827,11.60,
BEIS,The Insolvency Service,08/01/2019,Travel & Subsistence,Strategy & Change,Staff Payment,900005827,11.60,
BEIS,The Insolvency Service,08/01/2019,Travel & Subsistence,Strategy & Change,Staff Payment,900005827,6.80,
BEIS,The Insolvency Service,08/01/2019,Travel & Subsistence,Strategy & Change,Staff Payment,900005827,4.80,
BEIS,The Insolvency Service,08/01/2019,Travel & Subsistence,Strategy & Change,Staff Payment,900005827,6.80,
BEIS,The Insolvency Service,08/01/2019,Travel & Subsistence,Strategy & Change,Staff Payment,900005827,5.30,
BEIS,The Insolvency Service,08/01/2019,Travel & Subsistence,Strategy & Change,Staff Payment,900005827,5.30,
BEIS,The Insolvency Service,08/01/2019,Travel & Subsistence,People & Capability,Staff Payment,900005470,4.45,
BEIS,The Insolvency Service,08/01/2019,Travel & Subsistence,People & Capability,Staff Payment,900005470,9.40,
BEIS,The Insolvency Service,08/01/2019,Travel & Subsistence,People & Capability,Staff Payment,900005470,5.00,
BEIS,The Insolvency Service,08/01/2019,Travel & Subsistence,People & Capability,Staff Payment,900005470,5.00,
BEIS,The Insolvency Service,08/01/2019,Travel & Subsistence,Investigations & Enforcement Services,Staff Payment,900005842,285.00,
BEIS,The Insolvency Service,08/01/2019,Travel & Subsistence,Investigations & Enforcement Services,Staff Payment,900005494,13.50,
BEIS,The Insolvency Service,08/01/2019,Travel & Subsistence,Official Receiver Services,Staff Payment,900005577,4.20,
BEIS,The Insolvency Service,08/01/2019,Travel & Subsistence,Official Receiver Services,Staff Payment,900005577,58.05,
BEIS,The Insolvency Service,08/01/2019,Travel & Subsistence,Official Receiver Services,Staff Payment,900005577,3.00,
BEIS,The Insolvency Service,08/01/2019,Travel & Subsistence,Business Service Division,Staff Payment,900005845,2.25,
BEIS,The Insolvency Service,08/01/2019,Travel & Subsistence,Business Service Division,Staff Payment,900005845,2.25,
BEIS,The Insolvency Service,08/01/2019,Travel & Subsistence,Business Service Division,Staff Payment,900005845,2.50,
BEIS,The Insolvency Service,08/01/2019,Travel & Subsistence,Business Service Division,Staff Payment,900005845,2.50,
BEIS,The Insolvency Service,08/01/2019,Travel & Subsistence,Business Service Division,Staff Payment,900005846,72.00,
BEIS,The Insolvency Service,08/01/2019,Travel & Subsistence,Business Service Division,Staff Payment,900005846,12.00,
BEIS,The Insolvency Service,08/01/2019,Travel & Subsistence,Business Service Division,Staff Payment,900005846,72.00,
BEIS,The Insolvency Service,08/01/2019,Travel & Subsistence,Business Service Division,Staff Payment,900005846,4.48,
BEIS,The Insolvency Service,08/01/2019,Travel & Subsistence,Business Service Division,Staff Payment,900005846,15.00,
BEIS,The Insolvency Service,08/01/2019,Travel & Subsistence,Business Service Division,Staff Payment,900005846,5.00,
BEIS,The Insolvency Service,08/01/2019,Travel & Subsistence,Business Service Division,Staff Payment,900005846,5.00,
BEIS,The Insolvency Service,08/01/2019,Travel & Subsistence,Investigations & Enforcement Services,Staff Payment,900005812,12.50,
BEIS,The Insolvency Service,08/01/2019,Travel & Subsistence,Official Receiver Services,Staff Payment,900005857,10.00,
BEIS,The Insolvency Service,08/01/2019,Travel & Subsistence,Official Receiver Services,Staff Payment,900005857,12.40,
BEIS,The Insolvency Service,08/01/2019,Travel & Subsistence,Investigations & Enforcement Services,Staff Payment,900005875,9.00,
BEIS,The Insolvency Service,08/01/2019,Travel & Subsistence,Investigations & Enforcement Services,Staff Payment,900005875,12.00,
BEIS,The Insolvency Service,08/01/2019,Travel & Subsistence,Investigations & Enforcement Services,Staff Payment,900005875,4.80,
BEIS,The Insolvency Service,08/01/2019,Travel & Subsistence,Investigations & Enforcement Services,Staff Payment,900005875,3.28,
BEIS,The Insolvency Service,08/01/2019,Travel & Subsistence,Investigations & Enforcement Services,Staff Payment,900005875,2.90,
BEIS,The Insolvency Service,08/01/2019,Travel & Subsistence,Strategy & Change,Staff Payment,900005202,5.00,
BEIS,The Insolvency Service,08/01/2019,Travel & Subsistence,Strategy & Change,Staff Payment,900005202,3.00,
BEIS,The Insolvency Service,08/01/2019,Travel & Subsistence,Strategy & Change,Staff Payment,900005202,2.30,
BEIS,The Insolvency Service,08/01/2019,Travel & Subsistence,Investigations & Enforcement Services,Staff Payment,900005777,7.10,
BEIS,The Insolvency Service,08/01/2019,Travel & Subsistence,Investigations & Enforcement Services,Staff Payment,900005777,4.20,
BEIS,The Insolvency Service,08/01/2019,Travel & Subsistence,Investigations & Enforcement Services,Staff Payment,900005777,9.00,
BEIS,The Insolvency Service,08/01/2019,Travel & Subsistence,Investigations & Enforcement Services,Staff Payment,900005777,4.20,
BEIS,The Insolvency Service,08/01/2019,Travel & Subsistence,Investigations & Enforcement Services,Staff Payment,900005858,4.45,
BEIS,The Insolvency Service,08/01/2019,Travel & Subsistence,Investigations & Enforcement Services,Staff Payment,900005850,5.00,
BEIS,The Insolvency Service,08/01/2019,Travel & Subsistence,Investigations & Enforcement Services,Staff Payment,900005850,15.00,
BEIS,The Insolvency Service,08/01/2019,Travel & Subsistence,Investigations & Enforcement Services,Staff Payment,900005850,5.00,
BEIS,The Insolvency Service,08/01/2019,Travel & Subsistence,Investigations & Enforcement Services,Staff Payment,900005850,5.00,
BEIS,The Insolvency Service,08/01/2019,Travel & Subsistence,Investigations & Enforcement Services,Staff Payment,900005850,2.90,
BEIS,The Insolvency Service,08/01/2019,Travel & Subsistence,Investigations & Enforcement Services,Staff Payment,900005850,74.70,
BEIS,The Insolvency Service,08/01/2019,Travel & Subsistence,Investigations & Enforcement Services,Staff Payment,900005850,4.00,
BEIS,The Insolvency Service,08/01/2019,Travel & Subsistence,Investigations & Enforcement Services,Staff Payment,900005850,75.15,
BEIS,The Insolvency Service,08/01/2019,Travel & Subsistence,Investigations & Enforcement Services,Staff Payment,900005859,13.50,
BEIS,The Insolvency Service,08/01/2019,Travel & Subsistence,Investigations & Enforcement Services,Staff Payment,900005859,12.50,
BEIS,The Insolvency Service,08/01/2019,Travel & Subsistence,Investigations & Enforcement Services,Staff Payment,900005768,4.20,
BEIS,The Insolvency Service,08/01/2019,Travel & Subsistence,Investigations & Enforcement Services,Staff Payment,900005768,2.95,
BEIS,The Insolvency Service,08/01/2019,Travel & Subsistence,Investigations & Enforcement Services,Staff Payment,900005768,7.30,
BEIS,The Insolvency Service,08/01/2019,Travel & Subsistence,Investigations & Enforcement Services,Staff Payment,900005768,5.00,
BEIS,The Insolvency Service,08/01/2019,Travel & Subsistence,Investigations & Enforcement Services,Staff Payment,900005768,5.00,
BEIS,The Insolvency Service,08/01/2019,Travel & Subsistence,Investigations & Enforcement Services,Staff Payment,900005768,5.00,
BEIS,The Insolvency Service,08/01/2019,Travel & Subsistence,Investigations & Enforcement Services,Staff Payment,900005768,5.00,
BEIS,The Insolvency Service,08/01/2019,Travel & Subsistence,Investigations & Enforcement Services,Staff Payment,900005768,5.00,
BEIS,The Insolvency Service,08/01/2019,Travel & Subsistence,Investigations & Enforcement Services,Staff Payment,900005768,3.00,
BEIS,The Insolvency Service,08/01/2019,Travel & Subsistence,Investigations & Enforcement Services,Staff Payment,900005768,5.00,
BEIS,The Insolvency Service,08/01/2019,Travel & Subsistence,Investigations & Enforcement Services,Staff Payment,900005768,5.00,
BEIS,The Insolvency Service,08/01/2019,Travel & Subsistence,Investigations & Enforcement Services,Staff Payment,900005768,7.00,
BEIS,The Insolvency Service,08/01/2019,Travel & Subsistence,Investigations & Enforcement Services,Staff Payment,900005768,90.00,
BEIS,The Insolvency Service,08/01/2019,Travel & Subsistence,Investigations & Enforcement Services,Staff Payment,900005768,11.00,
BEIS,The Insolvency Service,08/01/2019,Travel & Subsistence,Investigations & Enforcement Services,Staff Payment,900005768,8.50,
BEIS,The Insolvency Service,08/01/2019,Travel & Subsistence,Investigations & Enforcement Services,Staff Payment,900005768,18.00,
BEIS,The Insolvency Service,08/01/2019,Travel & Subsistence,Investigations & Enforcement Services,Staff Payment,900005768,15.00,
BEIS,The Insolvency Service,08/01/2019,Travel & Subsistence,Investigations & Enforcement Services,Staff Payment,900005768,1.00,
BEIS,The Insolvency Service,08/01/2019,Travel & Subsistence,Investigations & Enforcement Services,Staff Payment,900005768,9.90,
BEIS,The Insolvency Service,08/01/2019,Travel & Subsistence,Investigations & Enforcement Services,Staff Payment,900005768,17.10,
BEIS,The Insolvency Service,08/01/2019,Travel & Subsistence,Investigations & Enforcement Services,Staff Payment,900005768,3.00,
BEIS,The Insolvency Service,08/01/2019,Travel & Subsistence,Investigations & Enforcement Services,Staff Payment,900005768,8.50,
BEIS,The Insolvency Service,08/01/2019,Travel & Subsistence,Investigations & Enforcement Services,Staff Payment,900005768,15.00,
BEIS,The Insolvency Service,08/01/2019,Travel & Subsistence,Investigations & Enforcement Services,Staff Payment,900005768,15.00,
BEIS,The Insolvency Service,08/01/2019,Travel & Subsistence,Investigations & Enforcement Services,Staff Payment,900005768,17.10,
BEIS,The Insolvency Service,08/01/2019,Travel & Subsistence,Investigations & Enforcement Services,Staff Payment,900005768,3.00,
BEIS,The Insolvency Service,08/01/2019,Travel & Subsistence,Investigations & Enforcement Services,Staff Payment,900005768,17.10,
BEIS,The Insolvency Service,08/01/2019,Travel & Subsistence,Investigations & Enforcement Services,Staff Payment,900005768,3.00,
BEIS,The Insolvency Service,08/01/2019,Travel & Subsistence,Investigations & Enforcement Services,Staff Payment,900005768,3.60,
BEIS,The Insolvency Service,08/01/2019,Travel & Subsistence,Investigations & Enforcement Services,Staff Payment,900005768,3.60,
BEIS,The Insolvency Service,08/01/2019,Travel & Subsistence,Investigations & Enforcement Services,Staff Payment,900005768,7.20,
BEIS,The Insolvency Service,08/01/2019,Travel & Subsistence,Investigations & Enforcement Services,Staff Payment,900005826,4.40,
BEIS,The Insolvency Service,08/01/2019,Travel & Subsistence,Investigations & Enforcement Services,Staff Payment,900005826,5.00,
BEIS,The Insolvency Service,08/01/2019,Travel & Subsistence,Investigations & Enforcement Services,Staff Payment,900005826,5.00,
BEIS,The Insolvency Service,08/01/2019,Travel & Subsistence,Investigations & Enforcement Services,Staff Payment,900005826,14.85,
BEIS,The Insolvency Service,08/01/2019,Travel & Subsistence,Investigations & Enforcement Services,Staff Payment,900005826,14.85,
BEIS,The Insolvency Service,08/01/2019,Travel & Subsistence,Investigations & Enforcement Services,Staff Payment,900005826,4.40,
BEIS,The Insolvency Service,08/01/2019,Travel & Subsistence,Investigations & Enforcement Services,Staff Payment,900005826,5.00,
BEIS,The Insolvency Service,08/01/2019,Travel & Subsistence,Investigations & Enforcement Services,Staff Payment,900005826,5.00,
BEIS,The Insolvency Service,08/01/2019,Travel & Subsistence,Investigations & Enforcement Services,Staff Payment,900005826,15.00,
BEIS,The Insolvency Service,08/01/2019,Travel & Subsistence,Investigations & Enforcement Services,Staff Payment,900005780,25.30,
BEIS,The Insolvency Service,08/01/2019,Travel & Subsistence,Investigations & Enforcement Services,Staff Payment,900005780,27.90,
BEIS,The Insolvency Service,08/01/2019,Travel & Subsistence,Investigations & Enforcement Services,Staff Payment,900005780,5.00,
BEIS,The Insolvency Service,08/01/2019,Travel & Subsistence,Investigations & Enforcement Services,Staff Payment,900005785,6.50,
BEIS,The Insolvency Service,08/01/2019,Travel & Subsistence,Investigations & Enforcement Services,Staff Payment,900005785,55.80,
BEIS,The Insolvency Service,08/01/2019,Travel & Subsistence,Investigations & Enforcement Services,Staff Payment,900005785,8.20,
BEIS,The Insolvency Service,08/01/2019,Travel & Subsistence,Investigations & Enforcement Services,Staff Payment,900005785,5.00,
BEIS,The Insolvency Service,08/01/2019,Travel & Subsistence,People & Capability,Staff Payment,900005408,4.50,
BEIS,The Insolvency Service,08/01/2019,Travel & Subsistence,People & Capability,Staff Payment,900005408,2.47,
BEIS,The Insolvency Service,08/01/2019,Travel & Subsistence,People & Capability,Staff Payment,900005607,4.50,
BEIS,The Insolvency Service,08/01/2019,Travel & Subsistence,People & Capability,Staff Payment,900005607,2.47,
BEIS,The Insolvency Service,08/01/2019,Travel & Subsistence,Strategy & Change,Staff Payment,900005851,6.00,
BEIS,The Insolvency Service,08/01/2019,Travel & Subsistence,Official Receiver Services,Staff Payment,900005884,4.50,
BEIS,The Insolvency Service,08/01/2019,Travel & Subsistence,Official Receiver Services,Staff Payment,900005884,4.95,
BEIS,The Insolvency Service,08/01/2019,Travel & Subsistence,Finance & Commercial,Staff Payment,900004660,15.00,
BEIS,The Insolvency Service,08/01/2019,Travel & Subsistence,Finance & Commercial,Staff Payment,900004660,15.00,
BEIS,The Insolvency Service,08/01/2019,Travel & Subsistence,Finance & Commercial,Staff Payment,900005345,13.95,
BEIS,The Insolvency Service,08/01/2019,Travel & Subsistence,Finance & Commercial,Staff Payment,900005345,4.40,
BEIS,The Insolvency Service,08/01/2019,Travel & Subsistence,Finance & Commercial,Staff Payment,900005345,11.19,
BEIS,The Insolvency Service,08/01/2019,Travel & Subsistence,Finance & Commercial,Staff Payment,900005345,5.00,
BEIS,The Insolvency Service,08/01/2019,Travel & Subsistence,Finance & Commercial,Staff Payment,900005889,15.00,
BEIS,The Insolvency Service,08/01/2019,Travel & Subsistence,Investigations & Enforcement Services,Staff Payment,900005832,52.20,
BEIS,The Insolvency Service,08/01/2019,Travel & Subsistence,Investigations & Enforcement Services,Staff Payment,900005832,5.00,
BEIS,The Insolvency Service,08/01/2019,Travel & Subsistence,Investigations & Enforcement Services,Staff Payment,900005819,15.00,
BEIS,The Insolvency Service,08/01/2019,Travel & Subsistence,Investigations & Enforcement Services,Staff Payment,900005820,15.00,
BEIS,The Insolvency Service,08/01/2019,Travel & Subsistence,Investigations & Enforcement Services,Staff Payment,900005820,5.00,
BEIS,The Insolvency Service,08/01/2019,Travel & Subsistence,Investigations & Enforcement Services,Staff Payment,900005820,5.00,
BEIS,The Insolvency Service,08/01/2019,Travel & Subsistence,Investigations & Enforcement Services,Staff Payment,900005821,5.00,
BEIS,The Insolvency Service,08/01/2019,Travel & Subsistence,Investigations & Enforcement Services,Staff Payment,900005822,15.00,
BEIS,The Insolvency Service,08/01/2019,Travel & Subsistence,Investigations & Enforcement Services,Staff Payment,900005822,5.00,
BEIS,The Insolvency Service,08/01/2019,Travel & Subsistence,Investigations & Enforcement Services,Staff Payment,900005822,5.00,
BEIS,The Insolvency Service,08/01/2019,Travel & Subsistence,Investigations & Enforcement Services,Staff Payment,900005823,5.00,
BEIS,The Insolvency Service,08/01/2019,Travel & Subsistence,Investigations & Enforcement Services,Staff Payment,900005824,5.00,
BEIS,The Insolvency Service,08/01/2019,Travel & Subsistence,Investigations & Enforcement Services,Staff Payment,900005825,5.00,
BEIS,The Insolvency Service,08/01/2019,Computer & IT Systems,Information & Technology,Trustmarque Solutions Ltd,300005440,4125.58,727348615
BEIS,The Insolvency Service,08/01/2019,Computer & IT Systems,Information & Technology,Trustmarque Solutions Ltd,300005542,6960.72,727348615
BEIS,The Insolvency Service,10/01/2019,Travel & Subsistence,Official Receiver Services,Staff Payment,900005898,3.60,
BEIS,The Insolvency Service,10/01/2019,Travel & Subsistence,Official Receiver Services,Staff Payment,900005898,25.00,
BEIS,The Insolvency Service,10/01/2019,Travel & Subsistence,Official Receiver Services,Staff Payment,900005898,5.00,
BEIS,The Insolvency Service,10/01/2019,Travel & Subsistence,Official Receiver Services,Staff Payment,900005898,12.60,
BEIS,The Insolvency Service,10/01/2019,Travel & Subsistence,Official Receiver Services,Staff Payment,900005898,5.00,
BEIS,The Insolvency Service,10/01/2019,Travel & Subsistence,Official Receiver Services,Staff Payment,900005898,13.38,
BEIS,The Insolvency Service,10/01/2019,Travel & Subsistence,Official Receiver Services,Staff Payment,900005898,5.00,
BEIS,The Insolvency Service,10/01/2019,Travel & Subsistence,Official Receiver Services,Staff Payment,900005898,4.95,
BEIS,The Insolvency Service,10/01/2019,Travel & Subsistence,Official Receiver Services,Staff Payment,900005898,14.05,
BEIS,The Insolvency Service,10/01/2019,Travel & Subsistence,Official Receiver Services,Staff Payment,900005898,5.00,
BEIS,The Insolvency Service,10/01/2019,Travel & Subsistence,Official Receiver Services,Staff Payment,900005898,4.95,
BEIS,The Insolvency Service,10/01/2019,Travel & Subsistence,Official Receiver Services,Staff Payment,900005898,14.25,
BEIS,The Insolvency Service,10/01/2019,Travel & Subsistence,Official Receiver Services,Staff Payment,900005898,5.00,
BEIS,The Insolvency Service,10/01/2019,Travel & Subsistence,Official Receiver Services,Staff Payment,900005898,4.95,
BEIS,The Insolvency Service,10/01/2019,Travel & Subsistence,Official Receiver Services,Staff Payment,900005898,14.93,
BEIS,The Insolvency Service,10/01/2019,Travel & Subsistence,Official Receiver Services,Staff Payment,900005898,5.00,
BEIS,The Insolvency Service,10/01/2019,Travel & Subsistence,Official Receiver Services,Staff Payment,900005898,15.80,
BEIS,The Insolvency Service,10/01/2019,Travel & Subsistence,Official Receiver Services,Staff Payment,900005898,7.40,
BEIS,The Insolvency Service,10/01/2019,Travel & Subsistence,Official Receiver Services,Staff Payment,900005898,7.40,
BEIS,The Insolvency Service,11/01/2019,Legal Costs,Legal Services Division,Government Legal Department,300005467,2553.60,766793665
BEIS,The Insolvency Service,11/01/2019,Legal Costs,Legal Services Division,Government Legal Department,300005467,3578.00,766793665
BEIS,The Insolvency Service,11/01/2019,Legal Costs,Legal Services Division,Government Legal Department,300005512,17365.61,766793665
BEIS,The Insolvency Service,11/01/2019,Legal Costs,Legal Services Division,Government Legal Department,300005513,18484.32,766793665
BEIS,The Insolvency Service,11/01/2019,Legal Costs,Legal Services Division,Government Legal Department,300005514,2598.00,766793665
BEIS,The Insolvency Service,11/01/2019,Legal Costs,Legal Services Division,Government Legal Department,300005515,331.32,766793665
BEIS,The Insolvency Service,11/01/2019,Legal Costs,Legal Services Division,Government Legal Department,300005516,1550.88,766793665
BEIS,The Insolvency Service,11/01/2019,Legal Costs,Legal Services Division,Government Legal Department,300005517,1144.80,766793665
BEIS,The Insolvency Service,11/01/2019,Legal Costs,Legal Services Division,Government Legal Department,300005518,712.80,766793665
BEIS,The Insolvency Service,11/01/2019,Legal Costs,Legal Services Division,Government Legal Department,300005519,145.08,766793665
BEIS,The Insolvency Service,11/01/2019,Legal Costs,Legal Services Division,Government Legal Department,300005520,570.24,766793665
BEIS,The Insolvency Service,11/01/2019,Agency Costs,Finance & Commercial,ALEXANDER MANN SOLUTIONS,300005620,49231.09,7444926120
BEIS,The Insolvency Service,11/01/2019,Agency Costs,Official Receiver Services,Allen Lane Limited,300005639,5640.00,835970985
BEIS,The Insolvency Service,11/01/2019,Agency Costs,Official Receiver Services,Allen Lane Limited,300005640,5640.00,835970985
BEIS,The Insolvency Service,11/01/2019,Computer & IT Systems,Strategy & Change,Atos It Services Uk Ltd,300005268,17023.74,232327983
BEIS,The Insolvency Service,11/01/2019,Computer & IT Systems,Information & Technology,Bang Communications,300005548,4680.00,569978254
BEIS,The Insolvency Service,11/01/2019,Printing & Stationary,Business Service Division,Banner Business Services Ltd,300005493,6188.56,731860439
BEIS,The Insolvency Service,11/01/2019,Computer & IT Systems,Information & Technology,Bytes Software Services,300005619,536.90,823818226
BEIS,The Insolvency Service,11/01/2019,Printing & Stationary,Chief Executive Office,Cision,300005295,636.60,757158012
BEIS,The Insolvency Service,11/01/2019,Telephones & Postage,Business Service Division,City Sprint Uk Ltd,300005574,174.00,997327364
BEIS,The Insolvency Service,11/01/2019,Telephones & Postage,Business Service Division,City Sprint Uk Ltd,300005575,12.00,997327364
BEIS,The Insolvency Service,11/01/2019,Agency Costs,Information & Technology,Concept Information Technology Ltd,300005546,2550.00,776147892
BEIS,The Insolvency Service,11/01/2019,Telephones & Postage,Business Service Division,Dx Network Services Ltd,300005435,1093.82,849741385
BEIS,The Insolvency Service,11/01/2019,Telephones & Postage,Information & Technology,Ee Limited,300005637,114.00,771592016
BEIS,The Insolvency Service,11/01/2019,Telephones & Postage,Information & Technology,Ee Limited,300005980,900.00,771592016
BEIS,The Insolvency Service,11/01/2019,Legal Costs,Legal Services Division,Elvin Moore & Partners Solicitors,300005681,1331.71,354528348
BEIS,The Insolvency Service,11/01/2019,Insolvency Case Related Costs,Business Service Division,Equifax Ltd,300005434,5500.80,565629213
BEIS,The Insolvency Service,11/01/2019,Insolvency Case Related Costs,Business Service Division,Equifax Ltd,300005651,375.25,565629213
BEIS,The Insolvency Service,11/01/2019,Training,Official Receiver Services,Govnet Communications,300005508,474.00,686277974
BEIS,The Insolvency Service,11/01/2019,Agency Costs,Finance & Commercial,Hays Specialist Recruitment Ltd,300005648,1245.31,773695871
BEIS,The Insolvency Service,11/01/2019,Agency Costs,Finance & Commercial,Insight Executive Group Limited,300005657,1863.00,204262647
BEIS,The Insolvency Service,11/01/2019,Accomodation,Finance & Commercial,Jones Lang Lasalle,300005488,15000.00,244155576
BEIS,The Insolvency Service,11/01/2019,Legal Costs,Investigations & Enforcement Services,K International Plc,300005551,6300.00,600413800
BEIS,The Insolvency Service,11/01/2019,Legal Costs,Investigations & Enforcement Services,Mendip Media Group Ltd,300005642,123.44,609546425
BEIS,The Insolvency Service,11/01/2019,Legal Costs,Investigations & Enforcement Services,Mendip Media Group Ltd,300005643,73.15,609546425
BEIS,The Insolvency Service,11/01/2019,Telephones & Postage,Business Service Division,Neopost Ltd - Franking Top Ups,300005474,27600.00,
BEIS,The Insolvency Service,11/01/2019,Computer & IT Systems,Information & Technology,Nine Telecom,300005549,239.76,886132113
BEIS,The Insolvency Service,11/01/2019,Legal Costs,Investigations & Enforcement Services,Pitney Bowes - Purchasepower,300005617,6.00,
BEIS,The Insolvency Service,11/01/2019,Training,Information & Technology,Qa Limited,300005636,9023.10,
BEIS,The Insolvency Service,11/01/2019,Accomodation,Business Service Division,Restore Datashred (Data Solutions 2016 Ltd T/A Restore Data),300005559,64.00,240193143
BEIS,The Insolvency Service,11/01/2019,Accomodation,Business Service Division,Restore Datashred (Data Solutions 2016 Ltd T/A Restore Data),300005560,102.15,240193143
BEIS,The Insolvency Service,11/01/2019,Accomodation,Business Service Division,Restore Datashred (Data Solutions 2016 Ltd T/A Restore Data),300005561,473.11,240193143
BEIS,The Insolvency Service,11/01/2019,Accomodation,Business Service Division,Restore Datashred (Data Solutions 2016 Ltd T/A Restore Data),300005562,32.00,240193143
BEIS,The Insolvency Service,11/01/2019,Accomodation,Business Service Division,Restore Datashred (Data Solutions 2016 Ltd T/A Restore Data),300005563,69.50,240193143
BEIS,The Insolvency Service,11/01/2019,Accomodation,Business Service Division,Restore Datashred (Data Solutions 2016 Ltd T/A Restore Data),300005564,96.00,240193143
BEIS,The Insolvency Service,11/01/2019,Accomodation,Business Service Division,Restore Datashred (Data Solutions 2016 Ltd T/A Restore Data),300005565,110.56,240193143
BEIS,The Insolvency Service,11/01/2019,Accomodation,Business Service Division,Restore Datashred (Data Solutions 2016 Ltd T/A Restore Data),300005566,64.00,240193143
BEIS,The Insolvency Service,11/01/2019,Accomodation,Business Service Division,Restore Datashred (Data Solutions 2016 Ltd T/A Restore Data),300005567,111.15,240193143
BEIS,The Insolvency Service,11/01/2019,Accomodation,Business Service Division,Restore Datashred (Data Solutions 2016 Ltd T/A Restore Data),300005568,148.02,240193143
BEIS,The Insolvency Service,11/01/2019,Accomodation,Business Service Division,Restore Datashred (Data Solutions 2016 Ltd T/A Restore Data),300005569,102.30,240193143
BEIS,The Insolvency Service,11/01/2019,Accomodation,Business Service Division,Restore Datashred (Data Solutions 2016 Ltd T/A Restore Data),300005570,96.70,240193143
BEIS,The Insolvency Service,11/01/2019,Accomodation,Business Service Division,Restore Datashred (Data Solutions 2016 Ltd T/A Restore Data),300005571,32.00,240193143
BEIS,The Insolvency Service,11/01/2019,Accomodation,Business Service Division,Restore Datashred (Data Solutions 2016 Ltd T/A Restore Data),300005572,64.00,240193143
BEIS,The Insolvency Service,11/01/2019,Legal Costs,Investigations & Enforcement Services,Ricoh Uk Limited,300006034,490.74,
BEIS,The Insolvency Service,11/01/2019,Telephones & Postage,Business Service Division,Royal Mail Group Ltd,300005577,5.54,243170002
BEIS,The Insolvency Service,11/01/2019,Telephones & Postage,Business Service Division,Royal Mail Group Ltd,300005579,80.18,243170002
BEIS,The Insolvency Service,11/01/2019,Telephones & Postage,Business Service Division,Royal Mail Group Ltd,300005580,18.23,243170002
BEIS,The Insolvency Service,11/01/2019,Telephones & Postage,Business Service Division,Royal Mail Group Ltd,300005626,3.28,243170002
BEIS,The Insolvency Service,11/01/2019,Telephones & Postage,Business Service Division,Royal Mail Group Ltd,300005627,133.40,243170002
BEIS,The Insolvency Service,11/01/2019,Legal Costs,Investigations & Enforcement Services,Safestore Ltd,300005669,118.26,
BEIS,The Insolvency Service,11/01/2019,Agency Costs,Finance & Commercial,SF RECRUITMENT LTD,300005622,1870.20,141965992
BEIS,The Insolvency Service,11/01/2019,Agency Costs,Finance & Commercial,SF RECRUITMENT LTD,300005623,1129.01,141965992
BEIS,The Insolvency Service,11/01/2019,Accomodation,Finance & Commercial,Sheffield City Council,300005600,1750.00,
BEIS,The Insolvency Service,11/01/2019,Travel & Subsistence,Investigations & Enforcement Services,Staff Payment,900005907,5.00,
BEIS,The Insolvency Service,11/01/2019,Travel & Subsistence,Official Receiver Services,Staff Payment,900005511,7.10,
BEIS,The Insolvency Service,11/01/2019,Travel & Subsistence,Official Receiver Services,Staff Payment,900005511,81.45,
BEIS,The Insolvency Service,11/01/2019,Travel & Subsistence,Official Receiver Services,Staff Payment,900005511,12.00,
BEIS,The Insolvency Service,11/01/2019,Travel & Subsistence,Official Receiver Services,Staff Payment,900005511,3.99,
BEIS,The Insolvency Service,11/01/2019,Travel & Subsistence,Official Receiver Services,Staff Payment,900005771,1200.00,
BEIS,The Insolvency Service,11/01/2019,Travel & Subsistence,Official Receiver Services,Staff Payment,900005771,28.12,
BEIS,The Insolvency Service,11/01/2019,Travel & Subsistence,Official Receiver Services,Staff Payment,900005771,124.00,
BEIS,The Insolvency Service,11/01/2019,Travel & Subsistence,Official Receiver Services,Staff Payment,900005771,26.00,
BEIS,The Insolvency Service,11/01/2019,Travel & Subsistence,Official Receiver Services,Staff Payment,900005771,12.54,
BEIS,The Insolvency Service,11/01/2019,Travel & Subsistence,Official Receiver Services,Staff Payment,900005813,246.00,
BEIS,The Insolvency Service,11/01/2019,Travel & Subsistence,Official Receiver Services,Staff Payment,900004809,2.09,
BEIS,The Insolvency Service,11/01/2019,Travel & Subsistence,Official Receiver Services,Staff Payment,900004809,5.00,
BEIS,The Insolvency Service,11/01/2019,Travel & Subsistence,Official Receiver Services,Staff Payment,900005890,304.15,
BEIS,The Insolvency Service,11/01/2019,Travel & Subsistence,Official Receiver Services,Staff Payment,900005892,2.00,
BEIS,The Insolvency Service,11/01/2019,Travel & Subsistence,Official Receiver Services,Staff Payment,900005892,13.05,
BEIS,The Insolvency Service,11/01/2019,Travel & Subsistence,Business Service Division,Staff Payment,900005923,4.48,
BEIS,The Insolvency Service,11/01/2019,Travel & Subsistence,Business Service Division,Staff Payment,900005923,5.00,
BEIS,The Insolvency Service,11/01/2019,Travel & Subsistence,Business Service Division,Staff Payment,900005923,5.00,
BEIS,The Insolvency Service,11/01/2019,Travel & Subsistence,Business Service Division,Staff Payment,900005923,15.00,
BEIS,The Insolvency Service,11/01/2019,Travel & Subsistence,Business Service Division,Staff Payment,900005923,4.00,
BEIS,The Insolvency Service,11/01/2019,Travel & Subsistence,Business Service Division,Staff Payment,900005923,46.75,
BEIS,The Insolvency Service,11/01/2019,Travel & Subsistence,Business Service Division,Staff Payment,900005923,17.50,
BEIS,The Insolvency Service,11/01/2019,Travel & Subsistence,Business Service Division,Staff Payment,900005923,74.25,
BEIS,The Insolvency Service,11/01/2019,Travel & Subsistence,Business Service Division,Staff Payment,900005923,41.25,
BEIS,The Insolvency Service,11/01/2019,Travel & Subsistence,People & Capability,Staff Payment,900005922,18.00,
BEIS,The Insolvency Service,11/01/2019,Travel & Subsistence,People & Capability,Staff Payment,900005922,18.00,
BEIS,The Insolvency Service,11/01/2019,Travel & Subsistence,People & Capability,Staff Payment,900005922,5.00,
BEIS,The Insolvency Service,11/01/2019,Travel & Subsistence,People & Capability,Staff Payment,900005922,14.95,
BEIS,The Insolvency Service,11/01/2019,Travel & Subsistence,Investigations & Enforcement Services,Staff Payment,900005896,7.20,
BEIS,The Insolvency Service,11/01/2019,Travel & Subsistence,Investigations & Enforcement Services,Staff Payment,900005897,2.49,
BEIS,The Insolvency Service,11/01/2019,Travel & Subsistence,Strategy & Change,Staff Payment,900005883,246.00,
BEIS,The Insolvency Service,11/01/2019,Travel & Subsistence,Investigations & Enforcement Services,Staff Payment,900005900,10.00,
BEIS,The Insolvency Service,11/01/2019,Travel & Subsistence,Investigations & Enforcement Services,Staff Payment,900005900,5.00,
BEIS,The Insolvency Service,11/01/2019,Travel & Subsistence,Investigations & Enforcement Services,Staff Payment,900005900,13.65,
BEIS,The Insolvency Service,11/01/2019,Travel & Subsistence,Investigations & Enforcement Services,Staff Payment,900005900,4.70,
BEIS,The Insolvency Service,11/01/2019,Travel & Subsistence,Investigations & Enforcement Services,Staff Payment,900005900,5.00,
BEIS,The Insolvency Service,11/01/2019,Travel & Subsistence,Investigations & Enforcement Services,Staff Payment,900005900,15.00,
BEIS,The Insolvency Service,11/01/2019,Travel & Subsistence,Official Receiver Services,Staff Payment,900005810,114.75,
BEIS,The Insolvency Service,11/01/2019,Travel & Subsistence,Official Receiver Services,Staff Payment,900005810,27.00,
BEIS,The Insolvency Service,11/01/2019,Travel & Subsistence,Official Receiver Services,Staff Payment,900005886,4.00,
BEIS,The Insolvency Service,11/01/2019,Travel & Subsistence,Official Receiver Services,Staff Payment,900005886,5.00,
BEIS,The Insolvency Service,11/01/2019,Travel & Subsistence,Official Receiver Services,Staff Payment,900005887,5.00,
BEIS,The Insolvency Service,11/01/2019,Travel & Subsistence,Official Receiver Services,Staff Payment,900005887,5.00,
BEIS,The Insolvency Service,11/01/2019,Travel & Subsistence,Official Receiver Services,Staff Payment,900005677,5.10,
BEIS,The Insolvency Service,11/01/2019,Travel & Subsistence,Official Receiver Services,Staff Payment,900005677,14.40,
BEIS,The Insolvency Service,11/01/2019,Travel & Subsistence,Official Receiver Services,Staff Payment,900005677,14.40,
BEIS,The Insolvency Service,11/01/2019,Travel & Subsistence,Official Receiver Services,Staff Payment,900005677,14.40,
BEIS,The Insolvency Service,11/01/2019,Travel & Subsistence,Official Receiver Services,Staff Payment,900005677,14.40,
BEIS,The Insolvency Service,11/01/2019,Travel & Subsistence,Official Receiver Services,Staff Payment,900005677,14.40,
BEIS,The Insolvency Service,11/01/2019,Travel & Subsistence,Official Receiver Services,Staff Payment,900005677,14.15,
BEIS,The Insolvency Service,11/01/2019,Travel & Subsistence,Official Receiver Services,Staff Payment,900005677,5.00,
BEIS,The Insolvency Service,11/01/2019,Travel & Subsistence,Official Receiver Services,Staff Payment,900005677,10.00,
BEIS,The Insolvency Service,11/01/2019,Travel & Subsistence,Official Receiver Services,Staff Payment,900005677,3.85,
BEIS,The Insolvency Service,11/01/2019,Travel & Subsistence,Official Receiver Services,Staff Payment,900005677,9.39,
BEIS,The Insolvency Service,11/01/2019,Travel & Subsistence,Official Receiver Services,Staff Payment,900005814,4.98,
BEIS,The Insolvency Service,11/01/2019,Travel & Subsistence,Official Receiver Services,Staff Payment,900005815,4.19,
BEIS,The Insolvency Service,11/01/2019,Travel & Subsistence,Official Receiver Services,Staff Payment,900005816,4.98,
BEIS,The Insolvency Service,11/01/2019,Travel & Subsistence,Official Receiver Services,Staff Payment,900005817,8.50,
BEIS,The Insolvency Service,11/01/2019,Travel & Subsistence,Official Receiver Services,Staff Payment,900005817,5.00,
BEIS,The Insolvency Service,11/01/2019,Travel & Subsistence,Official Receiver Services,Staff Payment,900005817,10.39,
BEIS,The Insolvency Service,11/01/2019,Travel & Subsistence,Official Receiver Services,Staff Payment,900005818,29.45,
BEIS,The Insolvency Service,11/01/2019,Travel & Subsistence,Official Receiver Services,Staff Payment,900005818,10.00,
BEIS,The Insolvency Service,11/01/2019,Travel & Subsistence,Official Receiver Services,Staff Payment,900005818,9.96,
BEIS,The Insolvency Service,11/01/2019,Travel & Subsistence,Official Receiver Services,Staff Payment,900004375,4.00,
BEIS,The Insolvency Service,11/01/2019,Travel & Subsistence,Official Receiver Services,Staff Payment,900004375,53.25,
BEIS,The Insolvency Service,11/01/2019,Travel & Subsistence,Official Receiver Services,Staff Payment,900004375,1.13,
BEIS,The Insolvency Service,11/01/2019,Travel & Subsistence,Official Receiver Services,Staff Payment,900004375,3.60,
BEIS,The Insolvency Service,11/01/2019,Travel & Subsistence,Investigations & Enforcement Services,Staff Payment,900005914,7.00,
BEIS,The Insolvency Service,11/01/2019,Travel & Subsistence,Official Receiver Services,Staff Payment,900005880,5.00,
BEIS,The Insolvency Service,11/01/2019,Travel & Subsistence,Official Receiver Services,Staff Payment,900005880,5.00,
BEIS,The Insolvency Service,11/01/2019,Travel & Subsistence,Official Receiver Services,Staff Payment,900005880,5.00,
BEIS,The Insolvency Service,11/01/2019,Travel & Subsistence,Official Receiver Services,Staff Payment,900005918,7.00,
BEIS,The Insolvency Service,11/01/2019,Travel & Subsistence,People & Capability,Staff Payment,900005911,4.80,
BEIS,The Insolvency Service,11/01/2019,Travel & Subsistence,People & Capability,Staff Payment,900005911,18.20,
BEIS,The Insolvency Service,11/01/2019,Travel & Subsistence,People & Capability,Staff Payment,900005911,5.00,
BEIS,The Insolvency Service,11/01/2019,Travel & Subsistence,People & Capability,Staff Payment,900005911,15.00,
BEIS,The Insolvency Service,11/01/2019,Travel & Subsistence,Chief Executive Office,Staff Payment,900004879,5.00,
BEIS,The Insolvency Service,11/01/2019,Travel & Subsistence,Chief Executive Office,Staff Payment,900004881,5.00,
BEIS,The Insolvency Service,11/01/2019,Travel & Subsistence,Chief Executive Office,Staff Payment,900004881,5.00,
BEIS,The Insolvency Service,11/01/2019,Travel & Subsistence,Chief Executive Office,Staff Payment,900004882,5.90,
BEIS,The Insolvency Service,11/01/2019,Travel & Subsistence,Chief Executive Office,Staff Payment,900004882,5.00,
BEIS,The Insolvency Service,11/01/2019,Travel & Subsistence,Chief Executive Office,Staff Payment,900004882,15.00,
BEIS,The Insolvency Service,11/01/2019,Travel & Subsistence,Chief Executive Office,Staff Payment,900004882,5.00,
BEIS,The Insolvency Service,11/01/2019,Travel & Subsistence,Chief Executive Office,Staff Payment,900004883,12.70,
BEIS,The Insolvency Service,11/01/2019,Travel & Subsistence,Chief Executive Office,Staff Payment,900004883,5.00,
BEIS,The Insolvency Service,11/01/2019,Travel & Subsistence,Chief Executive Office,Staff Payment,900005252,4.90,
BEIS,The Insolvency Service,11/01/2019,Travel & Subsistence,Chief Executive Office,Staff Payment,900005252,5.00,
BEIS,The Insolvency Service,11/01/2019,Travel & Subsistence,Chief Executive Office,Staff Payment,900005252,5.00,
BEIS,The Insolvency Service,11/01/2019,Travel & Subsistence,Chief Executive Office,Staff Payment,900005252,3.70,
BEIS,The Insolvency Service,11/01/2019,Travel & Subsistence,Chief Executive Office,Staff Payment,900005252,5.00,
BEIS,The Insolvency Service,11/01/2019,Travel & Subsistence,Chief Executive Office,Staff Payment,900005525,4.79,
BEIS,The Insolvency Service,11/01/2019,Travel & Subsistence,Business Service Division,Staff Payment,900005924,4.19,
BEIS,The Insolvency Service,11/01/2019,Travel & Subsistence,Business Service Division,Staff Payment,900005924,13.00,
BEIS,The Insolvency Service,11/01/2019,Travel & Subsistence,Business Service Division,Staff Payment,900005924,5.00,
BEIS,The Insolvency Service,11/01/2019,Travel & Subsistence,Business Service Division,Staff Payment,900005924,5.00,
BEIS,The Insolvency Service,11/01/2019,Travel & Subsistence,Official Receiver Services,Staff Payment,900004986,39.60,
BEIS,The Insolvency Service,11/01/2019,Travel & Subsistence,Official Receiver Services,Staff Payment,900004986,4.00,
BEIS,The Insolvency Service,11/01/2019,Travel & Subsistence,Official Receiver Services,Staff Payment,900005225,6.00,
BEIS,The Insolvency Service,11/01/2019,Travel & Subsistence,Official Receiver Services,Staff Payment,900005225,39.60,
BEIS,The Insolvency Service,11/01/2019,Travel & Subsistence,Official Receiver Services,Staff Payment,900005940,12.00,
BEIS,The Insolvency Service,11/01/2019,Travel & Subsistence,Legal Services Division,Staff Payment,900005830,15.00,
BEIS,The Insolvency Service,11/01/2019,Travel & Subsistence,Legal Services Division,Staff Payment,900005830,3.40,
BEIS,The Insolvency Service,11/01/2019,Travel & Subsistence,Legal Services Division,Staff Payment,900005831,25.00,
BEIS,The Insolvency Service,11/01/2019,Travel & Subsistence,Investigations & Enforcement Services,Staff Payment,900005423,14.50,
BEIS,The Insolvency Service,11/01/2019,Travel & Subsistence,Investigations & Enforcement Services,Staff Payment,900005423,5.00,
BEIS,The Insolvency Service,11/01/2019,Travel & Subsistence,Investigations & Enforcement Services,Staff Payment,900005423,10.00,
BEIS,The Insolvency Service,11/01/2019,Travel & Subsistence,Investigations & Enforcement Services,Staff Payment,900005423,57.50,
BEIS,The Insolvency Service,11/01/2019,Travel & Subsistence,Investigations & Enforcement Services,Staff Payment,900005423,56.50,
BEIS,The Insolvency Service,11/01/2019,Travel & Subsistence,Investigations & Enforcement Services,Staff Payment,900005423,16.00,
BEIS,The Insolvency Service,11/01/2019,Travel & Subsistence,Investigations & Enforcement Services,Staff Payment,900005423,2.00,
BEIS,The Insolvency Service,11/01/2019,Travel & Subsistence,Investigations & Enforcement Services,Staff Payment,900005423,2.00,
BEIS,The Insolvency Service,11/01/2019,Travel & Subsistence,Legal Services Division,Staff Payment,900005758,5.00,
BEIS,The Insolvency Service,11/01/2019,Travel & Subsistence,Legal Services Division,Staff Payment,900005759,5.00,
BEIS,The Insolvency Service,11/01/2019,Travel & Subsistence,Legal Services Division,Staff Payment,900005759,5.00,
BEIS,The Insolvency Service,11/01/2019,Travel & Subsistence,Legal Services Division,Staff Payment,900005759,7.70,
BEIS,The Insolvency Service,11/01/2019,Travel & Subsistence,Legal Services Division,Staff Payment,900005759,7.00,
BEIS,The Insolvency Service,11/01/2019,Travel & Subsistence,Legal Services Division,Staff Payment,900005759,15.00,
BEIS,The Insolvency Service,11/01/2019,Travel & Subsistence,Legal Services Division,Staff Payment,900005759,3.65,
BEIS,The Insolvency Service,11/01/2019,Travel & Subsistence,Legal Services Division,Staff Payment,900005760,1.80,
BEIS,The Insolvency Service,11/01/2019,Travel & Subsistence,Legal Services Division,Staff Payment,900005760,5.00,
BEIS,The Insolvency Service,11/01/2019,Travel & Subsistence,Information & Technology,Staff Payment,900005915,13.07,
BEIS,The Insolvency Service,11/01/2019,Travel & Subsistence,Information & Technology,Staff Payment,900005915,70.40,
BEIS,The Insolvency Service,11/01/2019,Travel & Subsistence,People & Capability,Staff Payment,900005942,26.00,
BEIS,The Insolvency Service,11/01/2019,Travel & Subsistence,Official Receiver Services,Staff Payment,900005756,23.00,
BEIS,The Insolvency Service,11/01/2019,Travel & Subsistence,Official Receiver Services,Staff Payment,900005905,11.00,
BEIS,The Insolvency Service,11/01/2019,Travel & Subsistence,Official Receiver Services,Staff Payment,900005905,24.12,
BEIS,The Insolvency Service,11/01/2019,Travel & Subsistence,Official Receiver Services,Staff Payment,900005905,15.00,
BEIS,The Insolvency Service,11/01/2019,Travel & Subsistence,Official Receiver Services,Staff Payment,900005905,27.98,
BEIS,The Insolvency Service,11/01/2019,Travel & Subsistence,Official Receiver Services,Staff Payment,900005905,15.98,
BEIS,The Insolvency Service,11/01/2019,Travel & Subsistence,Official Receiver Services,Staff Payment,900005905,10.00,
BEIS,The Insolvency Service,11/01/2019,Travel & Subsistence,Official Receiver Services,Staff Payment,900005754,5.00,
BEIS,The Insolvency Service,11/01/2019,Travel & Subsistence,Official Receiver Services,Staff Payment,900005754,12.66,
BEIS,The Insolvency Service,11/01/2019,Travel & Subsistence,Official Receiver Services,Staff Payment,900005754,5.00,
BEIS,The Insolvency Service,11/01/2019,Travel & Subsistence,Official Receiver Services,Staff Payment,900005754,5.00,
BEIS,The Insolvency Service,11/01/2019,Travel & Subsistence,Official Receiver Services,Staff Payment,900005754,15.00,
BEIS,The Insolvency Service,11/01/2019,Travel & Subsistence,Official Receiver Services,Staff Payment,900005754,5.00,
BEIS,The Insolvency Service,11/01/2019,Travel & Subsistence,Official Receiver Services,Staff Payment,900005754,5.00,
BEIS,The Insolvency Service,11/01/2019,Travel & Subsistence,Official Receiver Services,Staff Payment,900005363,4.95,
BEIS,The Insolvency Service,11/01/2019,Travel & Subsistence,Official Receiver Services,Staff Payment,900005363,10.00,
BEIS,The Insolvency Service,11/01/2019,Travel & Subsistence,Official Receiver Services,Staff Payment,900005363,5.00,
BEIS,The Insolvency Service,11/01/2019,Travel & Subsistence,Official Receiver Services,Staff Payment,900005363,5.00,
BEIS,The Insolvency Service,11/01/2019,Travel & Subsistence,Official Receiver Services,Staff Payment,900005363,15.70,
BEIS,The Insolvency Service,11/01/2019,Travel & Subsistence,Official Receiver Services,Staff Payment,900005363,8.20,
BEIS,The Insolvency Service,11/01/2019,Travel & Subsistence,Official Receiver Services,Staff Payment,900005363,4.70,
BEIS,The Insolvency Service,11/01/2019,Travel & Subsistence,Official Receiver Services,Staff Payment,900005363,8.60,
BEIS,The Insolvency Service,11/01/2019,Travel & Subsistence,Official Receiver Services,Staff Payment,900005363,8.20,
BEIS,The Insolvency Service,11/01/2019,Travel & Subsistence,Investigations & Enforcement Services,Staff Payment,900005833,13.95,
BEIS,The Insolvency Service,11/01/2019,Travel & Subsistence,Investigations & Enforcement Services,Staff Payment,900005833,5.00,
BEIS,The Insolvency Service,11/01/2019,Travel & Subsistence,Investigations & Enforcement Services,Staff Payment,900005833,22.20,
BEIS,The Insolvency Service,11/01/2019,Travel & Subsistence,Investigations & Enforcement Services,Staff Payment,900005835,4.10,
BEIS,The Insolvency Service,11/01/2019,Travel & Subsistence,Investigations & Enforcement Services,Staff Payment,900005835,15.00,
BEIS,The Insolvency Service,11/01/2019,Travel & Subsistence,Investigations & Enforcement Services,Staff Payment,900005835,5.00,
BEIS,The Insolvency Service,11/01/2019,Travel & Subsistence,Investigations & Enforcement Services,Staff Payment,900005836,5.00,
BEIS,The Insolvency Service,11/01/2019,Travel & Subsistence,Investigations & Enforcement Services,Staff Payment,900005836,15.00,
BEIS,The Insolvency Service,11/01/2019,Travel & Subsistence,Investigations & Enforcement Services,Staff Payment,900005836,5.00,
BEIS,The Insolvency Service,11/01/2019,Travel & Subsistence,Investigations & Enforcement Services,Staff Payment,900005836,7.20,
BEIS,The Insolvency Service,11/01/2019,Travel & Subsistence,Investigations & Enforcement Services,Staff Payment,900005837,4.90,
BEIS,The Insolvency Service,11/01/2019,Travel & Subsistence,Investigations & Enforcement Services,Staff Payment,900005838,4.99,
BEIS,The Insolvency Service,11/01/2019,Travel & Subsistence,Investigations & Enforcement Services,Staff Payment,900005839,1.92,
BEIS,The Insolvency Service,11/01/2019,Travel & Subsistence,Investigations & Enforcement Services,Staff Payment,900005839,3.00,
BEIS,The Insolvency Service,11/01/2019,Travel & Subsistence,Official Receiver Services,Staff Payment,900005860,4.80,
BEIS,The Insolvency Service,11/01/2019,Travel & Subsistence,Official Receiver Services,Staff Payment,900005860,11.09,
BEIS,The Insolvency Service,11/01/2019,Travel & Subsistence,Official Receiver Services,Staff Payment,900005861,4.70,
BEIS,The Insolvency Service,11/01/2019,Travel & Subsistence,Official Receiver Services,Staff Payment,900005861,5.00,
BEIS,The Insolvency Service,11/01/2019,Travel & Subsistence,Official Receiver Services,Staff Payment,900005861,14.05,
BEIS,The Insolvency Service,11/01/2019,Travel & Subsistence,Official Receiver Services,Staff Payment,900005862,5.00,
BEIS,The Insolvency Service,11/01/2019,Travel & Subsistence,Official Receiver Services,Staff Payment,900005862,15.00,
BEIS,The Insolvency Service,11/01/2019,Travel & Subsistence,Official Receiver Services,Staff Payment,900005862,5.00,
BEIS,The Insolvency Service,11/01/2019,Travel & Subsistence,Official Receiver Services,Staff Payment,900005863,5.00,
BEIS,The Insolvency Service,11/01/2019,Travel & Subsistence,Official Receiver Services,Staff Payment,900005863,15.00,
BEIS,The Insolvency Service,11/01/2019,Travel & Subsistence,Official Receiver Services,Staff Payment,900005863,5.00,
BEIS,The Insolvency Service,11/01/2019,Travel & Subsistence,Official Receiver Services,Staff Payment,900005864,5.00,
BEIS,The Insolvency Service,11/01/2019,Travel & Subsistence,Official Receiver Services,Staff Payment,900005639,10.00,
BEIS,The Insolvency Service,11/01/2019,Travel & Subsistence,Official Receiver Services,Staff Payment,900005639,15.00,
BEIS,The Insolvency Service,11/01/2019,Travel & Subsistence,Official Receiver Services,Staff Payment,900005639,23.10,
BEIS,The Insolvency Service,11/01/2019,Travel & Subsistence,Official Receiver Services,Staff Payment,900005639,30.00,
BEIS,The Insolvency Service,11/01/2019,Travel & Subsistence,Official Receiver Services,Staff Payment,900005639,13.58,
BEIS,The Insolvency Service,11/01/2019,Travel & Subsistence,Official Receiver Services,Staff Payment,900005639,12.85,
BEIS,The Insolvency Service,11/01/2019,Travel & Subsistence,Official Receiver Services,Staff Payment,900005639,15.00,
BEIS,The Insolvency Service,11/01/2019,Travel & Subsistence,Official Receiver Services,Staff Payment,900005639,25.00,
BEIS,The Insolvency Service,11/01/2019,Travel & Subsistence,Official Receiver Services,Staff Payment,900005639,15.20,
BEIS,The Insolvency Service,11/01/2019,Travel & Subsistence,Official Receiver Services,Staff Payment,900005639,6.60,
BEIS,The Insolvency Service,11/01/2019,Travel & Subsistence,Investigations & Enforcement Services,Staff Payment,900005698,3.37,
BEIS,The Insolvency Service,11/01/2019,Travel & Subsistence,Investigations & Enforcement Services,Staff Payment,900005698,4.20,
BEIS,The Insolvency Service,11/01/2019,Travel & Subsistence,Investigations & Enforcement Services,Staff Payment,900005699,3.37,
BEIS,The Insolvency Service,11/01/2019,Travel & Subsistence,Investigations & Enforcement Services,Staff Payment,900005699,5.00,
BEIS,The Insolvency Service,11/01/2019,Travel & Subsistence,Investigations & Enforcement Services,Staff Payment,900005699,15.00,
BEIS,The Insolvency Service,11/01/2019,Travel & Subsistence,Investigations & Enforcement Services,Staff Payment,900005702,3.35,
BEIS,The Insolvency Service,11/01/2019,Travel & Subsistence,Investigations & Enforcement Services,Staff Payment,900005702,3.00,
BEIS,The Insolvency Service,11/01/2019,Travel & Subsistence,Investigations & Enforcement Services,Staff Payment,900005702,15.00,
BEIS,The Insolvency Service,11/01/2019,Travel & Subsistence,Investigations & Enforcement Services,Staff Payment,900005703,5.00,
BEIS,The Insolvency Service,11/01/2019,Travel & Subsistence,Investigations & Enforcement Services,Staff Payment,900005703,5.00,
BEIS,The Insolvency Service,11/01/2019,Travel & Subsistence,Investigations & Enforcement Services,Staff Payment,900005703,10.00,
BEIS,The Insolvency Service,11/01/2019,Travel & Subsistence,Finance & Commercial,Staff Payment,900005156,11.79,
BEIS,The Insolvency Service,11/01/2019,Travel & Subsistence,Finance & Commercial,Staff Payment,900005157,11.00,
BEIS,The Insolvency Service,11/01/2019,Travel & Subsistence,Finance & Commercial,Staff Payment,900005157,5.00,
BEIS,The Insolvency Service,11/01/2019,Travel & Subsistence,Finance & Commercial,Staff Payment,900005158,5.00,
BEIS,The Insolvency Service,11/01/2019,Travel & Subsistence,Finance & Commercial,Staff Payment,900005158,4.81,
BEIS,The Insolvency Service,11/01/2019,Travel & Subsistence,Finance & Commercial,Staff Payment,900005165,3.25,
BEIS,The Insolvency Service,11/01/2019,Travel & Subsistence,Finance & Commercial,Staff Payment,900005165,3.25,
BEIS,The Insolvency Service,11/01/2019,Travel & Subsistence,Finance & Commercial,Staff Payment,900005165,11.90,
BEIS,The Insolvency Service,11/01/2019,Travel & Subsistence,Finance & Commercial,Staff Payment,900005165,3.90,
BEIS,The Insolvency Service,11/01/2019,Travel & Subsistence,Finance & Commercial,Staff Payment,900005165,14.05,
BEIS,The Insolvency Service,11/01/2019,Travel & Subsistence,Finance & Commercial,Staff Payment,900005165,5.00,
BEIS,The Insolvency Service,11/01/2019,Travel & Subsistence,Finance & Commercial,Staff Payment,900005165,5.00,
BEIS,The Insolvency Service,11/01/2019,Travel & Subsistence,Finance & Commercial,Staff Payment,900005167,3.00,
BEIS,The Insolvency Service,11/01/2019,Travel & Subsistence,Finance & Commercial,Staff Payment,900005167,5.00,
BEIS,The Insolvency Service,11/01/2019,Travel & Subsistence,Finance & Commercial,Staff Payment,900005167,5.00,
BEIS,The Insolvency Service,11/01/2019,Travel & Subsistence,Finance & Commercial,Staff Payment,900005167,20.00,
BEIS,The Insolvency Service,11/01/2019,Travel & Subsistence,Finance & Commercial,Staff Payment,900005481,4.29,
BEIS,The Insolvency Service,11/01/2019,Travel & Subsistence,Finance & Commercial,Staff Payment,900005481,2.80,
BEIS,The Insolvency Service,11/01/2019,Travel & Subsistence,Finance & Commercial,Staff Payment,900005481,4.09,
BEIS,The Insolvency Service,11/01/2019,Travel & Subsistence,Finance & Commercial,Staff Payment,900005482,6.85,
BEIS,The Insolvency Service,11/01/2019,Travel & Subsistence,Finance & Commercial,Staff Payment,900005482,4.15,
BEIS,The Insolvency Service,11/01/2019,Travel & Subsistence,Finance & Commercial,Staff Payment,900005482,3.65,
BEIS,The Insolvency Service,11/01/2019,Travel & Subsistence,Finance & Commercial,Staff Payment,900005482,11.00,
BEIS,The Insolvency Service,11/01/2019,Travel & Subsistence,Finance & Commercial,Staff Payment,900005483,1.80,
BEIS,The Insolvency Service,11/01/2019,Travel & Subsistence,Finance & Commercial,Staff Payment,900005483,20.00,
BEIS,The Insolvency Service,11/01/2019,Travel & Subsistence,Finance & Commercial,Staff Payment,900005483,6.80,
BEIS,The Insolvency Service,11/01/2019,Travel & Subsistence,Investigations & Enforcement Services,Staff Payment,900005913,76.70,
BEIS,The Insolvency Service,11/01/2019,Travel & Subsistence,Investigations & Enforcement Services,Staff Payment,900005913,14.50,
BEIS,The Insolvency Service,11/01/2019,Travel & Subsistence,Investigations & Enforcement Services,Staff Payment,900005913,3.85,
BEIS,The Insolvency Service,11/01/2019,Travel & Subsistence,Investigations & Enforcement Services,Staff Payment,900005868,10.00,
BEIS,The Insolvency Service,11/01/2019,Travel & Subsistence,Investigations & Enforcement Services,Staff Payment,900005868,149.40,
BEIS,The Insolvency Service,11/01/2019,Travel & Subsistence,Investigations & Enforcement Services,Staff Payment,900005868,3.15,
BEIS,The Insolvency Service,11/01/2019,Travel & Subsistence,Investigations & Enforcement Services,Staff Payment,900005870,5.00,
BEIS,The Insolvency Service,11/01/2019,Travel & Subsistence,Investigations & Enforcement Services,Staff Payment,900005872,149.40,
BEIS,The Insolvency Service,11/01/2019,Travel & Subsistence,Investigations & Enforcement Services,Staff Payment,900005872,3.50,
BEIS,The Insolvency Service,11/01/2019,Travel & Subsistence,Investigations & Enforcement Services,Staff Payment,900005872,4.20,
BEIS,The Insolvency Service,11/01/2019,Travel & Subsistence,Investigations & Enforcement Services,Staff Payment,900005877,2.30,
BEIS,The Insolvency Service,11/01/2019,Travel & Subsistence,Investigations & Enforcement Services,Staff Payment,900005877,15.00,
BEIS,The Insolvency Service,11/01/2019,Travel & Subsistence,Investigations & Enforcement Services,Staff Payment,900005877,8.00,
BEIS,The Insolvency Service,11/01/2019,Travel & Subsistence,Investigations & Enforcement Services,Staff Payment,900005877,8.00,
BEIS,The Insolvency Service,11/01/2019,Travel & Subsistence,Investigations & Enforcement Services,Staff Payment,900005877,5.00,
BEIS,The Insolvency Service,11/01/2019,Travel & Subsistence,Investigations & Enforcement Services,Staff Payment,900005879,3.00,
BEIS,The Insolvency Service,11/01/2019,Travel & Subsistence,Investigations & Enforcement Services,Staff Payment,900005879,3.10,
BEIS,The Insolvency Service,11/01/2019,Travel & Subsistence,Investigations & Enforcement Services,Staff Payment,900005881,5.00,
BEIS,The Insolvency Service,11/01/2019,Travel & Subsistence,Investigations & Enforcement Services,Staff Payment,900005882,16.50,
BEIS,The Insolvency Service,11/01/2019,Travel & Subsistence,Investigations & Enforcement Services,Staff Payment,900005882,5.00,
BEIS,The Insolvency Service,11/01/2019,Investigation & Enforcement Costs,Official Receiver Services,SUNDRY SUPPLIER,300005198,528.00,
BEIS,The Insolvency Service,11/01/2019,Investigation & Enforcement Costs,Official Receiver Services,SUNDRY SUPPLIER,300005199,528.00,
BEIS,The Insolvency Service,11/01/2019,Legal Costs,Legal Services Division,SUNDRY SUPPLIER,300005498,135.50,
BEIS,The Insolvency Service,11/01/2019,Telephones & Postage,Business Service Division,Syntec Ltd,300005628,960.43,264618586
BEIS,The Insolvency Service,11/01/2019,Other Costs,Investigations & Enforcement Services,The Surveillance Group Ltd,300005633,505.74,918530324
BEIS,The Insolvency Service,11/01/2019,Other Costs,Official Receiver Services,The Surveillance Group Ltd,300005633,1517.22,918530324
BEIS,The Insolvency Service,11/01/2019,Printing & Stationary,Legal Services Division,Thomson Reuters Professional Uk Ltd,300005465,1098.00,
BEIS,The Insolvency Service,11/01/2019,Telephones & Postage,Business Service Division,Tnt Uk Ltd,300005436,8.94,354715057
BEIS,The Insolvency Service,11/01/2019,Telephones & Postage,Business Service Division,Tnt Uk Ltd,300005576,9.46,354715057
BEIS,The Insolvency Service,11/01/2019,Telephones & Postage,Business Service Division,Tnt Uk Ltd,300005594,9.48,354715057
BEIS,The Insolvency Service,11/01/2019,Telephones & Postage,Business Service Division,Tnt Uk Ltd,300005624,56.12,354715057
BEIS,The Insolvency Service,11/01/2019,Telephones & Postage,Business Service Division,Tnt Uk Ltd,300005625,17.87,354715057
BEIS,The Insolvency Service,11/01/2019,Computer & IT Systems,Information & Technology,Ukcloud Ltd,300005547,7319.95,172647982
BEIS,The Insolvency Service,11/01/2019,Employee Related Costs,People & Capability,Uksbs Shared Services Centre Ltd,300005462,65416.67,888825550
BEIS,The Insolvency Service,11/01/2019,Employee Related Costs,People & Capability,Uksbs Shared Services Centre Ltd,300005552,65416.67,888825550
BEIS,The Insolvency Service,11/01/2019,Investigation & Enforcement Costs,Investigations & Enforcement Services,Womble Bond Dickinson,300005494,6905.10,123392627
BEIS,The Insolvency Service,11/01/2019,Investigation & Enforcement Costs,Investigations & Enforcement Services,Womble Bond Dickinson,300005494,54.94,123392627
BEIS,The Insolvency Service,11/01/2019,Investigation & Enforcement Costs,Official Receiver Services,Womble Bond Dickinson,300005618,36355.09,123392627
BEIS,The Insolvency Service,11/01/2019,Legal Costs,Investigations & Enforcement Services,Womble Bond Dickinson,300005494,41689.70,123392627
BEIS,The Insolvency Service,11/01/2019,Legal Costs,Investigations & Enforcement Services,Womble Bond Dickinson,300005494,1602.25,123392627
BEIS,The Insolvency Service,11/01/2019,Legal Costs,Investigations & Enforcement Services,Womble Bond Dickinson,300005494,9394.23,123392627
BEIS,The Insolvency Service,11/01/2019,Legal Costs,Investigations & Enforcement Services,Womble Bond Dickinson,300005494,4.86,123392627
BEIS,The Insolvency Service,11/01/2019,Legal Costs,Investigations & Enforcement Services,Womble Bond Dickinson,300005494,10500.54,123392627
BEIS,The Insolvency Service,14/01/2019,Computer & IT Systems,Strategy & Change,Daisy Communications Ltd,300005997,3062.40,
BEIS,The Insolvency Service,14/01/2019,Telephones & Postage,Information & Technology,Ee Limited,300005977,1080.00,771592016
BEIS,The Insolvency Service,14/01/2019,Telephones & Postage,Information & Technology,Ee Limited,300005978,360.00,771592016
BEIS,The Insolvency Service,14/01/2019,Telephones & Postage,Information & Technology,Ee Limited,300005979,360.00,771592016
BEIS,The Insolvency Service,16/01/2019,Legal Costs,Legal Services Division,18 Red Lion Court Chambers,300005719,2478.00,766793665
BEIS,The Insolvency Service,16/01/2019,Legal Costs,Strategy & Change,Agilisys Ltd,300005678,94230.00,791711713
BEIS,The Insolvency Service,16/01/2019,Accomodation,Finance & Commercial,British Gas Business,300005644,102.90,684966762
BEIS,The Insolvency Service,16/01/2019,Telephones & Postage,Information & Technology,Bt Conferencing Services,300005543,1767.82,
BEIS,The Insolvency Service,16/01/2019,Insolvency Case Related Costs,Investigations & Enforcement Services,Companies House,300005703,24.00,GD255
BEIS,The Insolvency Service,16/01/2019,Investigation & Enforcement Costs,Official Receiver Services,Dwf,300005702,17470.08,
BEIS,The Insolvency Service,16/01/2019,Investigation & Enforcement Costs,Investigations & Enforcement Services,Dwf,300005704,1860.12,
BEIS,The Insolvency Service,16/01/2019,Legal Costs,Investigations & Enforcement Services,Dwf,300005705,1603.06,
BEIS,The Insolvency Service,16/01/2019,Legal Costs,Investigations & Enforcement Services,Dwf,300005708,18278.23,
BEIS,The Insolvency Service,16/01/2019,Legal Costs,Investigations & Enforcement Services,Dwf,300005706,9856.11,
BEIS,The Insolvency Service,16/01/2019,Legal Costs,Investigations & Enforcement Services,Dwf,300005707,4727.52,
BEIS,The Insolvency Service,16/01/2019,Legal Costs,Investigations & Enforcement Services,Dwf,300005701,8327.69,
BEIS,The Insolvency Service,16/01/2019,Telephones & Postage,Information & Technology,Ee Limited,300005664,1380.00,771592016
BEIS,The Insolvency Service,16/01/2019,Legal Costs,Business Service Division,G4s Assessment Services Uk (M Assessment Services Ltd),300005680,2448.00,
BEIS,The Insolvency Service,16/01/2019,Telephones & Postage,Information & Technology,Gamma Business Communications Ltd,300005665,2465.22,823820344
BEIS,The Insolvency Service,16/01/2019,Legal Costs,Official Receiver Services,Gov Legal Client Monies,300005662,3000.00,
BEIS,The Insolvency Service,16/01/2019,Investigation & Enforcement Costs,Official Receiver Services,Gowling Wragge Lawrence Graham  & Co,300005693,22990.58,858698838
BEIS,The Insolvency Service,16/01/2019,Investigation & Enforcement Costs,Investigations & Enforcement Services,Gowling Wragge Lawrence Graham  & Co,300005700,9333.47,858698838
BEIS,The Insolvency Service,16/01/2019,Legal Costs,Investigations & Enforcement Services,Gowling Wragge Lawrence Graham  & Co,300005697,33339.65,858698838
BEIS,The Insolvency Service,16/01/2019,Legal Costs,Investigations & Enforcement Services,Gowling Wragge Lawrence Graham  & Co,300005698,3653.95,858698838
BEIS,The Insolvency Service,16/01/2019,Legal Costs,Investigations & Enforcement Services,Gowling Wragge Lawrence Graham  & Co,300005699,8848.68,858698838
BEIS,The Insolvency Service,16/01/2019,Investigation & Enforcement Costs,Official Receiver Services,Howes Percival,300005685,18758.82,119523573
BEIS,The Insolvency Service,16/01/2019,Investigation & Enforcement Costs,Official Receiver Services,Howes Percival,300005686,153.22,119523573
BEIS,The Insolvency Service,16/01/2019,Investigation & Enforcement Costs,Investigations & Enforcement Services,Howes Percival,300005687,3445.64,119523573
BEIS,The Insolvency Service,16/01/2019,Legal Costs,Investigations & Enforcement Services,Howes Percival,300005691,3828.52,119523573
BEIS,The Insolvency Service,16/01/2019,Legal Costs,Investigations & Enforcement Services,Howes Percival,300005695,733.04,119523573
BEIS,The Insolvency Service,16/01/2019,Legal Costs,Investigations & Enforcement Services,Howes Percival,300005695,75.00,119523573
BEIS,The Insolvency Service,16/01/2019,Legal Costs,Investigations & Enforcement Services,Howes Percival,300005709,2695.00,119523573
BEIS,The Insolvency Service,16/01/2019,Legal Costs,Investigations & Enforcement Services,Howes Percival,300005709,10585.00,119523573
BEIS,The Insolvency Service,16/01/2019,Legal Costs,Investigations & Enforcement Services,Howes Percival,300005690,7059.56,119523573
BEIS,The Insolvency Service,16/01/2019,Legal Costs,Investigations & Enforcement Services,Howes Percival,300005696,666.16,119523573
BEIS,The Insolvency Service,16/01/2019,Accomodation,Finance & Commercial,Jones Lang Lasalle,300005634,1800.00,245894718
BEIS,The Insolvency Service,16/01/2019,Accomodation,Finance & Commercial,Jones Lang Lasalle,300005667,9360.00,245894718
BEIS,The Insolvency Service,16/01/2019,Accomodation,Finance & Commercial,Jones Lang Lasalle,300005710,187692.00,245894718
BEIS,The Insolvency Service,16/01/2019,Accomodation,Finance & Commercial,Manchester City Council,300005663,182410.00,
BEIS,The Insolvency Service,16/01/2019,Accomodation,Official Receiver Services,Middlesbrough Council,300005641,344.70,734213854
BEIS,The Insolvency Service,16/01/2019,Training,Investigations & Enforcement Services,Midlands Fraud Forum,300005679,1690.00,
BEIS,The Insolvency Service,16/01/2019,Legal Costs,Legal Services Division,New Park Court Chambers,300005740,288.00,157478863
BEIS,The Insolvency Service,16/01/2019,Legal Costs,Investigations & Enforcement Services,Pitney Bowes Finance Limited,300005738,240.91,
BEIS,The Insolvency Service,16/01/2019,Accomodation,Official Receiver Services,Posturite (Uk) Ltd.,300005536,62.35,583565114
BEIS,The Insolvency Service,16/01/2019,Legal Costs,Official Receiver Services,Pricewaterhouse Coopers LLP,300005661,1040475.00,243823957
BEIS,The Insolvency Service,16/01/2019,Employee Related Costs,People & Capability,Right Corecare Ltd,300005463,577.88,
BEIS,The Insolvency Service,16/01/2019,Telephones & Postage,Business Service Division,Royal Mail Group Plc,300005650,116.54,
BEIS,The Insolvency Service,16/01/2019,Legal Costs,Investigations & Enforcement Services,Safestore Ltd,300005717,118.26,
BEIS,The Insolvency Service,16/01/2019,Legal Costs,Investigations & Enforcement Services,Safestore Ltd,300005718,19.50,
BEIS,The Insolvency Service,16/01/2019,Other Costs,Official Receiver Services,Sirs (Europe) Ltd,300005537,16807.50,990834974
BEIS,The Insolvency Service,16/01/2019,Other Costs,Investigations & Enforcement Services,Sirs (Europe) Ltd,300005537,2801.26,990834974
BEIS,The Insolvency Service,16/01/2019,Other Costs,Investigations & Enforcement Services,Sirs (Europe) Ltd,300005537,2801.26,990834974
BEIS,The Insolvency Service,16/01/2019,Travel & Subsistence,Strategy & Change,Staff Payment,900005964,1.08,
BEIS,The Insolvency Service,16/01/2019,Travel & Subsistence,Strategy & Change,Staff Payment,900005964,30.00,
BEIS,The Insolvency Service,16/01/2019,Travel & Subsistence,Strategy & Change,Staff Payment,900005964,7.10,
BEIS,The Insolvency Service,16/01/2019,Travel & Subsistence,Official Receiver Services,Staff Payment,900005964,10.00,
BEIS,The Insolvency Service,16/01/2019,Travel & Subsistence,Official Receiver Services,Staff Payment,900006009,30.00,
BEIS,The Insolvency Service,16/01/2019,Travel & Subsistence,Strategy & Change,Staff Payment,900006008,29.50,
BEIS,The Insolvency Service,16/01/2019,Travel & Subsistence,Strategy & Change,Staff Payment,900006008,30.00,
BEIS,The Insolvency Service,16/01/2019,Travel & Subsistence,Strategy & Change,Staff Payment,900006008,10.00,
BEIS,The Insolvency Service,16/01/2019,Travel & Subsistence,Strategy & Change,Staff Payment,900006008,7.75,
BEIS,The Insolvency Service,16/01/2019,Travel & Subsistence,Official Receiver Services,Staff Payment,900005943,4.55,
BEIS,The Insolvency Service,16/01/2019,Travel & Subsistence,Official Receiver Services,Staff Payment,900005908,33.00,
BEIS,The Insolvency Service,16/01/2019,Travel & Subsistence,Official Receiver Services,Staff Payment,900005973,20.00,
BEIS,The Insolvency Service,16/01/2019,Travel & Subsistence,Investigations & Enforcement Services,Staff Payment,900005920,246.00,
BEIS,The Insolvency Service,16/01/2019,Travel & Subsistence,Official Receiver Services,Staff Payment,900003560,26.10,
BEIS,The Insolvency Service,16/01/2019,Travel & Subsistence,Official Receiver Services,Staff Payment,900003560,31.05,
BEIS,The Insolvency Service,16/01/2019,Travel & Subsistence,Official Receiver Services,Staff Payment,900003561,15.00,
BEIS,The Insolvency Service,16/01/2019,Travel & Subsistence,Official Receiver Services,Staff Payment,900003561,5.00,
BEIS,The Insolvency Service,16/01/2019,Travel & Subsistence,Official Receiver Services,Staff Payment,900003561,6.70,
BEIS,The Insolvency Service,16/01/2019,Travel & Subsistence,Official Receiver Services,Staff Payment,900003561,15.80,
BEIS,The Insolvency Service,16/01/2019,Travel & Subsistence,Official Receiver Services,Staff Payment,900003562,7.20,
BEIS,The Insolvency Service,16/01/2019,Travel & Subsistence,Official Receiver Services,Staff Payment,900003562,5.00,
BEIS,The Insolvency Service,16/01/2019,Travel & Subsistence,Business Service Division,Staff Payment,900005944,15.00,
BEIS,The Insolvency Service,16/01/2019,Travel & Subsistence,Business Service Division,Staff Payment,900005944,28.95,
BEIS,The Insolvency Service,16/01/2019,Travel & Subsistence,Business Service Division,Staff Payment,900005944,10.00,
BEIS,The Insolvency Service,16/01/2019,Travel & Subsistence,Business Service Division,Staff Payment,900005945,11.95,
BEIS,The Insolvency Service,16/01/2019,Travel & Subsistence,Business Service Division,Staff Payment,900005945,30.00,
BEIS,The Insolvency Service,16/01/2019,Travel & Subsistence,Business Service Division,Staff Payment,900005945,10.00,
BEIS,The Insolvency Service,16/01/2019,Travel & Subsistence,Investigations & Enforcement Services,Staff Payment,900005984,12.30,
BEIS,The Insolvency Service,16/01/2019,Travel & Subsistence,Investigations & Enforcement Services,Staff Payment,900005984,10.38,
BEIS,The Insolvency Service,16/01/2019,Travel & Subsistence,Investigations & Enforcement Services,Staff Payment,900005647,5.00,
BEIS,The Insolvency Service,16/01/2019,Travel & Subsistence,Investigations & Enforcement Services,Staff Payment,900005647,15.00,
BEIS,The Insolvency Service,16/01/2019,Travel & Subsistence,Investigations & Enforcement Services,Staff Payment,900005647,5.00,
BEIS,The Insolvency Service,16/01/2019,Travel & Subsistence,Investigations & Enforcement Services,Staff Payment,900005647,1.00,
BEIS,The Insolvency Service,16/01/2019,Travel & Subsistence,Investigations & Enforcement Services,Staff Payment,900005647,15.60,
BEIS,The Insolvency Service,16/01/2019,Travel & Subsistence,Investigations & Enforcement Services,Staff Payment,900005983,6.30,
BEIS,The Insolvency Service,16/01/2019,Travel & Subsistence,Investigations & Enforcement Services,Staff Payment,900005983,2.40,
BEIS,The Insolvency Service,16/01/2019,Travel & Subsistence,Investigations & Enforcement Services,Staff Payment,900006016,43.30,
BEIS,The Insolvency Service,16/01/2019,Travel & Subsistence,Official Receiver Services,Staff Payment,900006023,25.20,
BEIS,The Insolvency Service,16/01/2019,Travel & Subsistence,Investigations & Enforcement Services,Staff Payment,900005912,246.00,
BEIS,The Insolvency Service,16/01/2019,Travel & Subsistence,Official Receiver Services,Staff Payment,900005989,3.15,
BEIS,The Insolvency Service,16/01/2019,Travel & Subsistence,Official Receiver Services,Staff Payment,900005955,4.70,
BEIS,The Insolvency Service,16/01/2019,Travel & Subsistence,Official Receiver Services,Staff Payment,900005955,4.00,
BEIS,The Insolvency Service,16/01/2019,Travel & Subsistence,Official Receiver Services,Staff Payment,900005686,100.00,
BEIS,The Insolvency Service,16/01/2019,Travel & Subsistence,Business Service Division,Staff Payment,900005687,3.69,
BEIS,The Insolvency Service,16/01/2019,Travel & Subsistence,Business Service Division,Staff Payment,900005687,5.00,
BEIS,The Insolvency Service,16/01/2019,Travel & Subsistence,Business Service Division,Staff Payment,900005687,5.00,
BEIS,The Insolvency Service,16/01/2019,Travel & Subsistence,Business Service Division,Staff Payment,900005687,15.00,
BEIS,The Insolvency Service,16/01/2019,Travel & Subsistence,Business Service Division,Staff Payment,900005691,5.00,
BEIS,The Insolvency Service,16/01/2019,Travel & Subsistence,Business Service Division,Staff Payment,900005691,5.00,
BEIS,The Insolvency Service,16/01/2019,Travel & Subsistence,Business Service Division,Staff Payment,900005691,15.00,
BEIS,The Insolvency Service,16/01/2019,Travel & Subsistence,Business Service Division,Staff Payment,900005691,6.07,
BEIS,The Insolvency Service,16/01/2019,Travel & Subsistence,Business Service Division,Staff Payment,900005712,4.60,
BEIS,The Insolvency Service,16/01/2019,Travel & Subsistence,Business Service Division,Staff Payment,900005712,5.00,
BEIS,The Insolvency Service,16/01/2019,Travel & Subsistence,Business Service Division,Staff Payment,900005712,4.50,
BEIS,The Insolvency Service,16/01/2019,Travel & Subsistence,Business Service Division,Staff Payment,900005712,14.35,
BEIS,The Insolvency Service,16/01/2019,Travel & Subsistence,People & Capability,Staff Payment,900005377,7.40,
BEIS,The Insolvency Service,16/01/2019,Travel & Subsistence,Investigations & Enforcement Services,Staff Payment,900005980,2.70,
BEIS,The Insolvency Service,16/01/2019,Travel & Subsistence,Investigations & Enforcement Services,Staff Payment,900005980,13.16,
BEIS,The Insolvency Service,16/01/2019,Travel & Subsistence,Investigations & Enforcement Services,Staff Payment,900005980,5.00,
BEIS,The Insolvency Service,16/01/2019,Travel & Subsistence,Investigations & Enforcement Services,Staff Payment,900005980,9.50,
BEIS,The Insolvency Service,16/01/2019,Travel & Subsistence,Investigations & Enforcement Services,Staff Payment,900005980,5.00,
BEIS,The Insolvency Service,16/01/2019,Travel & Subsistence,Official Receiver Services,Staff Payment,900005998,6.00,
BEIS,The Insolvency Service,16/01/2019,Travel & Subsistence,Official Receiver Services,Staff Payment,900005998,8.00,
BEIS,The Insolvency Service,16/01/2019,Travel & Subsistence,People & Capability,Staff Payment,900005948,4.69,
BEIS,The Insolvency Service,16/01/2019,Travel & Subsistence,People & Capability,Staff Payment,900005949,5.00,
BEIS,The Insolvency Service,16/01/2019,Travel & Subsistence,Official Receiver Services,Staff Payment,900005946,3.60,
BEIS,The Insolvency Service,16/01/2019,Travel & Subsistence,Official Receiver Services,Staff Payment,900005946,5.00,
BEIS,The Insolvency Service,16/01/2019,Travel & Subsistence,Official Receiver Services,Staff Payment,900005946,52.20,
BEIS,The Insolvency Service,16/01/2019,Travel & Subsistence,People & Capability,Staff Payment,900005969,5.00,
BEIS,The Insolvency Service,16/01/2019,Travel & Subsistence,People & Capability,Staff Payment,900005969,5.00,
BEIS,The Insolvency Service,16/01/2019,Travel & Subsistence,People & Capability,Staff Payment,900005969,3.39,
BEIS,The Insolvency Service,16/01/2019,Travel & Subsistence,Official Receiver Services,Staff Payment,900005977,7.20,
BEIS,The Insolvency Service,16/01/2019,Travel & Subsistence,Finance & Commercial,Staff Payment,900005978,39.96,
BEIS,The Insolvency Service,16/01/2019,Travel & Subsistence,Official Receiver Services,Staff Payment,900005941,5.00,
BEIS,The Insolvency Service,16/01/2019,Travel & Subsistence,Official Receiver Services,Staff Payment,900005941,5.00,
BEIS,The Insolvency Service,16/01/2019,Travel & Subsistence,Investigations & Enforcement Services,Staff Payment,900005673,7.60,
BEIS,The Insolvency Service,16/01/2019,Travel & Subsistence,Official Receiver Services,Staff Payment,900005694,28.80,
BEIS,The Insolvency Service,16/01/2019,Travel & Subsistence,Official Receiver Services,Staff Payment,900005968,36.90,
BEIS,The Insolvency Service,16/01/2019,Travel & Subsistence,Investigations & Enforcement Services,Staff Payment,900005972,4.40,
BEIS,The Insolvency Service,16/01/2019,Travel & Subsistence,Investigations & Enforcement Services,Staff Payment,900005972,5.00,
BEIS,The Insolvency Service,16/01/2019,Travel & Subsistence,Investigations & Enforcement Services,Staff Payment,900005974,4.60,
BEIS,The Insolvency Service,16/01/2019,Travel & Subsistence,Investigations & Enforcement Services,Staff Payment,900005974,8.20,
BEIS,The Insolvency Service,16/01/2019,Travel & Subsistence,Investigations & Enforcement Services,Staff Payment,900005974,7.60,
BEIS,The Insolvency Service,16/01/2019,Travel & Subsistence,Investigations & Enforcement Services,Staff Payment,900005974,4.99,
BEIS,The Insolvency Service,16/01/2019,Travel & Subsistence,Investigations & Enforcement Services,Staff Payment,900006004,4.80,
BEIS,The Insolvency Service,16/01/2019,Travel & Subsistence,Investigations & Enforcement Services,Staff Payment,900006004,4.80,
BEIS,The Insolvency Service,16/01/2019,Travel & Subsistence,Official Receiver Services,Staff Payment,900005840,5.00,
BEIS,The Insolvency Service,16/01/2019,Travel & Subsistence,Official Receiver Services,Staff Payment,900005840,81.00,
BEIS,The Insolvency Service,16/01/2019,Travel & Subsistence,Investigations & Enforcement Services,Staff Payment,900005963,4.80,
BEIS,The Insolvency Service,16/01/2019,Travel & Subsistence,Investigations & Enforcement Services,Staff Payment,900005963,9.00,
BEIS,The Insolvency Service,16/01/2019,Travel & Subsistence,Investigations & Enforcement Services,Staff Payment,900005963,36.00,
BEIS,The Insolvency Service,16/01/2019,Travel & Subsistence,Investigations & Enforcement Services,Staff Payment,900005963,53.70,
BEIS,The Insolvency Service,16/01/2019,Travel & Subsistence,People & Capability,Staff Payment,900005954,7.00,
BEIS,The Insolvency Service,16/01/2019,Travel & Subsistence,People & Capability,Staff Payment,900005954,15.00,
BEIS,The Insolvency Service,16/01/2019,Travel & Subsistence,People & Capability,Staff Payment,900005954,5.00,
BEIS,The Insolvency Service,16/01/2019,Travel & Subsistence,People & Capability,Staff Payment,900005954,5.00,
BEIS,The Insolvency Service,16/01/2019,Travel & Subsistence,Finance & Commercial,Staff Payment,900006020,10.00,
BEIS,The Insolvency Service,16/01/2019,Travel & Subsistence,Finance & Commercial,Staff Payment,900006020,15.00,
BEIS,The Insolvency Service,16/01/2019,Travel & Subsistence,Finance & Commercial,Staff Payment,900006020,5.00,
BEIS,The Insolvency Service,16/01/2019,Travel & Subsistence,Official Receiver Services,Staff Payment,900005976,4.40,
BEIS,The Insolvency Service,16/01/2019,Travel & Subsistence,Official Receiver Services,Staff Payment,900005976,68.00,
BEIS,The Insolvency Service,16/01/2019,Travel & Subsistence,Investigations & Enforcement Services,Staff Payment,900005985,3.75,
BEIS,The Insolvency Service,16/01/2019,Travel & Subsistence,Investigations & Enforcement Services,Staff Payment,900005985,3.75,
BEIS,The Insolvency Service,16/01/2019,Travel & Subsistence,Investigations & Enforcement Services,Staff Payment,900005985,17.99,
BEIS,The Insolvency Service,16/01/2019,Travel & Subsistence,Finance & Commercial,Staff Payment,900005919,325.00,
BEIS,The Insolvency Service,16/01/2019,Travel & Subsistence,Investigations & Enforcement Services,Staff Payment,900005967,5.00,
BEIS,The Insolvency Service,16/01/2019,Travel & Subsistence,Investigations & Enforcement Services,Staff Payment,900005967,5.00,
BEIS,The Insolvency Service,16/01/2019,Travel & Subsistence,Investigations & Enforcement Services,Staff Payment,900005967,49.50,
BEIS,The Insolvency Service,16/01/2019,Travel & Subsistence,Investigations & Enforcement Services,Staff Payment,900005967,27.00,
BEIS,The Insolvency Service,16/01/2019,Travel & Subsistence,Investigations & Enforcement Services,Staff Payment,900005967,6.00,
BEIS,The Insolvency Service,16/01/2019,Travel & Subsistence,Strategy & Change,Staff Payment,900005899,8.20,
BEIS,The Insolvency Service,16/01/2019,Travel & Subsistence,Official Receiver Services,Staff Payment,900005899,5.40,
BEIS,The Insolvency Service,16/01/2019,Travel & Subsistence,Official Receiver Services,Staff Payment,900005899,5.00,
BEIS,The Insolvency Service,16/01/2019,Travel & Subsistence,Official Receiver Services,Staff Payment,900005899,15.00,
BEIS,The Insolvency Service,16/01/2019,Travel & Subsistence,Official Receiver Services,Staff Payment,900005899,5.00,
BEIS,The Insolvency Service,16/01/2019,Travel & Subsistence,Official Receiver Services,Staff Payment,900005899,8.49,
BEIS,The Insolvency Service,16/01/2019,Travel & Subsistence,Strategy & Change,Staff Payment,900005899,8.14,
BEIS,The Insolvency Service,16/01/2019,Travel & Subsistence,Strategy & Change,Staff Payment,900005899,3.50,
BEIS,The Insolvency Service,16/01/2019,Travel & Subsistence,Strategy & Change,Staff Payment,900005899,8.50,
BEIS,The Insolvency Service,16/01/2019,Travel & Subsistence,Official Receiver Services,Staff Payment,900005899,28.20,
BEIS,The Insolvency Service,16/01/2019,Travel & Subsistence,Official Receiver Services,Staff Payment,900005899,10.00,
BEIS,The Insolvency Service,16/01/2019,Travel & Subsistence,Official Receiver Services,Staff Payment,900005899,2.40,
BEIS,The Insolvency Service,16/01/2019,Travel & Subsistence,Investigations & Enforcement Services,Staff Payment,900006001,2.70,
BEIS,The Insolvency Service,16/01/2019,Travel & Subsistence,Investigations & Enforcement Services,Staff Payment,900005544,9.20,
BEIS,The Insolvency Service,16/01/2019,Travel & Subsistence,Investigations & Enforcement Services,Staff Payment,900006000,3.25,
BEIS,The Insolvency Service,16/01/2019,Travel & Subsistence,Investigations & Enforcement Services,Staff Payment,900006018,10.00,
BEIS,The Insolvency Service,16/01/2019,Travel & Subsistence,Investigations & Enforcement Services,Staff Payment,900006018,20.00,
BEIS,The Insolvency Service,16/01/2019,Travel & Subsistence,Strategy & Change,Staff Payment,900005926,15.00,
BEIS,The Insolvency Service,16/01/2019,Travel & Subsistence,Strategy & Change,Staff Payment,900005926,5.80,
BEIS,The Insolvency Service,16/01/2019,Travel & Subsistence,Strategy & Change,Staff Payment,900005926,8.40,
BEIS,The Insolvency Service,16/01/2019,Travel & Subsistence,Strategy & Change,Staff Payment,900005000,4.80,
BEIS,The Insolvency Service,16/01/2019,Travel & Subsistence,Strategy & Change,Staff Payment,900005000,8.58,
BEIS,The Insolvency Service,16/01/2019,Travel & Subsistence,Strategy & Change,Staff Payment,900005000,28.45,
BEIS,The Insolvency Service,16/01/2019,Travel & Subsistence,Strategy & Change,Staff Payment,900005000,15.00,
BEIS,The Insolvency Service,16/01/2019,Travel & Subsistence,Strategy & Change,Staff Payment,900005492,4.80,
BEIS,The Insolvency Service,16/01/2019,Travel & Subsistence,Strategy & Change,Staff Payment,900005492,5.00,
BEIS,The Insolvency Service,16/01/2019,Travel & Subsistence,Strategy & Change,Staff Payment,900005550,8.78,
BEIS,The Insolvency Service,16/01/2019,Travel & Subsistence,Strategy & Change,Staff Payment,900005669,5.00,
BEIS,The Insolvency Service,16/01/2019,Travel & Subsistence,Strategy & Change,Staff Payment,900005904,4.80,
BEIS,The Insolvency Service,16/01/2019,Travel & Subsistence,Strategy & Change,Staff Payment,900005904,5.00,
BEIS,The Insolvency Service,16/01/2019,Travel & Subsistence,Business Service Division,Staff Payment,900005934,27.29,
BEIS,The Insolvency Service,16/01/2019,Travel & Subsistence,Business Service Division,Staff Payment,900005934,14.49,
BEIS,The Insolvency Service,16/01/2019,Travel & Subsistence,Business Service Division,Staff Payment,900005934,15.00,
BEIS,The Insolvency Service,16/01/2019,Travel & Subsistence,Strategy & Change,Staff Payment,900005849,13.27,
BEIS,The Insolvency Service,16/01/2019,Travel & Subsistence,Strategy & Change,Staff Payment,900005849,11.11,
BEIS,The Insolvency Service,16/01/2019,Travel & Subsistence,Strategy & Change,Staff Payment,900005849,89.50,
BEIS,The Insolvency Service,16/01/2019,Travel & Subsistence,Strategy & Change,Staff Payment,900005849,89.50,
BEIS,The Insolvency Service,16/01/2019,Travel & Subsistence,Strategy & Change,Staff Payment,900005849,89.50,
BEIS,The Insolvency Service,16/01/2019,Travel & Subsistence,Strategy & Change,Staff Payment,900005849,89.50,
BEIS,The Insolvency Service,16/01/2019,Travel & Subsistence,Strategy & Change,Staff Payment,900005849,89.50,
BEIS,The Insolvency Service,16/01/2019,Travel & Subsistence,Business Service Division,Staff Payment,900004758,2.30,
BEIS,The Insolvency Service,16/01/2019,Travel & Subsistence,Information & Technology,Staff Payment,900005674,57.60,
BEIS,The Insolvency Service,16/01/2019,Travel & Subsistence,Investigations & Enforcement Services,Staff Payment,900005843,5.00,
BEIS,The Insolvency Service,16/01/2019,Travel & Subsistence,Investigations & Enforcement Services,Staff Payment,900006003,4.50,
BEIS,The Insolvency Service,16/01/2019,Travel & Subsistence,Investigations & Enforcement Services,Staff Payment,900005956,5.00,
BEIS,The Insolvency Service,16/01/2019,Travel & Subsistence,Investigations & Enforcement Services,Staff Payment,900005965,10.45,
BEIS,The Insolvency Service,16/01/2019,Travel & Subsistence,Investigations & Enforcement Services,Staff Payment,900005966,3.60,
BEIS,The Insolvency Service,16/01/2019,Travel & Subsistence,Investigations & Enforcement Services,Staff Payment,900005999,4.40,
BEIS,The Insolvency Service,16/01/2019,Travel & Subsistence,Finance & Commercial,Staff Payment,900005928,11.79,
BEIS,The Insolvency Service,16/01/2019,Travel & Subsistence,Finance & Commercial,Staff Payment,900005929,11.00,
BEIS,The Insolvency Service,16/01/2019,Travel & Subsistence,Finance & Commercial,Staff Payment,900005929,5.00,
BEIS,The Insolvency Service,16/01/2019,Travel & Subsistence,Finance & Commercial,Staff Payment,900005950,11.90,
BEIS,The Insolvency Service,16/01/2019,Travel & Subsistence,Finance & Commercial,Staff Payment,900005950,14.05,
BEIS,The Insolvency Service,16/01/2019,Travel & Subsistence,Finance & Commercial,Staff Payment,900005950,1.85,
BEIS,The Insolvency Service,16/01/2019,Travel & Subsistence,Finance & Commercial,Staff Payment,900005950,8.90,
BEIS,The Insolvency Service,16/01/2019,Travel & Subsistence,Finance & Commercial,Staff Payment,900005950,5.00,
BEIS,The Insolvency Service,16/01/2019,Travel & Subsistence,Finance & Commercial,Staff Payment,900005950,3.25,
BEIS,The Insolvency Service,16/01/2019,Travel & Subsistence,Finance & Commercial,Staff Payment,900005950,3.25,
BEIS,The Insolvency Service,16/01/2019,Travel & Subsistence,Finance & Commercial,Staff Payment,900005951,4.81,
BEIS,The Insolvency Service,16/01/2019,Travel & Subsistence,Finance & Commercial,Staff Payment,900005951,5.00,
BEIS,The Insolvency Service,16/01/2019,Travel & Subsistence,Finance & Commercial,Staff Payment,900005952,5.00,
BEIS,The Insolvency Service,16/01/2019,Travel & Subsistence,Finance & Commercial,Staff Payment,900005952,3.00,
BEIS,The Insolvency Service,16/01/2019,Travel & Subsistence,Finance & Commercial,Staff Payment,900005952,20.00,
BEIS,The Insolvency Service,16/01/2019,Travel & Subsistence,Finance & Commercial,Staff Payment,900005952,5.00,
BEIS,The Insolvency Service,16/01/2019,Travel & Subsistence,Finance & Commercial,Staff Payment,900005953,4.29,
BEIS,The Insolvency Service,16/01/2019,Travel & Subsistence,Finance & Commercial,Staff Payment,900005953,2.80,
BEIS,The Insolvency Service,16/01/2019,Travel & Subsistence,Finance & Commercial,Staff Payment,900005953,4.09,
BEIS,The Insolvency Service,16/01/2019,Travel & Subsistence,Finance & Commercial,Staff Payment,900005957,5.00,
BEIS,The Insolvency Service,16/01/2019,Travel & Subsistence,Finance & Commercial,Staff Payment,900005957,4.15,
BEIS,The Insolvency Service,16/01/2019,Travel & Subsistence,Finance & Commercial,Staff Payment,900005957,3.65,
BEIS,The Insolvency Service,16/01/2019,Travel & Subsistence,Finance & Commercial,Staff Payment,900005957,11.00,
BEIS,The Insolvency Service,16/01/2019,Travel & Subsistence,Finance & Commercial,Staff Payment,900005958,20.00,
BEIS,The Insolvency Service,16/01/2019,Travel & Subsistence,Finance & Commercial,Staff Payment,900005958,1.80,
BEIS,The Insolvency Service,16/01/2019,Travel & Subsistence,Finance & Commercial,Staff Payment,900005958,6.80,
BEIS,The Insolvency Service,16/01/2019,Travel & Subsistence,Information & Technology,Staff Payment,900005764,392.00,
BEIS,The Insolvency Service,16/01/2019,Travel & Subsistence,Information & Technology,Staff Payment,900005764,105.50,
BEIS,The Insolvency Service,16/01/2019,Travel & Subsistence,Information & Technology,Staff Payment,900005764,8.30,
BEIS,The Insolvency Service,16/01/2019,Travel & Subsistence,Information & Technology,Staff Payment,900005764,149.00,
BEIS,The Insolvency Service,16/01/2019,Travel & Subsistence,Information & Technology,Staff Payment,900005764,10.00,
BEIS,The Insolvency Service,16/01/2019,Travel & Subsistence,Business Service Division,Staff Payment,900006015,9.49,
BEIS,The Insolvency Service,16/01/2019,Travel & Subsistence,Business Service Division,Staff Payment,900006015,12.69,
BEIS,The Insolvency Service,16/01/2019,Travel & Subsistence,Business Service Division,Staff Payment,900006015,5.00,
BEIS,The Insolvency Service,16/01/2019,Travel & Subsistence,Business Service Division,Staff Payment,900006015,15.00,
BEIS,The Insolvency Service,16/01/2019,Travel & Subsistence,Business Service Division,Staff Payment,900006015,5.00,
BEIS,The Insolvency Service,16/01/2019,Travel & Subsistence,Business Service Division,Staff Payment,900006015,5.00,
BEIS,The Insolvency Service,16/01/2019,Travel & Subsistence,Official Receiver Services,Staff Payment,900005986,4.55,
BEIS,The Insolvency Service,16/01/2019,Legal Costs,Investigations & Enforcement Services,SUNDRY SUPPLIER,300005327,169.50,
BEIS,The Insolvency Service,16/01/2019,Insolvency Case Related Costs,Official Receiver Services,The Stationery Office Ltd,300005629,154.20,662774703
BEIS,The Insolvency Service,16/01/2019,Insolvency Case Related Costs,Official Receiver Services,The Stationery Office Ltd,300005630,74.58,662774703
BEIS,The Insolvency Service,16/01/2019,Insolvency Case Related Costs,Official Receiver Services,The Stationery Office Ltd,300005631,74.58,662774703
BEIS,The Insolvency Service,16/01/2019,Computer & IT Systems,Strategy & Change,Trustmarque Solutions Ltd,300005614,2146.03,727348615
BEIS,The Insolvency Service,16/01/2019,Computer & IT Systems,Strategy & Change,Trustmarque Solutions Ltd,300005671,1596.85,727348615
BEIS,The Insolvency Service,16/01/2019,Investigation & Enforcement Costs,Official Receiver Services,Womble Bond Dickinson,300005689,9069.33,123392627
BEIS,The Insolvency Service,16/01/2019,Investigation & Enforcement Costs,Investigations & Enforcement Services,Womble Bond Dickinson,300005713,5375.51,123392627
BEIS,The Insolvency Service,16/01/2019,Legal Costs,Investigations & Enforcement Services,Womble Bond Dickinson,300005688,3045.45,123392627
BEIS,The Insolvency Service,16/01/2019,Legal Costs,Investigations & Enforcement Services,Womble Bond Dickinson,300005713,25244.93,123392627
BEIS,The Insolvency Service,16/01/2019,Legal Costs,Investigations & Enforcement Services,Womble Bond Dickinson,300005713,6407.63,123392627
BEIS,The Insolvency Service,16/01/2019,Legal Costs,Investigations & Enforcement Services,Womble Bond Dickinson,300005713,9047.34,123392627
BEIS,The Insolvency Service,17/01/2019,Legal Costs,Legal Services Division,18 Red Lion Court Chambers,300005746,501.60,766793665
BEIS,The Insolvency Service,17/01/2019,Legal Costs,Legal Services Division,18 Red Lion Court Chambers,300005748,160.20,766793665
BEIS,The Insolvency Service,17/01/2019,Legal Costs,Legal Services Division,18 Red Lion Court Chambers,300005751,480.00,766793665
BEIS,The Insolvency Service,17/01/2019,Legal Costs,Legal Services Division,5 St Andrews Hill,300005747,1596.00,703074472
BEIS,The Insolvency Service,17/01/2019,Agency Costs,Information & Technology,Concept Information Technology Ltd,300005763,2040.00,776147892
BEIS,The Insolvency Service,17/01/2019,Telephones & Postage,Investigations & Enforcement Services,Daisy Communications Ltd,300005755,35.08,
BEIS,The Insolvency Service,17/01/2019,Accomodation,Finance & Commercial,Edf Energy,300005638,1023.08,523041202
BEIS,The Insolvency Service,17/01/2019,Accomodation,Finance & Commercial,Edf Energy,300005638,1023.08,523041202
BEIS,The Insolvency Service,17/01/2019,Accomodation,Finance & Commercial,Edf Energy,300005638,311.79,523041202
BEIS,The Insolvency Service,17/01/2019,Accomodation,Finance & Commercial,Edf Energy,300005638,311.79,523041202
BEIS,The Insolvency Service,17/01/2019,Telephones & Postage,Information & Technology,Ee Limited,300005975,360.00,771592016
BEIS,The Insolvency Service,17/01/2019,Telephones & Postage,Information & Technology,Ee Limited,300005976,360.00,771592016
BEIS,The Insolvency Service,17/01/2019,Computer & IT Systems,Information & Technology,Ibm Uk Ltd,300005300,20868.00,107328000
BEIS,The Insolvency Service,17/01/2019,Legal Costs,Legal Services Division,Police And Crime Commissioner For Hampshire,300005749,156.00,
BEIS,The Insolvency Service,17/01/2019,Accomodation,Finance & Commercial,Prydis Support Ltd,300005635,673.58,974841283
BEIS,The Insolvency Service,17/01/2019,Accomodation,Finance & Commercial,Prydis Support Ltd,300005649,452.05,974841283
BEIS,The Insolvency Service,17/01/2019,Accomodation,Finance & Commercial,Prydis Support Ltd,300005692,13985.02,974841283
BEIS,The Insolvency Service,17/01/2019,Legal Costs,Legal Services Division,St Philips Barristers,300005745,718.00,614053968
BEIS,The Insolvency Service,17/01/2019,Travel & Subsistence,Investigations & Enforcement Services,Staff Payment,900006021,2.11,
BEIS,The Insolvency Service,17/01/2019,Travel & Subsistence,Investigations & Enforcement Services,Staff Payment,900006021,5.00,
BEIS,The Insolvency Service,17/01/2019,Travel & Subsistence,Investigations & Enforcement Services,Staff Payment,900006021,1.00,
BEIS,The Insolvency Service,17/01/2019,Travel & Subsistence,Investigations & Enforcement Services,Staff Payment,900006021,1.80,
BEIS,The Insolvency Service,17/01/2019,Travel & Subsistence,Official Receiver Services,Staff Payment,900006013,23.90,
BEIS,The Insolvency Service,17/01/2019,Travel & Subsistence,Official Receiver Services,Staff Payment,900006013,10.88,
BEIS,The Insolvency Service,17/01/2019,Travel & Subsistence,Official Receiver Services,Staff Payment,900006013,24.03,
BEIS,The Insolvency Service,17/01/2019,Travel & Subsistence,Investigations & Enforcement Services,Staff Payment,900006010,4.94,
BEIS,The Insolvency Service,17/01/2019,Travel & Subsistence,Investigations & Enforcement Services,Staff Payment,900006010,5.00,
BEIS,The Insolvency Service,17/01/2019,Travel & Subsistence,Investigations & Enforcement Services,Staff Payment,900006010,4.25,
BEIS,The Insolvency Service,17/01/2019,Travel & Subsistence,Official Receiver Services,Staff Payment,900006025,15.30,
BEIS,The Insolvency Service,17/01/2019,Travel & Subsistence,Official Receiver Services,Staff Payment,900006025,7.20,
BEIS,The Insolvency Service,17/01/2019,Travel & Subsistence,Official Receiver Services,Staff Payment,900006025,12.60,
BEIS,The Insolvency Service,17/01/2019,Travel & Subsistence,Official Receiver Services,Staff Payment,900006025,18.45,
BEIS,The Insolvency Service,17/01/2019,Travel & Subsistence,Official Receiver Services,Staff Payment,900006033,5.00,
BEIS,The Insolvency Service,17/01/2019,Travel & Subsistence,Official Receiver Services,Staff Payment,900006033,8.90,
BEIS,The Insolvency Service,17/01/2019,Travel & Subsistence,Official Receiver Services,Staff Payment,900006011,5.00,
BEIS,The Insolvency Service,17/01/2019,Travel & Subsistence,Official Receiver Services,Staff Payment,900006011,15.00,
BEIS,The Insolvency Service,17/01/2019,Travel & Subsistence,Official Receiver Services,Staff Payment,900006014,70.50,
BEIS,The Insolvency Service,17/01/2019,Travel & Subsistence,Official Receiver Services,Staff Payment,900006027,15.62,
BEIS,The Insolvency Service,17/01/2019,Travel & Subsistence,Official Receiver Services,Staff Payment,900006027,15.62,
BEIS,The Insolvency Service,17/01/2019,Travel & Subsistence,Official Receiver Services,Staff Payment,900006027,15.62,
BEIS,The Insolvency Service,17/01/2019,Travel & Subsistence,Official Receiver Services,Staff Payment,900006027,15.62,
BEIS,The Insolvency Service,17/01/2019,Travel & Subsistence,Investigations & Enforcement Services,Staff Payment,900006028,4.80,
BEIS,The Insolvency Service,17/01/2019,Travel & Subsistence,Investigations & Enforcement Services,Staff Payment,900006028,24.00,
BEIS,The Insolvency Service,17/01/2019,Travel & Subsistence,Investigations & Enforcement Services,Staff Payment,900006028,9.00,
BEIS,The Insolvency Service,17/01/2019,Travel & Subsistence,Investigations & Enforcement Services,Staff Payment,900006028,34.87,
BEIS,The Insolvency Service,17/01/2019,Travel & Subsistence,Strategy & Change,Staff Payment,900005981,5.00,
BEIS,The Insolvency Service,17/01/2019,Travel & Subsistence,Strategy & Change,Staff Payment,900005981,5.00,
BEIS,The Insolvency Service,17/01/2019,Travel & Subsistence,Strategy & Change,Staff Payment,900005981,5.00,
BEIS,The Insolvency Service,17/01/2019,Travel & Subsistence,Strategy & Change,Staff Payment,900005981,15.00,
BEIS,The Insolvency Service,17/01/2019,Travel & Subsistence,Strategy & Change,Staff Payment,900005981,5.00,
BEIS,The Insolvency Service,17/01/2019,Travel & Subsistence,Strategy & Change,Staff Payment,900005981,5.00,
BEIS,The Insolvency Service,17/01/2019,Travel & Subsistence,People & Capability,Staff Payment,900006019,150.00,
BEIS,The Insolvency Service,17/01/2019,Travel & Subsistence,Finance & Commercial,Staff Payment,900005927,13.47,
BEIS,The Insolvency Service,17/01/2019,Travel & Subsistence,Finance & Commercial,Staff Payment,900005927,29.25,
BEIS,The Insolvency Service,17/01/2019,Travel & Subsistence,Finance & Commercial,Staff Payment,900005927,40.80,
BEIS,The Insolvency Service,17/01/2019,Travel & Subsistence,Finance & Commercial,Staff Payment,900005927,15.00,
BEIS,The Insolvency Service,17/01/2019,Travel & Subsistence,Finance & Commercial,Staff Payment,900005927,5.00,
BEIS,The Insolvency Service,17/01/2019,Travel & Subsistence,Finance & Commercial,Staff Payment,900005927,16.00,
BEIS,The Insolvency Service,17/01/2019,Travel & Subsistence,Finance & Commercial,Staff Payment,900005927,10.00,
BEIS,The Insolvency Service,17/01/2019,Travel & Subsistence,Finance & Commercial,Staff Payment,900005927,18.00,
BEIS,The Insolvency Service,17/01/2019,Travel & Subsistence,Investigations & Enforcement Services,Staff Payment,900006005,4.15,
BEIS,The Insolvency Service,17/01/2019,Travel & Subsistence,Investigations & Enforcement Services,Staff Payment,900006005,10.40,
BEIS,The Insolvency Service,17/01/2019,Travel & Subsistence,Finance & Commercial,Staff Payment,900006024,246.00,
BEIS,The Insolvency Service,17/01/2019,Travel & Subsistence,Finance & Commercial,Staff Payment,900006024,4.80,
BEIS,The Insolvency Service,17/01/2019,Travel & Subsistence,Official Receiver Services,Staff Payment,900005659,25.00,
BEIS,The Insolvency Service,17/01/2019,Travel & Subsistence,Official Receiver Services,Staff Payment,900005659,10.00,
BEIS,The Insolvency Service,17/01/2019,Travel & Subsistence,Official Receiver Services,Staff Payment,900005659,16.00,
BEIS,The Insolvency Service,17/01/2019,Travel & Subsistence,Official Receiver Services,Staff Payment,900005659,16.90,
BEIS,The Insolvency Service,17/01/2019,Travel & Subsistence,Official Receiver Services,Staff Payment,900005659,36.69,
BEIS,The Insolvency Service,17/01/2019,Travel & Subsistence,Official Receiver Services,Staff Payment,900005762,20.00,
BEIS,The Insolvency Service,17/01/2019,Travel & Subsistence,Official Receiver Services,Staff Payment,900005762,8.00,
BEIS,The Insolvency Service,17/01/2019,Travel & Subsistence,Official Receiver Services,Staff Payment,900005762,16.00,
BEIS,The Insolvency Service,17/01/2019,Travel & Subsistence,Official Receiver Services,Staff Payment,900005762,23.81,
BEIS,The Insolvency Service,17/01/2019,Legal Costs,Legal Services Division,SUNDRY SUPPLIER,300005909,435.52,
BEIS,The Insolvency Service,17/01/2019,Legal Costs,Legal Services Division,SUNDRY SUPPLIER,300005910,330.00,
BEIS,The Insolvency Service,17/01/2019,Telephones & Postage,Business Service Division,Tnt Uk Ltd,300005732,16.07,354715057
BEIS,The Insolvency Service,17/01/2019,Telephones & Postage,Business Service Division,Tnt Uk Ltd,300005733,24.72,354715057
BEIS,The Insolvency Service,17/01/2019,Telephones & Postage,Business Service Division,Tnt Uk Ltd,300005734,11.00,354715057
BEIS,The Insolvency Service,17/01/2019,Computer & IT Systems,Information & Technology,Trustmarque Solutions Ltd,300005672,1977.92,727348615
BEIS,The Insolvency Service,17/01/2019,Legal Costs,Investigations & Enforcement Services,Womble Bond Dickinson,300005744,5000.00,123392627
BEIS,The Insolvency Service,18/01/2019,Agency Costs,Finance & Commercial,ALEXANDER MANN SOLUTIONS,300005737,51558.52,7444926120
BEIS,The Insolvency Service,18/01/2019,Printing & Stationary,Business Service Division,Companies House,300005555,19.00,GD255
BEIS,The Insolvency Service,18/01/2019,Office Machinery,Business Service Division,Data Capture Solutions (NeoPost),300005376,1262.76,
BEIS,The Insolvency Service,18/01/2019,Printing & Stationary,Business Service Division,Data Capture Solutions (NeoPost),300005376,12.00,
BEIS,The Insolvency Service,18/01/2019,Legal Costs,Investigations & Enforcement Services,Gowling Wragge Lawrence Graham  & Co,300005774,9928.72,858698838
BEIS,The Insolvency Service,18/01/2019,Agency Costs,Finance & Commercial,Hays Specialist Recruitment Ltd,300005757,1556.64,773695871
BEIS,The Insolvency Service,18/01/2019,Agency Costs,Finance & Commercial,Insight Executive Group Limited,300005770,3105.00,204262647
BEIS,The Insolvency Service,18/01/2019,Telephones & Postage,Information & Technology,Kcom Group Plc,300005776,72.00,647235137
BEIS,The Insolvency Service,18/01/2019,Training,People & Capability,KPMG LLP,300005777,110.00,791788859
BEIS,The Insolvency Service,18/01/2019,Telephones & Postage,Business Service Division,Parcelforce Worldwide,300005762,478.08,243170002
BEIS,The Insolvency Service,18/01/2019,Telephones & Postage,Business Service Division,Royal Mail Group Ltd,300005760,88.52,243170002
BEIS,The Insolvency Service,18/01/2019,Telephones & Postage,Business Service Division,Royal Mail Group Ltd,300005764,50.40,243170002
BEIS,The Insolvency Service,18/01/2019,Telephones & Postage,Business Service Division,Royal Mail Group Ltd,300005765,7.71,243170002
BEIS,The Insolvency Service,18/01/2019,Telephones & Postage,Business Service Division,Royal Mail Group Ltd,300005771,46.39,243170002
BEIS,The Insolvency Service,18/01/2019,Travel & Subsistence,Investigations & Enforcement Services,Staff Payment,900006048,4.80,
BEIS,The Insolvency Service,18/01/2019,Travel & Subsistence,Investigations & Enforcement Services,Staff Payment,900006049,5.80,
BEIS,The Insolvency Service,18/01/2019,Travel & Subsistence,Investigations & Enforcement Services,Staff Payment,900006049,12.60,
BEIS,The Insolvency Service,18/01/2019,Travel & Subsistence,Official Receiver Services,Staff Payment,900005996,5.40,
BEIS,The Insolvency Service,18/01/2019,Travel & Subsistence,Official Receiver Services,Staff Payment,900005996,5.40,
BEIS,The Insolvency Service,18/01/2019,Travel & Subsistence,Official Receiver Services,Staff Payment,900005997,5.00,
BEIS,The Insolvency Service,18/01/2019,Travel & Subsistence,Strategy & Change,Staff Payment,900005970,25.00,
BEIS,The Insolvency Service,18/01/2019,Travel & Subsistence,Strategy & Change,Staff Payment,900005970,1.99,
BEIS,The Insolvency Service,18/01/2019,Travel & Subsistence,Strategy & Change,Staff Payment,900005970,5.00,
BEIS,The Insolvency Service,18/01/2019,Travel & Subsistence,Strategy & Change,Staff Payment,900005970,5.00,
BEIS,The Insolvency Service,18/01/2019,Travel & Subsistence,Strategy & Change,Staff Payment,900005971,4.70,
BEIS,The Insolvency Service,18/01/2019,Travel & Subsistence,Strategy & Change,Staff Payment,900005971,29.79,
BEIS,The Insolvency Service,18/01/2019,Travel & Subsistence,Finance & Commercial,Staff Payment,900006068,108.00,
BEIS,The Insolvency Service,18/01/2019,Travel & Subsistence,Investigations & Enforcement Services,Staff Payment,900005909,5.00,
BEIS,The Insolvency Service,18/01/2019,Travel & Subsistence,Investigations & Enforcement Services,Staff Payment,900005909,28.80,
BEIS,The Insolvency Service,18/01/2019,Travel & Subsistence,Investigations & Enforcement Services,Staff Payment,900005909,9.20,
BEIS,The Insolvency Service,18/01/2019,Travel & Subsistence,Investigations & Enforcement Services,Staff Payment,900006031,25.00,
BEIS,The Insolvency Service,18/01/2019,Travel & Subsistence,Investigations & Enforcement Services,Staff Payment,900006031,50.00,
BEIS,The Insolvency Service,18/01/2019,Travel & Subsistence,Investigations & Enforcement Services,Staff Payment,900006031,25.00,
BEIS,The Insolvency Service,18/01/2019,Travel & Subsistence,Investigations & Enforcement Services,Staff Payment,900006031,25.00,
BEIS,The Insolvency Service,18/01/2019,Travel & Subsistence,Investigations & Enforcement Services,Staff Payment,900006026,25.00,
BEIS,The Insolvency Service,18/01/2019,Travel & Subsistence,Investigations & Enforcement Services,Staff Payment,900006026,13.50,
BEIS,The Insolvency Service,18/01/2019,Travel & Subsistence,Investigations & Enforcement Services,Staff Payment,900006026,13.50,
BEIS,The Insolvency Service,18/01/2019,Travel & Subsistence,Investigations & Enforcement Services,Staff Payment,900006026,12.50,
BEIS,The Insolvency Service,18/01/2019,Travel & Subsistence,Investigations & Enforcement Services,Staff Payment,900006026,15.00,
BEIS,The Insolvency Service,18/01/2019,Travel & Subsistence,Investigations & Enforcement Services,Staff Payment,900005906,55.35,
BEIS,The Insolvency Service,18/01/2019,Travel & Subsistence,Investigations & Enforcement Services,Staff Payment,900005906,18.45,
BEIS,The Insolvency Service,18/01/2019,Travel & Subsistence,Investigations & Enforcement Services,Staff Payment,900005906,18.45,
BEIS,The Insolvency Service,18/01/2019,Travel & Subsistence,Investigations & Enforcement Services,Staff Payment,900005906,7.30,
BEIS,The Insolvency Service,18/01/2019,Travel & Subsistence,Investigations & Enforcement Services,Staff Payment,900005906,5.00,
BEIS,The Insolvency Service,18/01/2019,Travel & Subsistence,Official Receiver Services,Staff Payment,900006017,5.00,
BEIS,The Insolvency Service,18/01/2019,Travel & Subsistence,Investigations & Enforcement Services,Staff Payment,900006002,12.25,
BEIS,The Insolvency Service,18/01/2019,Travel & Subsistence,Investigations & Enforcement Services,Staff Payment,900006002,4.20,
BEIS,The Insolvency Service,18/01/2019,Travel & Subsistence,Investigations & Enforcement Services,Staff Payment,900006002,5.00,
BEIS,The Insolvency Service,18/01/2019,Travel & Subsistence,Chief Executive Office,Staff Payment,900005902,3.39,
BEIS,The Insolvency Service,18/01/2019,Travel & Subsistence,Chief Executive Office,Staff Payment,900006039,5.00,
BEIS,The Insolvency Service,18/01/2019,Travel & Subsistence,Chief Executive Office,Staff Payment,900005979,17.00,
BEIS,The Insolvency Service,18/01/2019,Travel & Subsistence,Chief Executive Office,Staff Payment,900005979,15.00,
BEIS,The Insolvency Service,18/01/2019,Travel & Subsistence,Chief Executive Office,Staff Payment,900005979,9.75,
BEIS,The Insolvency Service,18/01/2019,Travel & Subsistence,Chief Executive Office,Staff Payment,900005979,15.00,
BEIS,The Insolvency Service,18/01/2019,Travel & Subsistence,Chief Executive Office,Staff Payment,900005979,3.70,
BEIS,The Insolvency Service,18/01/2019,Travel & Subsistence,Chief Executive Office,Staff Payment,900005979,10.00,
BEIS,The Insolvency Service,18/01/2019,Travel & Subsistence,Chief Executive Office,Staff Payment,900005903,5.00,
BEIS,The Insolvency Service,18/01/2019,Travel & Subsistence,Chief Executive Office,Staff Payment,900005903,5.00,
BEIS,The Insolvency Service,18/01/2019,Travel & Subsistence,Chief Executive Office,Staff Payment,900005910,15.00,
BEIS,The Insolvency Service,18/01/2019,Travel & Subsistence,Chief Executive Office,Staff Payment,900005910,5.00,
BEIS,The Insolvency Service,18/01/2019,Travel & Subsistence,Chief Executive Office,Staff Payment,900005910,5.00,
BEIS,The Insolvency Service,18/01/2019,Travel & Subsistence,Chief Executive Office,Staff Payment,900005930,5.00,
BEIS,The Insolvency Service,18/01/2019,Travel & Subsistence,Chief Executive Office,Staff Payment,900005930,5.00,
BEIS,The Insolvency Service,18/01/2019,Travel & Subsistence,Chief Executive Office,Staff Payment,900005930,7.00,
BEIS,The Insolvency Service,18/01/2019,Travel & Subsistence,People & Capability,Staff Payment,900006061,26.00,
BEIS,The Insolvency Service,18/01/2019,Insolvency Case Related Costs,Business Service Division,SUNDRY SUPPLIER,300005723,200.00,
BEIS,The Insolvency Service,18/01/2019,Telephones & Postage,Business Service Division,Tnt Uk Ltd,300005756,97.00,354715057
BEIS,The Insolvency Service,18/01/2019,Telephones & Postage,Business Service Division,Tnt Uk Ltd,300005758,11.38,354715057
BEIS,The Insolvency Service,18/01/2019,Telephones & Postage,Business Service Division,Tnt Uk Ltd,300005759,22.64,354715057
BEIS,The Insolvency Service,18/01/2019,Telephones & Postage,Business Service Division,Tnt Uk Ltd,300005761,17.87,354715057
BEIS,The Insolvency Service,18/01/2019,Printing & Stationary,Business Service Division,Xma Ltd,300005772,79.01,115091937
BEIS,The Insolvency Service,18/01/2019,Printing & Stationary,Business Service Division,Xma Ltd,300005773,26.56,115091937
BEIS,The Insolvency Service,20/01/2019,Legal Costs,Investigations & Enforcement Services,Pitney Bowes - Purchasepower,300006008,107.47,
BEIS,The Insolvency Service,21/01/2019,Legal Costs,Legal Services Division,18 Red Lion Court Chambers,300005816,53814.42,766793665
BEIS,The Insolvency Service,21/01/2019,Legal Costs,Legal Services Division,18 Red Lion Court Chambers,300005817,18153.00,766793665
BEIS,The Insolvency Service,21/01/2019,Agency Costs,Finance & Commercial,ALEXANDER MANN SOLUTIONS,300005811,81707.77,7444926120
BEIS,The Insolvency Service,21/01/2019,Agency Costs,Information & Technology,Concept Information Technology Ltd,300005815,2550.00,776147892
BEIS,The Insolvency Service,21/01/2019,Computer & IT Systems,Strategy & Change,ESRI (UK) Limited,300005766,2989.20,787430791
BEIS,The Insolvency Service,21/01/2019,Accomodation,Strategy & Change,Government Legal Department,300005803,5992.32,888823066
BEIS,The Insolvency Service,21/01/2019,Accomodation,Strategy & Change,Government Legal Department,300005804,979.68,888823066
BEIS,The Insolvency Service,21/01/2019,Accomodation,Strategy & Change,Government Legal Department,300005805,3581.28,888823066
BEIS,The Insolvency Service,21/01/2019,Accomodation,Strategy & Change,Government Legal Department,300005806,1325.76,888823066
BEIS,The Insolvency Service,21/01/2019,Accomodation,Strategy & Change,Government Legal Department,300005807,129.60,888823066
BEIS,The Insolvency Service,21/01/2019,Agency Costs,Strategy & Change,Netcompany,300005553,44448.00,171809009
BEIS,The Insolvency Service,21/01/2019,Legal Costs,Investigations & Enforcement Services,Safestore Ltd,300005739,103.51,
BEIS,The Insolvency Service,21/01/2019,Legal Costs,Investigations & Enforcement Services,Safestore Ltd,300005739,26.58,
BEIS,The Insolvency Service,21/01/2019,Agency Costs,Finance & Commercial,SF RECRUITMENT LTD,300005793,1411.26,141965992
BEIS,The Insolvency Service,21/01/2019,Agency Costs,Finance & Commercial,SF RECRUITMENT LTD,300005796,3117.00,141965992
BEIS,The Insolvency Service,21/01/2019,Legal Costs,Investigations & Enforcement Services,Shepherd & Wedderburn Ws,300005800,234.97,125425142
BEIS,The Insolvency Service,21/01/2019,Legal Costs,Investigations & Enforcement Services,Shepherd & Wedderburn Ws,300005801,814.26,125425142
BEIS,The Insolvency Service,21/01/2019,Legal Costs,Legal Services Division,SUNDRY SUPPLIER,300005911,239.65,
BEIS,The Insolvency Service,21/01/2019,Accomodation,Finance & Commercial,The Scottish Government,300005813,539.58,
BEIS,The Insolvency Service,21/01/2019,Accomodation,Finance & Commercial,The Scottish Government,300005814,15442.00,
BEIS,The Insolvency Service,21/01/2019,Training,People & Capability,The Whitehall & Industry Group,300005791,5994.00,667832004
BEIS,The Insolvency Service,21/01/2019,Telephones & Postage,Information & Technology,Vodafone - Cable & Wireless Communications,300005790,240.00,569953277
BEIS,The Insolvency Service,21/01/2019,Accomodation,Finance & Commercial,Water Plus Ltd,300005775,479.98,
BEIS,The Insolvency Service,22/01/2019,Accomodation,Finance & Commercial,Middlesbrough Council,300005998,344.70,734213854
BEIS,The Insolvency Service,23/01/2019,Legal Costs,Legal Services Division,Government Legal Department,300005839,671.04,766793665
BEIS,The Insolvency Service,23/01/2019,Computer & IT Systems,Strategy & Change,Agilisys Ltd,300005752,11880.00,791711713
BEIS,The Insolvency Service,23/01/2019,Telephones & Postage,Investigations & Enforcement Services,Daisy Communications Ltd,300005754,35.41,
BEIS,The Insolvency Service,23/01/2019,Legal Costs,Finance & Commercial,"Department For Business, Energy And Industrial Strategy (Be)",300005666,16142.70,
BEIS,The Insolvency Service,23/01/2019,Telephones & Postage,Information & Technology,Ee Limited,300005842,138.00,771592016
BEIS,The Insolvency Service,23/01/2019,Telephones & Postage,Information & Technology,Ee Limited,300005843,2760.00,771592016
BEIS,The Insolvency Service,23/01/2019,Computer & IT Systems,Chief Executive Office,Govdelivery,300005780,674.73,943669974
BEIS,The Insolvency Service,23/01/2019,Computer & IT Systems,Chief Executive Office,Govdelivery,300005781,674.73,943669974
BEIS,The Insolvency Service,23/01/2019,Legal Costs,Finance & Commercial,Government Legal Department,300005812,86.00,888823066
BEIS,The Insolvency Service,23/01/2019,Legal Costs,Investigations & Enforcement Services,Howes Percival,300005840,16264.24,119523573
BEIS,The Insolvency Service,23/01/2019,Legal Costs,Investigations & Enforcement Services,Howes Percival,300005840,271.00,119523573
BEIS,The Insolvency Service,23/01/2019,Legal Costs,Official Receiver Services,K International Plc,300005779,3391.50,600413800
BEIS,The Insolvency Service,23/01/2019,Training,People & Capability,KPMG LLP,300005767,2500.00,791788859
BEIS,The Insolvency Service,23/01/2019,Training,People & Capability,KPMG LLP,300005768,2500.00,791788859
BEIS,The Insolvency Service,23/01/2019,Training,People & Capability,KPMG LLP,300005769,2500.00,791788859
BEIS,The Insolvency Service,23/01/2019,Accomodation,Business Service Division,Posturite (Uk) Ltd.,300005784,641.65,583565114
BEIS,The Insolvency Service,23/01/2019,Legal Costs,Legal Services Division,Queen Square Chambers,300006043,344.76,682545022
BEIS,The Insolvency Service,23/01/2019,Investigation & Enforcement Costs,Investigations & Enforcement Services,Shepherd & Wedderburn Ws,300005820,387.27,890559386
BEIS,The Insolvency Service,23/01/2019,Investigation & Enforcement Costs,Investigations & Enforcement Services,Shepherd & Wedderburn Ws,300005820,66.00,890559386
BEIS,The Insolvency Service,23/01/2019,Legal Costs,Investigations & Enforcement Services,Shepherd & Wedderburn Ws,300005820,22948.62,890559386
BEIS,The Insolvency Service,23/01/2019,Legal Costs,Investigations & Enforcement Services,Shepherd & Wedderburn Ws,300005820,59.00,890559386
BEIS,The Insolvency Service,23/01/2019,Legal Costs,Investigations & Enforcement Services,Shepherd & Wedderburn Ws,300005820,6130.19,890559386
BEIS,The Insolvency Service,23/01/2019,Legal Costs,Investigations & Enforcement Services,Shepherd & Wedderburn Ws,300005820,10000.00,890559386
BEIS,The Insolvency Service,23/01/2019,Investigation & Enforcement Costs,Investigations & Enforcement Services,Shepherd & Wedderburn Ws,300005802,460.82,125425142
BEIS,The Insolvency Service,23/01/2019,Investigation & Enforcement Costs,Investigations & Enforcement Services,Shepherd & Wedderburn Ws,300005802,44.00,125425142
BEIS,The Insolvency Service,23/01/2019,Legal Costs,Investigations & Enforcement Services,Shepherd & Wedderburn Ws,300005802,4980.48,125425142
BEIS,The Insolvency Service,23/01/2019,Legal Costs,Investigations & Enforcement Services,Shepherd & Wedderburn Ws,300005802,176.00,125425142
BEIS,The Insolvency Service,23/01/2019,Employee Related Costs,People & Capability,Smart Employee Eyecare,300005263,608.00,
BEIS,The Insolvency Service,23/01/2019,Travel & Subsistence,Investigations & Enforcement Services,Staff Payment,900005668,5.70,
BEIS,The Insolvency Service,23/01/2019,Travel & Subsistence,Investigations & Enforcement Services,Staff Payment,900005668,5.00,
BEIS,The Insolvency Service,23/01/2019,Travel & Subsistence,Investigations & Enforcement Services,Staff Payment,900005925,3.80,
BEIS,The Insolvency Service,23/01/2019,Travel & Subsistence,Official Receiver Services,Staff Payment,900006115,5.00,
BEIS,The Insolvency Service,23/01/2019,Travel & Subsistence,Official Receiver Services,Staff Payment,900006115,7.20,
BEIS,The Insolvency Service,23/01/2019,Travel & Subsistence,Official Receiver Services,Staff Payment,900006115,7.20,
BEIS,The Insolvency Service,23/01/2019,Travel & Subsistence,Business Service Division,Staff Payment,900005939,3.79,
BEIS,The Insolvency Service,23/01/2019,Travel & Subsistence,Business Service Division,Staff Payment,900005939,15.00,
BEIS,The Insolvency Service,23/01/2019,Travel & Subsistence,Business Service Division,Staff Payment,900005939,5.00,
BEIS,The Insolvency Service,23/01/2019,Travel & Subsistence,Business Service Division,Staff Payment,900005939,5.00,
BEIS,The Insolvency Service,23/01/2019,Travel & Subsistence,Investigations & Enforcement Services,Staff Payment,900006100,3.00,
BEIS,The Insolvency Service,23/01/2019,Travel & Subsistence,Investigations & Enforcement Services,Staff Payment,900006100,2.00,
BEIS,The Insolvency Service,23/01/2019,Travel & Subsistence,Investigations & Enforcement Services,Staff Payment,900006101,4.60,
BEIS,The Insolvency Service,23/01/2019,Travel & Subsistence,Investigations & Enforcement Services,Staff Payment,900006101,3.00,
BEIS,The Insolvency Service,23/01/2019,Travel & Subsistence,Investigations & Enforcement Services,Staff Payment,900006022,1.00,
BEIS,The Insolvency Service,23/01/2019,Travel & Subsistence,Investigations & Enforcement Services,Staff Payment,900006022,10.00,
BEIS,The Insolvency Service,23/01/2019,Travel & Subsistence,Investigations & Enforcement Services,Staff Payment,900006022,2.30,
BEIS,The Insolvency Service,23/01/2019,Travel & Subsistence,Investigations & Enforcement Services,Staff Payment,900006047,7.00,
BEIS,The Insolvency Service,23/01/2019,Travel & Subsistence,Official Receiver Services,Staff Payment,900006126,10.00,
BEIS,The Insolvency Service,23/01/2019,Travel & Subsistence,Official Receiver Services,Staff Payment,900006126,15.00,
BEIS,The Insolvency Service,23/01/2019,Travel & Subsistence,Official Receiver Services,Staff Payment,900006117,10.00,
BEIS,The Insolvency Service,23/01/2019,Travel & Subsistence,Official Receiver Services,Staff Payment,900006117,15.00,
BEIS,The Insolvency Service,23/01/2019,Travel & Subsistence,Official Receiver Services,Staff Payment,900006184,6.00,
BEIS,The Insolvency Service,23/01/2019,Travel & Subsistence,Official Receiver Services,Staff Payment,900006184,5.00,
BEIS,The Insolvency Service,23/01/2019,Travel & Subsistence,Official Receiver Services,Staff Payment,900006184,5.00,
BEIS,The Insolvency Service,23/01/2019,Travel & Subsistence,Official Receiver Services,Staff Payment,900006184,5.00,
BEIS,The Insolvency Service,23/01/2019,Travel & Subsistence,Official Receiver Services,Staff Payment,900006184,15.00,
BEIS,The Insolvency Service,23/01/2019,Travel & Subsistence,Official Receiver Services,Staff Payment,900006184,15.00,
BEIS,The Insolvency Service,23/01/2019,Travel & Subsistence,Official Receiver Services,Staff Payment,900006185,3.99,
BEIS,The Insolvency Service,23/01/2019,Travel & Subsistence,Official Receiver Services,Staff Payment,900006050,15.00,
BEIS,The Insolvency Service,23/01/2019,Travel & Subsistence,Official Receiver Services,Staff Payment,900006050,8.00,
BEIS,The Insolvency Service,23/01/2019,Travel & Subsistence,Official Receiver Services,Staff Payment,900006147,22.00,
BEIS,The Insolvency Service,23/01/2019,Travel & Subsistence,Official Receiver Services,Staff Payment,900006147,15.00,
BEIS,The Insolvency Service,23/01/2019,Travel & Subsistence,Official Receiver Services,Staff Payment,900006197,5.00,
BEIS,The Insolvency Service,23/01/2019,Travel & Subsistence,Official Receiver Services,Staff Payment,900006197,25.20,
BEIS,The Insolvency Service,23/01/2019,Travel & Subsistence,Official Receiver Services,Staff Payment,900006197,22.68,
BEIS,The Insolvency Service,23/01/2019,Travel & Subsistence,Official Receiver Services,Staff Payment,900006079,30.60,
BEIS,The Insolvency Service,23/01/2019,Travel & Subsistence,Official Receiver Services,Staff Payment,900006079,3.50,
BEIS,The Insolvency Service,23/01/2019,Travel & Subsistence,Investigations & Enforcement Services,Staff Payment,900005893,2.50,
BEIS,The Insolvency Service,23/01/2019,Travel & Subsistence,Investigations & Enforcement Services,Staff Payment,900005893,12.00,
BEIS,The Insolvency Service,23/01/2019,Travel & Subsistence,Investigations & Enforcement Services,Staff Payment,900005893,2.50,
BEIS,The Insolvency Service,23/01/2019,Travel & Subsistence,Investigations & Enforcement Services,Staff Payment,900005893,10.00,
BEIS,The Insolvency Service,23/01/2019,Travel & Subsistence,Investigations & Enforcement Services,Staff Payment,900005893,9.29,
BEIS,The Insolvency Service,23/01/2019,Travel & Subsistence,Investigations & Enforcement Services,Staff Payment,900005893,5.00,
BEIS,The Insolvency Service,23/01/2019,Travel & Subsistence,Investigations & Enforcement Services,Staff Payment,900005893,5.00,
BEIS,The Insolvency Service,23/01/2019,Travel & Subsistence,Investigations & Enforcement Services,Staff Payment,900006180,177.08,
BEIS,The Insolvency Service,23/01/2019,Travel & Subsistence,Official Receiver Services,Staff Payment,900006169,2.00,
BEIS,The Insolvency Service,23/01/2019,Travel & Subsistence,Official Receiver Services,Staff Payment,900006169,49.50,
BEIS,The Insolvency Service,23/01/2019,Travel & Subsistence,Business Service Division,Staff Payment,900006182,5.00,
BEIS,The Insolvency Service,23/01/2019,Travel & Subsistence,Business Service Division,Staff Payment,900006183,3.50,
BEIS,The Insolvency Service,23/01/2019,Travel & Subsistence,Official Receiver Services,Staff Payment,900006118,5.00,
BEIS,The Insolvency Service,23/01/2019,Travel & Subsistence,Investigations & Enforcement Services,Staff Payment,900006066,15.00,
BEIS,The Insolvency Service,23/01/2019,Travel & Subsistence,Investigations & Enforcement Services,Staff Payment,900006066,3.70,
BEIS,The Insolvency Service,23/01/2019,Travel & Subsistence,Investigations & Enforcement Services,Staff Payment,900006066,5.00,
BEIS,The Insolvency Service,23/01/2019,Travel & Subsistence,Official Receiver Services,Staff Payment,900006167,5.00,
BEIS,The Insolvency Service,23/01/2019,Travel & Subsistence,Official Receiver Services,Staff Payment,900006167,5.00,
BEIS,The Insolvency Service,23/01/2019,Travel & Subsistence,Business Service Division,Staff Payment,900006069,8.10,
BEIS,The Insolvency Service,23/01/2019,Travel & Subsistence,Business Service Division,Staff Payment,900006069,45.00,
BEIS,The Insolvency Service,23/01/2019,Travel & Subsistence,Business Service Division,Staff Payment,900006069,45.00,
BEIS,The Insolvency Service,23/01/2019,Travel & Subsistence,Business Service Division,Staff Payment,900006069,8.10,
BEIS,The Insolvency Service,23/01/2019,Travel & Subsistence,Business Service Division,Staff Payment,900006069,4.99,
BEIS,The Insolvency Service,23/01/2019,Travel & Subsistence,Business Service Division,Staff Payment,900006070,11.14,
BEIS,The Insolvency Service,23/01/2019,Travel & Subsistence,Business Service Division,Staff Payment,900006071,27.45,
BEIS,The Insolvency Service,23/01/2019,Travel & Subsistence,Business Service Division,Staff Payment,900006071,27.45,
BEIS,The Insolvency Service,23/01/2019,Travel & Subsistence,Business Service Division,Staff Payment,900006071,4.08,
BEIS,The Insolvency Service,23/01/2019,Travel & Subsistence,Business Service Division,Staff Payment,900006114,5.00,
BEIS,The Insolvency Service,23/01/2019,Travel & Subsistence,Business Service Division,Staff Payment,900006114,7.95,
BEIS,The Insolvency Service,23/01/2019,Travel & Subsistence,Business Service Division,Staff Payment,900006114,10.00,
BEIS,The Insolvency Service,23/01/2019,Travel & Subsistence,Investigations & Enforcement Services,Staff Payment,900006083,2.50,
BEIS,The Insolvency Service,23/01/2019,Travel & Subsistence,Investigations & Enforcement Services,Staff Payment,900006083,13.50,
BEIS,The Insolvency Service,23/01/2019,Travel & Subsistence,Investigations & Enforcement Services,Staff Payment,900006084,4.30,
BEIS,The Insolvency Service,23/01/2019,Travel & Subsistence,Investigations & Enforcement Services,Staff Payment,900006084,6.90,
BEIS,The Insolvency Service,23/01/2019,Travel & Subsistence,Investigations & Enforcement Services,Staff Payment,900006084,5.00,
BEIS,The Insolvency Service,23/01/2019,Travel & Subsistence,Investigations & Enforcement Services,Staff Payment,900006085,14.50,
BEIS,The Insolvency Service,23/01/2019,Travel & Subsistence,Investigations & Enforcement Services,Staff Payment,900006085,3.00,
BEIS,The Insolvency Service,23/01/2019,Travel & Subsistence,Official Receiver Services,Staff Payment,900006056,4.05,
BEIS,The Insolvency Service,23/01/2019,Travel & Subsistence,People & Capability,Staff Payment,900006099,5.00,
BEIS,The Insolvency Service,23/01/2019,Travel & Subsistence,People & Capability,Staff Payment,900006099,9.00,
BEIS,The Insolvency Service,23/01/2019,Travel & Subsistence,People & Capability,Staff Payment,900006099,14.13,
BEIS,The Insolvency Service,23/01/2019,Travel & Subsistence,People & Capability,Staff Payment,900006099,2.40,
BEIS,The Insolvency Service,23/01/2019,Travel & Subsistence,People & Capability,Staff Payment,900006099,12.20,
BEIS,The Insolvency Service,23/01/2019,Travel & Subsistence,People & Capability,Staff Payment,900006099,8.55,
BEIS,The Insolvency Service,23/01/2019,Travel & Subsistence,Business Service Division,Staff Payment,900006060,8.00,
BEIS,The Insolvency Service,23/01/2019,Travel & Subsistence,Business Service Division,Staff Payment,900006060,1.99,
BEIS,The Insolvency Service,23/01/2019,Travel & Subsistence,Investigations & Enforcement Services,Staff Payment,900006119,15.60,
BEIS,The Insolvency Service,23/01/2019,Travel & Subsistence,Investigations & Enforcement Services,Staff Payment,900006119,5.00,
BEIS,The Insolvency Service,23/01/2019,Travel & Subsistence,Investigations & Enforcement Services,Staff Payment,900006119,1.00,
BEIS,The Insolvency Service,23/01/2019,Travel & Subsistence,Official Receiver Services,Staff Payment,900006065,5.00,
BEIS,The Insolvency Service,23/01/2019,Travel & Subsistence,Official Receiver Services,Staff Payment,900006065,5.00,
BEIS,The Insolvency Service,23/01/2019,Travel & Subsistence,Official Receiver Services,Staff Payment,900006144,15.00,
BEIS,The Insolvency Service,23/01/2019,Travel & Subsistence,Official Receiver Services,Staff Payment,900006144,5.00,
BEIS,The Insolvency Service,23/01/2019,Travel & Subsistence,Official Receiver Services,Staff Payment,900006146,5.00,
BEIS,The Insolvency Service,23/01/2019,Travel & Subsistence,Official Receiver Services,Staff Payment,900006146,3.70,
BEIS,The Insolvency Service,23/01/2019,Travel & Subsistence,Business Service Division,Staff Payment,900006097,2.25,
BEIS,The Insolvency Service,23/01/2019,Travel & Subsistence,Business Service Division,Staff Payment,900006097,10.00,
BEIS,The Insolvency Service,23/01/2019,Travel & Subsistence,Business Service Division,Staff Payment,900006097,50.05,
BEIS,The Insolvency Service,23/01/2019,Travel & Subsistence,Business Service Division,Staff Payment,900006097,50.05,
BEIS,The Insolvency Service,23/01/2019,Travel & Subsistence,Business Service Division,Staff Payment,900006097,2.25,
BEIS,The Insolvency Service,23/01/2019,Travel & Subsistence,Business Service Division,Staff Payment,900006097,15.00,
BEIS,The Insolvency Service,23/01/2019,Travel & Subsistence,Business Service Division,Staff Payment,900006097,15.00,
BEIS,The Insolvency Service,23/01/2019,Travel & Subsistence,Business Service Division,Staff Payment,900006097,5.00,
BEIS,The Insolvency Service,23/01/2019,Travel & Subsistence,Official Receiver Services,Staff Payment,900006035,5.00,
BEIS,The Insolvency Service,23/01/2019,Travel & Subsistence,Investigations & Enforcement Services,Staff Payment,900006109,2.40,
BEIS,The Insolvency Service,23/01/2019,Travel & Subsistence,Investigations & Enforcement Services,Staff Payment,900006109,2.40,
BEIS,The Insolvency Service,23/01/2019,Travel & Subsistence,Investigations & Enforcement Services,Staff Payment,900006109,4.58,
BEIS,The Insolvency Service,23/01/2019,Travel & Subsistence,Investigations & Enforcement Services,Staff Payment,900006109,2.70,
BEIS,The Insolvency Service,23/01/2019,Travel & Subsistence,Investigations & Enforcement Services,Staff Payment,900006109,5.00,
BEIS,The Insolvency Service,23/01/2019,Travel & Subsistence,Investigations & Enforcement Services,Staff Payment,900006109,5.00,
BEIS,The Insolvency Service,23/01/2019,Travel & Subsistence,Investigations & Enforcement Services,Staff Payment,900006110,3.20,
BEIS,The Insolvency Service,23/01/2019,Travel & Subsistence,Investigations & Enforcement Services,Staff Payment,900006110,12.75,
BEIS,The Insolvency Service,23/01/2019,Travel & Subsistence,Investigations & Enforcement Services,Staff Payment,900006110,5.00,
BEIS,The Insolvency Service,23/01/2019,Travel & Subsistence,Investigations & Enforcement Services,Staff Payment,900006110,2.55,
BEIS,The Insolvency Service,23/01/2019,Travel & Subsistence,Investigations & Enforcement Services,Staff Payment,900006110,4.95,
BEIS,The Insolvency Service,23/01/2019,Travel & Subsistence,Investigations & Enforcement Services,Staff Payment,900006110,2.40,
BEIS,The Insolvency Service,23/01/2019,Travel & Subsistence,Investigations & Enforcement Services,Staff Payment,900006110,2.40,
BEIS,The Insolvency Service,23/01/2019,Travel & Subsistence,Investigations & Enforcement Services,Staff Payment,900006111,2.40,
BEIS,The Insolvency Service,23/01/2019,Travel & Subsistence,Investigations & Enforcement Services,Staff Payment,900006111,2.40,
BEIS,The Insolvency Service,23/01/2019,Travel & Subsistence,Investigations & Enforcement Services,Staff Payment,900006111,11.72,
BEIS,The Insolvency Service,23/01/2019,Travel & Subsistence,Investigations & Enforcement Services,Staff Payment,900006111,4.99,
BEIS,The Insolvency Service,23/01/2019,Travel & Subsistence,Investigations & Enforcement Services,Staff Payment,900006111,5.00,
BEIS,The Insolvency Service,23/01/2019,Travel & Subsistence,Investigations & Enforcement Services,Staff Payment,900006111,2.05,
BEIS,The Insolvency Service,23/01/2019,Travel & Subsistence,People & Capability,Staff Payment,900006096,89.00,
BEIS,The Insolvency Service,23/01/2019,Travel & Subsistence,Chief Executive Office,Staff Payment,900006064,4.50,
BEIS,The Insolvency Service,23/01/2019,Travel & Subsistence,Chief Executive Office,Staff Payment,900006064,2.80,
BEIS,The Insolvency Service,23/01/2019,Travel & Subsistence,Chief Executive Office,Staff Payment,900006064,1.50,
BEIS,The Insolvency Service,23/01/2019,Travel & Subsistence,Chief Executive Office,Staff Payment,900006064,1.50,
BEIS,The Insolvency Service,23/01/2019,Travel & Subsistence,Investigations & Enforcement Services,Staff Payment,900006091,5.00,
BEIS,The Insolvency Service,23/01/2019,Travel & Subsistence,Investigations & Enforcement Services,Staff Payment,900006091,5.00,
BEIS,The Insolvency Service,23/01/2019,Travel & Subsistence,Investigations & Enforcement Services,Staff Payment,900006091,3.35,
BEIS,The Insolvency Service,23/01/2019,Travel & Subsistence,Investigations & Enforcement Services,Staff Payment,900006091,30.00,
BEIS,The Insolvency Service,23/01/2019,Travel & Subsistence,Investigations & Enforcement Services,Staff Payment,900006091,4.50,
BEIS,The Insolvency Service,23/01/2019,Travel & Subsistence,Investigations & Enforcement Services,Staff Payment,900006091,4.30,
BEIS,The Insolvency Service,23/01/2019,Travel & Subsistence,Investigations & Enforcement Services,Staff Payment,900006091,5.00,
BEIS,The Insolvency Service,23/01/2019,Travel & Subsistence,Investigations & Enforcement Services,Staff Payment,900005319,2.40,
BEIS,The Insolvency Service,23/01/2019,Travel & Subsistence,Investigations & Enforcement Services,Staff Payment,900005319,1.50,
BEIS,The Insolvency Service,23/01/2019,Travel & Subsistence,Investigations & Enforcement Services,Staff Payment,900005319,1.50,
BEIS,The Insolvency Service,23/01/2019,Travel & Subsistence,Investigations & Enforcement Services,Staff Payment,900005319,0.20,
BEIS,The Insolvency Service,23/01/2019,Travel & Subsistence,Investigations & Enforcement Services,Staff Payment,900005319,5.00,
BEIS,The Insolvency Service,23/01/2019,Travel & Subsistence,Investigations & Enforcement Services,Staff Payment,900005505,20.70,
BEIS,The Insolvency Service,23/01/2019,Travel & Subsistence,Investigations & Enforcement Services,Staff Payment,900005505,19.35,
BEIS,The Insolvency Service,23/01/2019,Travel & Subsistence,Official Receiver Services,Staff Payment,900006059,2.20,
BEIS,The Insolvency Service,23/01/2019,Travel & Subsistence,Official Receiver Services,Staff Payment,900006059,31.95,
BEIS,The Insolvency Service,23/01/2019,Travel & Subsistence,Strategy & Change,Staff Payment,900006095,20.00,
BEIS,The Insolvency Service,23/01/2019,Travel & Subsistence,Strategy & Change,Staff Payment,900006095,15.00,
BEIS,The Insolvency Service,23/01/2019,Travel & Subsistence,Strategy & Change,Staff Payment,900006095,5.00,
BEIS,The Insolvency Service,23/01/2019,Travel & Subsistence,Strategy & Change,Staff Payment,900006095,6.00,
BEIS,The Insolvency Service,23/01/2019,Travel & Subsistence,Investigations & Enforcement Services,Staff Payment,900006057,14.00,
BEIS,The Insolvency Service,23/01/2019,Travel & Subsistence,Investigations & Enforcement Services,Staff Payment,900006173,10.00,
BEIS,The Insolvency Service,23/01/2019,Travel & Subsistence,Investigations & Enforcement Services,Staff Payment,900006173,4.80,
BEIS,The Insolvency Service,23/01/2019,Travel & Subsistence,Investigations & Enforcement Services,Staff Payment,900006173,9.00,
BEIS,The Insolvency Service,23/01/2019,Travel & Subsistence,Investigations & Enforcement Services,Staff Payment,900006173,12.00,
BEIS,The Insolvency Service,23/01/2019,Travel & Subsistence,Business Service Division,Staff Payment,900005330,4.05,
BEIS,The Insolvency Service,23/01/2019,Travel & Subsistence,Business Service Division,Staff Payment,900005330,3.20,
BEIS,The Insolvency Service,23/01/2019,Travel & Subsistence,Business Service Division,Staff Payment,900005332,4.30,
BEIS,The Insolvency Service,23/01/2019,Travel & Subsistence,Business Service Division,Staff Payment,900005332,5.00,
BEIS,The Insolvency Service,23/01/2019,Travel & Subsistence,Business Service Division,Staff Payment,900005332,5.00,
BEIS,The Insolvency Service,23/01/2019,Travel & Subsistence,Investigations & Enforcement Services,Staff Payment,900006080,3.20,
BEIS,The Insolvency Service,23/01/2019,Travel & Subsistence,Investigations & Enforcement Services,Staff Payment,900006080,15.00,
BEIS,The Insolvency Service,23/01/2019,Travel & Subsistence,Investigations & Enforcement Services,Staff Payment,900006080,3.10,
BEIS,The Insolvency Service,23/01/2019,Travel & Subsistence,Investigations & Enforcement Services,Staff Payment,900006080,4.85,
BEIS,The Insolvency Service,23/01/2019,Travel & Subsistence,Investigations & Enforcement Services,Staff Payment,900006080,2.90,
BEIS,The Insolvency Service,23/01/2019,Travel & Subsistence,Investigations & Enforcement Services,Staff Payment,900006082,2.30,
BEIS,The Insolvency Service,23/01/2019,Travel & Subsistence,Investigations & Enforcement Services,Staff Payment,900006082,15.00,
BEIS,The Insolvency Service,23/01/2019,Travel & Subsistence,Investigations & Enforcement Services,Staff Payment,900006082,5.00,
BEIS,The Insolvency Service,23/01/2019,Travel & Subsistence,Investigations & Enforcement Services,Staff Payment,900006082,3.10,
BEIS,The Insolvency Service,23/01/2019,Travel & Subsistence,Investigations & Enforcement Services,Staff Payment,900006038,3.50,
BEIS,The Insolvency Service,23/01/2019,Travel & Subsistence,Investigations & Enforcement Services,Staff Payment,900006038,3.00,
BEIS,The Insolvency Service,23/01/2019,Travel & Subsistence,Investigations & Enforcement Services,Staff Payment,900006038,4.95,
BEIS,The Insolvency Service,23/01/2019,Travel & Subsistence,Finance & Commercial,Staff Payment,900005994,10.00,
BEIS,The Insolvency Service,23/01/2019,Travel & Subsistence,Finance & Commercial,Staff Payment,900005994,5.00,
BEIS,The Insolvency Service,23/01/2019,Travel & Subsistence,Finance & Commercial,Staff Payment,900005994,1.40,
BEIS,The Insolvency Service,23/01/2019,Travel & Subsistence,Finance & Commercial,Staff Payment,900005995,3.79,
BEIS,The Insolvency Service,23/01/2019,Travel & Subsistence,Finance & Commercial,Staff Payment,900005995,5.00,
BEIS,The Insolvency Service,23/01/2019,Travel & Subsistence,Business Service Division,Staff Payment,900006178,4.50,
BEIS,The Insolvency Service,23/01/2019,Travel & Subsistence,Business Service Division,Staff Payment,900006178,4.50,
BEIS,The Insolvency Service,23/01/2019,Travel & Subsistence,Business Service Division,Staff Payment,900006178,13.05,
BEIS,The Insolvency Service,23/01/2019,Travel & Subsistence,Business Service Division,Staff Payment,900006178,10.00,
BEIS,The Insolvency Service,23/01/2019,Travel & Subsistence,Business Service Division,Staff Payment,900006178,30.00,
BEIS,The Insolvency Service,23/01/2019,Travel & Subsistence,Business Service Division,Staff Payment,900006204,4.50,
BEIS,The Insolvency Service,23/01/2019,Travel & Subsistence,Business Service Division,Staff Payment,900006204,49.81,
BEIS,The Insolvency Service,23/01/2019,Travel & Subsistence,Business Service Division,Staff Payment,900006204,14.69,
BEIS,The Insolvency Service,23/01/2019,Travel & Subsistence,Business Service Division,Staff Payment,900006204,15.00,
BEIS,The Insolvency Service,23/01/2019,Travel & Subsistence,Information & Technology,Staff Payment,900006092,3.20,
BEIS,The Insolvency Service,23/01/2019,Travel & Subsistence,Information & Technology,Staff Payment,900006092,22.55,
BEIS,The Insolvency Service,23/01/2019,Travel & Subsistence,Information & Technology,Staff Payment,900006092,11.00,
BEIS,The Insolvency Service,23/01/2019,Travel & Subsistence,Investigations & Enforcement Services,Staff Payment,900006121,5.00,
BEIS,The Insolvency Service,23/01/2019,Travel & Subsistence,Investigations & Enforcement Services,Staff Payment,900006121,3.75,
BEIS,The Insolvency Service,23/01/2019,Travel & Subsistence,Investigations & Enforcement Services,Staff Payment,900006121,17.99,
BEIS,The Insolvency Service,23/01/2019,Travel & Subsistence,Investigations & Enforcement Services,Staff Payment,900004901,5.00,
BEIS,The Insolvency Service,23/01/2019,Travel & Subsistence,Investigations & Enforcement Services,Staff Payment,900004901,25.00,
BEIS,The Insolvency Service,23/01/2019,Travel & Subsistence,Investigations & Enforcement Services,Staff Payment,900004901,10.00,
BEIS,The Insolvency Service,23/01/2019,Travel & Subsistence,Investigations & Enforcement Services,Staff Payment,900004901,8.00,
BEIS,The Insolvency Service,23/01/2019,Travel & Subsistence,Investigations & Enforcement Services,Staff Payment,900004901,54.00,
BEIS,The Insolvency Service,23/01/2019,Travel & Subsistence,Investigations & Enforcement Services,Staff Payment,900004901,75.00,
BEIS,The Insolvency Service,23/01/2019,Travel & Subsistence,Investigations & Enforcement Services,Staff Payment,900004901,43.45,
BEIS,The Insolvency Service,23/01/2019,Travel & Subsistence,Investigations & Enforcement Services,Staff Payment,900004901,4.00,
BEIS,The Insolvency Service,23/01/2019,Travel & Subsistence,Investigations & Enforcement Services,Staff Payment,900004901,15.00,
BEIS,The Insolvency Service,23/01/2019,Travel & Subsistence,Investigations & Enforcement Services,Staff Payment,900004901,4.10,
BEIS,The Insolvency Service,23/01/2019,Travel & Subsistence,Investigations & Enforcement Services,Staff Payment,900004901,5.00,
BEIS,The Insolvency Service,23/01/2019,Travel & Subsistence,Investigations & Enforcement Services,Staff Payment,900006112,20.00,
BEIS,The Insolvency Service,23/01/2019,Travel & Subsistence,Investigations & Enforcement Services,Staff Payment,900006112,12.00,
BEIS,The Insolvency Service,23/01/2019,Travel & Subsistence,Investigations & Enforcement Services,Staff Payment,900006112,5.00,
BEIS,The Insolvency Service,23/01/2019,Travel & Subsistence,Investigations & Enforcement Services,Staff Payment,900006112,15.00,
BEIS,The Insolvency Service,23/01/2019,Travel & Subsistence,Investigations & Enforcement Services,Staff Payment,900006112,4.65,
BEIS,The Insolvency Service,23/01/2019,Travel & Subsistence,Investigations & Enforcement Services,Staff Payment,900006112,5.00,
BEIS,The Insolvency Service,23/01/2019,Travel & Subsistence,Investigations & Enforcement Services,Staff Payment,900006112,15.00,
BEIS,The Insolvency Service,23/01/2019,Travel & Subsistence,Investigations & Enforcement Services,Staff Payment,900006112,5.00,
BEIS,The Insolvency Service,23/01/2019,Travel & Subsistence,Investigations & Enforcement Services,Staff Payment,900006112,5.00,
BEIS,The Insolvency Service,23/01/2019,Travel & Subsistence,Investigations & Enforcement Services,Staff Payment,900006168,650.00,
BEIS,The Insolvency Service,23/01/2019,Travel & Subsistence,Investigations & Enforcement Services,Staff Payment,900006202,12.50,
BEIS,The Insolvency Service,23/01/2019,Travel & Subsistence,Investigations & Enforcement Services,Staff Payment,900006202,13.50,
BEIS,The Insolvency Service,23/01/2019,Travel & Subsistence,Investigations & Enforcement Services,Staff Payment,900006054,17.00,
BEIS,The Insolvency Service,23/01/2019,Travel & Subsistence,Investigations & Enforcement Services,Staff Payment,900006054,11.10,
BEIS,The Insolvency Service,23/01/2019,Travel & Subsistence,Investigations & Enforcement Services,Staff Payment,900006054,4.50,
BEIS,The Insolvency Service,23/01/2019,Travel & Subsistence,People & Capability,Staff Payment,900006076,14.00,
BEIS,The Insolvency Service,23/01/2019,Travel & Subsistence,People & Capability,Staff Payment,900006076,3.10,
BEIS,The Insolvency Service,23/01/2019,Travel & Subsistence,People & Capability,Staff Payment,900006076,2.47,
BEIS,The Insolvency Service,23/01/2019,Travel & Subsistence,People & Capability,Staff Payment,900006076,4.00,
BEIS,The Insolvency Service,23/01/2019,Travel & Subsistence,People & Capability,Staff Payment,900006076,4.50,
BEIS,The Insolvency Service,23/01/2019,Travel & Subsistence,Strategy & Change,Staff Payment,900006067,130.00,
BEIS,The Insolvency Service,23/01/2019,Travel & Subsistence,Official Receiver Services,Staff Payment,900006129,14.00,
BEIS,The Insolvency Service,23/01/2019,Travel & Subsistence,Official Receiver Services,Staff Payment,900006129,5.00,
BEIS,The Insolvency Service,23/01/2019,Travel & Subsistence,Official Receiver Services,Staff Payment,900006129,15.00,
BEIS,The Insolvency Service,23/01/2019,Travel & Subsistence,Official Receiver Services,Staff Payment,900006129,14.80,
BEIS,The Insolvency Service,23/01/2019,Travel & Subsistence,Official Receiver Services,Staff Payment,900006129,15.00,
BEIS,The Insolvency Service,23/01/2019,Travel & Subsistence,Official Receiver Services,Staff Payment,900006129,15.00,
BEIS,The Insolvency Service,23/01/2019,Travel & Subsistence,Official Receiver Services,Staff Payment,900006129,20.00,
BEIS,The Insolvency Service,23/01/2019,Travel & Subsistence,Investigations & Enforcement Services,Staff Payment,900006058,20.70,
BEIS,The Insolvency Service,23/01/2019,Travel & Subsistence,Investigations & Enforcement Services,Staff Payment,900006058,4.80,
BEIS,The Insolvency Service,23/01/2019,Travel & Subsistence,Investigations & Enforcement Services,Staff Payment,900006058,4.39,
BEIS,The Insolvency Service,23/01/2019,Travel & Subsistence,Investigations & Enforcement Services,Staff Payment,900006058,5.00,
BEIS,The Insolvency Service,23/01/2019,Travel & Subsistence,Official Receiver Services,Staff Payment,900006156,10.61,
